Department,Entity,Transaction Date,Expense Type,Expense Area,Supplier,Transaction No.,Amount
"Department for Business, Energy and Industrial Strategy",The Coal Authority,02/09/2022,Annual Report & Accounts,Business Intelligence,J W Northend Ltd,136017,538.00
"Department for Business, Energy and Industrial Strategy",The Coal Authority,07/09/2022,Annual Report & Accounts,Business Intelligence,Trosol,137376,741.00
"Department for Business, Energy and Industrial Strategy",The Coal Authority,27/09/2022,Annual Report & Accounts,Business Intelligence,Making Sense Design Ltd,137488,"1,080.00"
"Department for Business, Energy and Industrial Strategy",The Coal Authority,01/07/2022,Applications Consultancy,DIG - Service & Assurance,Cgi It Uk Ltd,135916,"19,036.98"
"Department for Business, Energy and Industrial Strategy",The Coal Authority,01/07/2022,Applications Consultancy,DIG - Technical Delivery,Cgi It Uk Ltd,135916,711.00
"Department for Business, Energy and Industrial Strategy",The Coal Authority,01/07/2022,Applications Consultancy,DIG - Technical Delivery,Cgi It Uk Ltd,135916,"3,839.40"
"Department for Business, Energy and Industrial Strategy",The Coal Authority,02/09/2022,Bank Charges,Finance,National Westminster Bank Plc,137698,62.46
"Department for Business, Energy and Industrial Strategy",The Coal Authority,02/09/2022,Bridgewater - Contractor Costs,PS&S - General Claims,The Bridgewater Canal Co Ltd,136105,"2,283.14"
"Department for Business, Energy and Industrial Strategy",The Coal Authority,16/09/2022,Business Entertainment / Hospitality,PS&S - General Claims,National Coal Mining Museum,136955,50.00
"Department for Business, Energy and Industrial Strategy",The Coal Authority,16/09/2022,Business Entertainment / Hospitality,PS&S - General Claims,National Coal Mining Museum,136955,104.25
"Department for Business, Energy and Industrial Strategy",The Coal Authority,23/08/2022,Business Meetings,Board,Calder Conference Ltd,136048,"1,348.87"
"Department for Business, Energy and Industrial Strategy",The Coal Authority,30/09/2022,Business Meetings,PS&S - General Claims,Jurys Inn Newcastle,136756,151.00
"Department for Business, Energy and Industrial Strategy",The Coal Authority,30/09/2022,Business Meetings,PS&S - General Claims,Jurys Inn Newcastle,136757,441.00
"Department for Business, Energy and Industrial Strategy",The Coal Authority,26/08/2022,Business Meetings,Executive,Calder Conference Ltd,136897,584.00
"Department for Business, Energy and Industrial Strategy",The Coal Authority,16/09/2022,Business Meetings,Executive,Calder Conference Ltd,136898,-584.00
"Department for Business, Energy and Industrial Strategy",The Coal Authority,26/08/2022,Business Meetings,Executive,Calder Conference Ltd,136899,584.00
"Department for Business, Energy and Industrial Strategy",The Coal Authority,14/07/2022,Business Meetings,"Health, Safety & Wellbeing",Government Procurement Card,137736,7.29
"Department for Business, Energy and Industrial Strategy",The Coal Authority,03/08/2022,Business Meetings,PS&S - General Claims,Government Procurement Card,137737,2.97
"Department for Business, Energy and Industrial Strategy",The Coal Authority,05/08/2022,Business Meetings,PS&S - General Claims,Government Procurement Card,137737,11.43
"Department for Business, Energy and Industrial Strategy",The Coal Authority,22/08/2022,Business Meetings,PS&S - Industry Claims,Government Procurement Card,137737,25.00
"Department for Business, Energy and Industrial Strategy",The Coal Authority,23/08/2022,Business Meetings,PS&S - General Claims,Government Procurement Card,137737,11.07
"Department for Business, Energy and Industrial Strategy",The Coal Authority,25/08/2022,Business Meetings,PS&S - General Claims,Government Procurement Card,137737,10.40
"Department for Business, Energy and Industrial Strategy",The Coal Authority,01/09/2022,Canteen Equipment,Facilities,All Shires Foods Ltd,136100,19.68
"Department for Business, Energy and Industrial Strategy",The Coal Authority,06/09/2022,Canteen Equipment,Facilities,All Shires Foods Ltd,136104,23.31
"Department for Business, Energy and Industrial Strategy",The Coal Authority,08/09/2022,Canteen Equipment,Facilities,All Shires Foods Ltd,136193,20.01
"Department for Business, Energy and Industrial Strategy",The Coal Authority,13/09/2022,Canteen Equipment,Facilities,All Shires Foods Ltd,136601,23.31
"Department for Business, Energy and Industrial Strategy",The Coal Authority,15/09/2022,Canteen Equipment,Facilities,All Shires Foods Ltd,136827,20.01
"Department for Business, Energy and Industrial Strategy",The Coal Authority,26/09/2022,Canteen Equipment,Facilities,All Shires Foods Ltd,137414,-1.98
"Department for Business, Energy and Industrial Strategy",The Coal Authority,20/09/2022,Canteen Equipment,Facilities,All Shires Foods Ltd,137415,23.31
"Department for Business, Energy and Industrial Strategy",The Coal Authority,27/07/2022,Central Training,"Health, Safety & Wellbeing",British Safety Council,135836,"7,975.00"
"Department for Business, Energy and Industrial Strategy",The Coal Authority,13/08/2022,Central Training,People & Organisational Development,Oe Cam Llp,135868,"2,565.02"
"Department for Business, Energy and Industrial Strategy",The Coal Authority,13/08/2022,Central Training,People & Organisational Development,Oe Cam Llp,135869,"3,355.04"
"Department for Business, Energy and Industrial Strategy",The Coal Authority,13/08/2022,Central Training,People & Organisational Development,Oe Cam Llp,136130,425.00
"Department for Business, Energy and Industrial Strategy",The Coal Authority,13/08/2022,Central Training,People & Organisational Development,Oe Cam Llp,136130,722.50
"Department for Business, Energy and Industrial Strategy",The Coal Authority,13/08/2022,Central Training,People & Organisational Development,Oe Cam Llp,136130,85.00
"Department for Business, Energy and Industrial Strategy",The Coal Authority,05/09/2022,Central Training,People & Organisational Development,Oe Cam Llp,136202,"3,787.51"
"Department for Business, Energy and Industrial Strategy",The Coal Authority,20/07/2022,Central Training,People & Organisational Development,Oe Cam Llp,136203,"8,209.01"
"Department for Business, Energy and Industrial Strategy",The Coal Authority,20/07/2022,Central Training,People & Organisational Development,Oe Cam Llp,136203,379.84
"Department for Business, Energy and Industrial Strategy",The Coal Authority,30/09/2022,Central Training,People & Organisational Development,Inclusive Employers Limited,136275,"2,625.00"
"Department for Business, Energy and Industrial Strategy",The Coal Authority,26/08/2022,Central Training,"Health, Safety & Wellbeing",Risk & Safety Management Serv,136445,469.00
"Department for Business, Energy and Industrial Strategy",The Coal Authority,15/09/2022,Central Training,People & Organisational Development,S P Foods,136871,179.55
"Department for Business, Energy and Industrial Strategy",The Coal Authority,14/09/2022,Central Training,PS&S - Industry Claims,Staff Expenses Control,136935,6.99
"Department for Business, Energy and Industrial Strategy",The Coal Authority,26/07/2022,Central Training,"Health, Safety & Wellbeing",Mines Rescue Service Limited,137120,450.00
"Department for Business, Energy and Industrial Strategy",The Coal Authority,19/07/2022,Central Training,People & Organisational Development,Radius Business Ltd,137460,"6,750.00"
"Department for Business, Energy and Industrial Strategy",The Coal Authority,20/08/2022,Central Training,Innovation By-Product & Services Delivery,Government Procurement Card,137737,65.00
"Department for Business, Energy and Industrial Strategy",The Coal Authority,01/09/2022,Cleaning Materials,Facilities,Fidelis,136532,"5,178.72"
"Department for Business, Energy and Industrial Strategy",The Coal Authority,20/09/2022,Consultancy - Sustainability,ENV - Sustainability & Environmental Compliance,Wardell Armstrong LLP,137429,"11,520.00"
"Department for Business, Energy and Industrial Strategy",The Coal Authority,01/08/2022,Contract Hire Vehicles,PS&S - General Claims,Days Fleet,136046,0.01
"Department for Business, Energy and Industrial Strategy",The Coal Authority,01/08/2022,Contract Hire Vehicles,PS&S - General Claims,Days Fleet,136046,473.89
"Department for Business, Energy and Industrial Strategy",The Coal Authority,01/08/2022,Contract Hire Vehicles,PS&S - General Claims,Days Fleet,136046,356.40
"Department for Business, Energy and Industrial Strategy",The Coal Authority,01/08/2022,Contract Hire Vehicles,PS&S - General Claims,Days Fleet,136046,"4,739.04"
"Department for Business, Energy and Industrial Strategy",The Coal Authority,01/08/2022,Contract Hire Vehicles,PS&S - General Claims,Days Fleet,136046,433.20
"Department for Business, Energy and Industrial Strategy",The Coal Authority,01/08/2022,Contract Hire Vehicles,PS&S - General Claims,Days Fleet,136046,465.00
"Department for Business, Energy and Industrial Strategy",The Coal Authority,01/08/2022,Contract Hire Vehicles,PS&S - General Claims,Days Fleet,136046,"4,331.98"
"Department for Business, Energy and Industrial Strategy",The Coal Authority,01/09/2022,Contract Hire Vehicles,Facilities,Harveys Autocentre Ltd,136268,210.00
"Department for Business, Energy and Industrial Strategy",The Coal Authority,01/08/2022,Contract Hire Vehicles,Facilities,Harveys Autocentre Ltd,136269,210.00
"Department for Business, Energy and Industrial Strategy",The Coal Authority,30/08/2022,Contract Hire Vehicles,PS&S - General Claims,Kinto UK Limited,136401,29.52
"Department for Business, Energy and Industrial Strategy",The Coal Authority,30/08/2022,Contract Hire Vehicles,PS&S - General Claims,Kinto UK Limited,136401,51.78
"Department for Business, Energy and Industrial Strategy",The Coal Authority,30/08/2022,Contract Hire Vehicles,PS&S - General Claims,Kinto UK Limited,136401,295.15
"Department for Business, Energy and Industrial Strategy",The Coal Authority,01/09/2022,Contract Hire Vehicles,Tips Response,Days Fleet,137143,"5,877.16"
"Department for Business, Energy and Industrial Strategy",The Coal Authority,01/09/2022,Contract Hire Vehicles,Tips Response,Days Fleet,137143,"1,038.00"
"Department for Business, Energy and Industrial Strategy",The Coal Authority,29/06/2022,CY - Fix & Fit (Bought) - Additions,Facilities,BCQ Group LTD,136103,"5,789.00"
"Department for Business, Energy and Industrial Strategy",The Coal Authority,31/08/2022,CY - Fix & Fit (Bought) - Additions,Facilities,Regent Office Care Ltd T/A Regent Samsic,136784,341.55
"Department for Business, Energy and Industrial Strategy",The Coal Authority,01/07/2022,CY - Intangible IT - Additions,DIG - Technical Delivery,Cgi It Uk Ltd,135916,"21,899.00"
"Department for Business, Energy and Industrial Strategy",The Coal Authority,01/07/2022,CY - Intangible IT - Additions,DIG - Technical Delivery,Cgi It Uk Ltd,135916,"9,208.38"
"Department for Business, Energy and Industrial Strategy",The Coal Authority,01/09/2022,CY - Minewater Scheme - Additions,ENV - Projects & Delivery,J N Bentley Limited,135964,"4,004.85"
"Department for Business, Energy and Industrial Strategy",The Coal Authority,01/09/2022,CY - Minewater Scheme - Additions,ENV - Projects & Delivery,J N Bentley Limited,135964,"1,000.01"
"Department for Business, Energy and Industrial Strategy",The Coal Authority,01/09/2022,CY - Minewater Scheme - Additions,ENV - Projects & Delivery,J N Bentley Limited,135964,0.01
"Department for Business, Energy and Industrial Strategy",The Coal Authority,04/09/2022,CY - Minewater Scheme - Additions,ENV - Projects & Delivery,J N Bentley Limited,135965,"42,948.96"
"Department for Business, Energy and Industrial Strategy",The Coal Authority,06/09/2022,CY - Minewater Scheme - Additions,ENV - Projects & Delivery,J N Bentley Limited,135966,"-5,004.87"
"Department for Business, Energy and Industrial Strategy",The Coal Authority,01/09/2022,CY - Minewater Scheme - Additions,ENV - Projects & Delivery,J N Bentley Limited,135971,"5,004.87"
"Department for Business, Energy and Industrial Strategy",The Coal Authority,06/09/2022,CY - Minewater Scheme - Additions,ENV - Projects & Delivery,J N Bentley Limited,135972,"-5,004.87"
"Department for Business, Energy and Industrial Strategy",The Coal Authority,01/09/2022,CY - Minewater Scheme - Additions,ENV - Projects & Delivery,J N Bentley Limited,135973,"5,004.86"
"Department for Business, Energy and Industrial Strategy",The Coal Authority,01/09/2022,CY - Minewater Scheme - Additions,ENV - Projects & Delivery,J N Bentley Limited,135973,0.01
"Department for Business, Energy and Industrial Strategy",The Coal Authority,02/09/2022,CY - Minewater Scheme - Additions,ENV - Projects & Delivery,J N Bentley Limited,135992,"44,114.08"
"Department for Business, Energy and Industrial Strategy",The Coal Authority,26/08/2022,CY - Minewater Scheme - Additions,ENV - Projects & Delivery,Turner and Townsend Project Management Ltd.,135993,"2,466.80"
"Department for Business, Energy and Industrial Strategy",The Coal Authority,26/08/2022,CY - Minewater Scheme - Additions,ENV - Projects & Delivery,Turner and Townsend Project Management Ltd.,135993,512.48
"Department for Business, Energy and Industrial Strategy",The Coal Authority,26/08/2022,CY - Minewater Scheme - Additions,ENV - Projects & Delivery,Turner and Townsend Project Management Ltd.,135993,0.01
"Department for Business, Energy and Industrial Strategy",The Coal Authority,30/08/2022,CY - Minewater Scheme - Additions,ENV - Projects & Delivery,Turner and Townsend Project Management Ltd.,135994,"7,484.46"
"Department for Business, Energy and Industrial Strategy",The Coal Authority,30/08/2022,CY - Minewater Scheme - Additions,ENV - Projects & Delivery,Turner and Townsend Project Management Ltd.,135994,"3,375.00"
"Department for Business, Energy and Industrial Strategy",The Coal Authority,30/08/2022,CY - Minewater Scheme - Additions,ENV - Projects & Delivery,Turner and Townsend Project Management Ltd.,135994,"1,955.00"
"Department for Business, Energy and Industrial Strategy",The Coal Authority,30/08/2022,CY - Minewater Scheme - Additions,ENV - Projects & Delivery,Turner and Townsend Project Management Ltd.,135994,"7,523.75"
"Department for Business, Energy and Industrial Strategy",The Coal Authority,05/09/2022,CY - Minewater Scheme - Additions,ENV - Projects & Delivery,WSP UK Ltd,136060,"21,855.00"
"Department for Business, Energy and Industrial Strategy",The Coal Authority,14/07/2022,CY - Minewater Scheme - Additions,ENV - Projects & Delivery,Kier Integrated Services Limited,136287,"1,927.29"
"Department for Business, Energy and Industrial Strategy",The Coal Authority,30/08/2022,CY - Minewater Scheme - Additions,ENV - Mine Water Operations,Hydro-Logic Services Int Limited,136293,"2,085.00"
"Department for Business, Energy and Industrial Strategy",The Coal Authority,06/09/2022,CY - Minewater Scheme - Additions,ENV - Projects & Delivery,AECOM Ltd,136294,"1,371.05"
"Department for Business, Energy and Industrial Strategy",The Coal Authority,06/09/2022,CY - Minewater Scheme - Additions,ENV - Projects & Delivery,AECOM Ltd,136294,157.50
"Department for Business, Energy and Industrial Strategy",The Coal Authority,21/06/2022,CY - Minewater Scheme - Additions,ENV - Projects & Delivery,Turner and Townsend Project Management Ltd.,136296,"2,352.00"
"Department for Business, Energy and Industrial Strategy",The Coal Authority,21/06/2022,CY - Minewater Scheme - Additions,ENV - Projects & Delivery,Turner and Townsend Project Management Ltd.,136296,"4,462.78"
"Department for Business, Energy and Industrial Strategy",The Coal Authority,31/07/2022,CY - Minewater Scheme - Additions,ENV - Projects & Delivery,Southbay Civil Engineering Limited,136302,"9,744.00"
"Department for Business, Energy and Industrial Strategy",The Coal Authority,14/09/2022,CY - Minewater Scheme - Additions,ENV - Projects & Delivery,AECOM Ltd,136773,"3,387.30"
"Department for Business, Energy and Industrial Strategy",The Coal Authority,26/07/2022,CY - Minewater Scheme - Additions,ENV - Mine Water Operations,Hydro-Logic Services Int Limited,136838,"1,252.00"
"Department for Business, Energy and Industrial Strategy",The Coal Authority,13/09/2022,CY - Minewater Scheme - Additions,ENV - Projects & Delivery,JBA Bentley Ltd,136893,"147,959.94"
"Department for Business, Energy and Industrial Strategy",The Coal Authority,13/09/2022,CY - Minewater Scheme - Additions,ENV - Projects & Delivery,JBA Bentley Ltd,136893,"8,752.18"
"Department for Business, Energy and Industrial Strategy",The Coal Authority,08/08/2022,CY - Minewater Scheme - Additions,ENV - Projects & Delivery,Seymour Civil Engineering Contractors Ltd,136911,67.41
"Department for Business, Energy and Industrial Strategy",The Coal Authority,08/08/2022,CY - Minewater Scheme - Additions,ENV - Projects & Delivery,Seymour Civil Engineering Contractors Ltd,136911,"45,287.35"
"Department for Business, Energy and Industrial Strategy",The Coal Authority,08/08/2022,CY - Minewater Scheme - Additions,ENV - Projects & Delivery,Seymour Civil Engineering Contractors Ltd,136911,"72,123.17"
"Department for Business, Energy and Industrial Strategy",The Coal Authority,22/08/2022,CY - Minewater Scheme - Additions,ENV - Projects & Delivery,Seymour Civil Engineering Contractors Ltd,136912,"12,174.94"
"Department for Business, Energy and Industrial Strategy",The Coal Authority,22/08/2022,CY - Minewater Scheme - Additions,ENV - Projects & Delivery,Seymour Civil Engineering Contractors Ltd,136912,"3,870.89"
"Department for Business, Energy and Industrial Strategy",The Coal Authority,22/08/2022,CY - Minewater Scheme - Additions,ENV - Projects & Delivery,Seymour Civil Engineering Contractors Ltd,136912,"6,025.76"
"Department for Business, Energy and Industrial Strategy",The Coal Authority,22/08/2022,CY - Minewater Scheme - Additions,ENV - Projects & Delivery,Seymour Civil Engineering Contractors Ltd,136912,"3,952.88"
"Department for Business, Energy and Industrial Strategy",The Coal Authority,22/08/2022,CY - Minewater Scheme - Additions,ENV - Projects & Delivery,Seymour Civil Engineering Contractors Ltd,136912,"4,689.62"
"Department for Business, Energy and Industrial Strategy",The Coal Authority,22/08/2022,CY - Minewater Scheme - Additions,ENV - Projects & Delivery,Seymour Civil Engineering Contractors Ltd,136912,"4,696.69"
"Department for Business, Energy and Industrial Strategy",The Coal Authority,22/08/2022,CY - Minewater Scheme - Additions,ENV - Projects & Delivery,Seymour Civil Engineering Contractors Ltd,136912,"7,724.05"
"Department for Business, Energy and Industrial Strategy",The Coal Authority,22/08/2022,CY - Minewater Scheme - Additions,ENV - Projects & Delivery,Seymour Civil Engineering Contractors Ltd,136912,692.88
"Department for Business, Energy and Industrial Strategy",The Coal Authority,22/08/2022,CY - Minewater Scheme - Additions,ENV - Projects & Delivery,Seymour Civil Engineering Contractors Ltd,136912,"3,540.74"
"Department for Business, Energy and Industrial Strategy",The Coal Authority,22/08/2022,CY - Minewater Scheme - Additions,ENV - Projects & Delivery,Seymour Civil Engineering Contractors Ltd,136912,"14,605.66"
"Department for Business, Energy and Industrial Strategy",The Coal Authority,22/08/2022,CY - Minewater Scheme - Additions,ENV - Projects & Delivery,Seymour Civil Engineering Contractors Ltd,136912,"9,821.23"
"Department for Business, Energy and Industrial Strategy",The Coal Authority,22/08/2022,CY - Minewater Scheme - Additions,ENV - Projects & Delivery,Seymour Civil Engineering Contractors Ltd,136912,"2,038.58"
"Department for Business, Energy and Industrial Strategy",The Coal Authority,22/08/2022,CY - Minewater Scheme - Additions,ENV - Projects & Delivery,Seymour Civil Engineering Contractors Ltd,136912,"2,445.24"
"Department for Business, Energy and Industrial Strategy",The Coal Authority,22/08/2022,CY - Minewater Scheme - Additions,ENV - Projects & Delivery,Seymour Civil Engineering Contractors Ltd,136912,"16,096.55"
"Department for Business, Energy and Industrial Strategy",The Coal Authority,22/08/2022,CY - Minewater Scheme - Additions,ENV - Projects & Delivery,Seymour Civil Engineering Contractors Ltd,136912,"5,562.07"
"Department for Business, Energy and Industrial Strategy",The Coal Authority,22/08/2022,CY - Minewater Scheme - Additions,ENV - Projects & Delivery,Seymour Civil Engineering Contractors Ltd,136912,"31,814.65"
"Department for Business, Energy and Industrial Strategy",The Coal Authority,22/08/2022,CY - Minewater Scheme - Additions,ENV - Projects & Delivery,Seymour Civil Engineering Contractors Ltd,136912,"2,291.79"
"Department for Business, Energy and Industrial Strategy",The Coal Authority,01/09/2022,CY - Minewater Scheme - Additions,ENV - Projects & Delivery,Seymour Civil Engineering Contractors Ltd,136930,"11,714.87"
"Department for Business, Energy and Industrial Strategy",The Coal Authority,01/09/2022,CY - Minewater Scheme - Additions,ENV - Projects & Delivery,Seymour Civil Engineering Contractors Ltd,136930,0.10
"Department for Business, Energy and Industrial Strategy",The Coal Authority,01/09/2022,CY - Minewater Scheme - Additions,ENV - Projects & Delivery,Seymour Civil Engineering Contractors Ltd,136931,0.10
"Department for Business, Energy and Industrial Strategy",The Coal Authority,01/09/2022,CY - Minewater Scheme - Additions,ENV - Projects & Delivery,Seymour Civil Engineering Contractors Ltd,136931,"11,714.87"
"Department for Business, Energy and Industrial Strategy",The Coal Authority,20/09/2022,CY - Minewater Scheme - Additions,ENV - Projects & Delivery,Seymour Civil Engineering Contractors Ltd,136932,-0.10
"Department for Business, Energy and Industrial Strategy",The Coal Authority,20/09/2022,CY - Minewater Scheme - Additions,ENV - Projects & Delivery,Seymour Civil Engineering Contractors Ltd,136932,"-11,714.87"
"Department for Business, Energy and Industrial Strategy",The Coal Authority,20/09/2022,CY - Minewater Scheme - Additions,ENV - Projects & Delivery,AECOM Ltd,137097,"2,903.40"
"Department for Business, Energy and Industrial Strategy",The Coal Authority,14/09/2022,CY - Minewater Scheme - Additions,ENV - Mine Water Operations,Severn Trent Serv Ops Uk Ltd,137147,258.33
"Department for Business, Energy and Industrial Strategy",The Coal Authority,14/09/2022,CY - Minewater Scheme - Additions,ENV - Mine Water Operations,Severn Trent Serv Ops Uk Ltd,137147,"4,450.44"
"Department for Business, Energy and Industrial Strategy",The Coal Authority,14/09/2022,CY - Minewater Scheme - Additions,ENV - Mine Water Operations,Severn Trent Serv Ops Uk Ltd,137147,"22,743.75"
"Department for Business, Energy and Industrial Strategy",The Coal Authority,14/09/2022,CY - Minewater Scheme - Additions,ENV - Mine Water Operations,Severn Trent Serv Ops Uk Ltd,137147,"2,060.03"
"Department for Business, Energy and Industrial Strategy",The Coal Authority,14/09/2022,CY - Minewater Scheme - Additions,ENV - Mine Water Operations,Severn Trent Serv Ops Uk Ltd,137147,"2,133.37"
"Department for Business, Energy and Industrial Strategy",The Coal Authority,14/09/2022,CY - Minewater Scheme - Additions,ENV - Mine Water Operations,Severn Trent Serv Ops Uk Ltd,137147,362.32
"Department for Business, Energy and Industrial Strategy",The Coal Authority,14/09/2022,CY - Minewater Scheme - Additions,ENV - Mine Water Operations,Severn Trent Serv Ops Uk Ltd,137147,"15,736.63"
"Department for Business, Energy and Industrial Strategy",The Coal Authority,14/09/2022,CY - Minewater Scheme - Additions,ENV - Mine Water Operations,Severn Trent Serv Ops Uk Ltd,137147,"2,754.37"
"Department for Business, Energy and Industrial Strategy",The Coal Authority,14/09/2022,CY - Minewater Scheme - Additions,ENV - Mine Water Operations,Severn Trent Serv Ops Uk Ltd,137147,"40,743.01"
"Department for Business, Energy and Industrial Strategy",The Coal Authority,14/09/2022,CY - Minewater Scheme - Additions,ENV - Mine Water Operations,Severn Trent Serv Ops Uk Ltd,137147,253.85
"Department for Business, Energy and Industrial Strategy",The Coal Authority,14/09/2022,CY - Minewater Scheme - Additions,ENV - Mine Water Operations,Severn Trent Serv Ops Uk Ltd,137147,190.30
"Department for Business, Energy and Industrial Strategy",The Coal Authority,14/09/2022,CY - Minewater Scheme - Additions,ENV - Mine Water Operations,Severn Trent Serv Ops Uk Ltd,137147,"1,034.50"
"Department for Business, Energy and Industrial Strategy",The Coal Authority,14/09/2022,CY - Minewater Scheme - Additions,ENV - Mine Water Operations,Severn Trent Serv Ops Uk Ltd,137147,"5,250.32"
"Department for Business, Energy and Industrial Strategy",The Coal Authority,14/09/2022,CY - Minewater Scheme - Additions,ENV - Mine Water Operations,Severn Trent Serv Ops Uk Ltd,137147,"11,355.36"
"Department for Business, Energy and Industrial Strategy",The Coal Authority,14/09/2022,CY - Minewater Scheme - Additions,ENV - Mine Water Operations,Severn Trent Serv Ops Uk Ltd,137147,757.05
"Department for Business, Energy and Industrial Strategy",The Coal Authority,14/09/2022,CY - Minewater Scheme - Additions,ENV - Mine Water Operations,Severn Trent Serv Ops Uk Ltd,137147,155.46
"Department for Business, Energy and Industrial Strategy",The Coal Authority,14/09/2022,CY - Minewater Scheme - Additions,ENV - Mine Water Operations,Severn Trent Serv Ops Uk Ltd,137147,193.75
"Department for Business, Energy and Industrial Strategy",The Coal Authority,14/09/2022,CY - Minewater Scheme - Additions,ENV - Mine Water Operations,Severn Trent Serv Ops Uk Ltd,137147,"55,471.62"
"Department for Business, Energy and Industrial Strategy",The Coal Authority,14/09/2022,CY - Minewater Scheme - Additions,ENV - Mine Water Operations,Severn Trent Serv Ops Uk Ltd,137147,"1,603.83"
"Department for Business, Energy and Industrial Strategy",The Coal Authority,14/09/2022,CY - Minewater Scheme - Additions,ENV - Mine Water Operations,Severn Trent Serv Ops Uk Ltd,137147,258.33
"Department for Business, Energy and Industrial Strategy",The Coal Authority,14/09/2022,CY - Minewater Scheme - Additions,ENV - Mine Water Operations,Severn Trent Serv Ops Uk Ltd,137147,"2,948.72"
"Department for Business, Energy and Industrial Strategy",The Coal Authority,14/09/2022,CY - Minewater Scheme - Additions,ENV - Mine Water Operations,Severn Trent Serv Ops Uk Ltd,137147,"3,958.77"
"Department for Business, Energy and Industrial Strategy",The Coal Authority,14/09/2022,CY - Minewater Scheme - Additions,ENV - Mine Water Operations,Severn Trent Serv Ops Uk Ltd,137147,"39,501.57"
"Department for Business, Energy and Industrial Strategy",The Coal Authority,14/09/2022,CY - Minewater Scheme - Additions,ENV - Mine Water Operations,Severn Trent Serv Ops Uk Ltd,137147,15.04
"Department for Business, Energy and Industrial Strategy",The Coal Authority,14/09/2022,CY - Minewater Scheme - Additions,ENV - Mine Water Operations,Severn Trent Serv Ops Uk Ltd,137147,21.55
"Department for Business, Energy and Industrial Strategy",The Coal Authority,14/09/2022,CY - Minewater Scheme - Additions,ENV - Mine Water Operations,Severn Trent Serv Ops Uk Ltd,137147,"39,204.05"
"Department for Business, Energy and Industrial Strategy",The Coal Authority,14/09/2022,CY - Minewater Scheme - Additions,ENV - Mine Water Operations,Severn Trent Serv Ops Uk Ltd,137147,64.65
"Department for Business, Energy and Industrial Strategy",The Coal Authority,14/09/2022,CY - Minewater Scheme - Additions,ENV - Mine Water Operations,Severn Trent Serv Ops Uk Ltd,137147,"84,939.55"
"Department for Business, Energy and Industrial Strategy",The Coal Authority,14/09/2022,CY - Minewater Scheme - Additions,ENV - Mine Water Operations,Severn Trent Serv Ops Uk Ltd,137147,132.50
"Department for Business, Energy and Industrial Strategy",The Coal Authority,14/09/2022,CY - Minewater Scheme - Additions,ENV - Mine Water Operations,Severn Trent Serv Ops Uk Ltd,137147,"12,358.43"
"Department for Business, Energy and Industrial Strategy",The Coal Authority,14/09/2022,CY - Minewater Scheme - Additions,ENV - Mine Water Operations,Severn Trent Serv Ops Uk Ltd,137147,71.82
"Department for Business, Energy and Industrial Strategy",The Coal Authority,14/09/2022,CY - Minewater Scheme - Additions,ENV - Mine Water Operations,Severn Trent Serv Ops Uk Ltd,137147,"2,526.70"
"Department for Business, Energy and Industrial Strategy",The Coal Authority,14/09/2022,CY - Minewater Scheme - Additions,ENV - Mine Water Operations,Severn Trent Serv Ops Uk Ltd,137147,"8,987.99"
"Department for Business, Energy and Industrial Strategy",The Coal Authority,14/09/2022,CY - Minewater Scheme - Additions,ENV - Mine Water Operations,Severn Trent Serv Ops Uk Ltd,137147,"5,096.47"
"Department for Business, Energy and Industrial Strategy",The Coal Authority,14/09/2022,CY - Minewater Scheme - Additions,ENV - Mine Water Operations,Severn Trent Serv Ops Uk Ltd,137147,"2,307.59"
"Department for Business, Energy and Industrial Strategy",The Coal Authority,14/09/2022,CY - Minewater Scheme - Additions,ENV - Projects & Delivery,Severn Trent Serv Ops Uk Ltd,137147,64.58
"Department for Business, Energy and Industrial Strategy",The Coal Authority,14/09/2022,CY - Minewater Scheme - Additions,ENV - Projects & Delivery,Severn Trent Serv Ops Uk Ltd,137147,154.69
"Department for Business, Energy and Industrial Strategy",The Coal Authority,14/09/2022,CY - Minewater Scheme - Additions,ENV - Projects & Delivery,Severn Trent Serv Ops Uk Ltd,137147,669.35
"Department for Business, Energy and Industrial Strategy",The Coal Authority,14/09/2022,CY - Minewater Scheme - Additions,ENV - Projects & Delivery,Severn Trent Serv Ops Uk Ltd,137147,367.60
"Department for Business, Energy and Industrial Strategy",The Coal Authority,14/09/2022,CY - Minewater Scheme - Additions,ENV - Projects & Delivery,Severn Trent Serv Ops Uk Ltd,137147,"4,857.30"
"Department for Business, Energy and Industrial Strategy",The Coal Authority,14/09/2022,CY - Minewater Scheme - Additions,ENV - Projects & Delivery,Severn Trent Serv Ops Uk Ltd,137147,"1,908.56"
"Department for Business, Energy and Industrial Strategy",The Coal Authority,01/07/2022,CY - Minewater Scheme - Additions,ENV - Projects & Delivery,AECOM Ltd,137279,"3,225.96"
"Department for Business, Energy and Industrial Strategy",The Coal Authority,01/07/2022,CY - Minewater Scheme - Additions,ENV - Projects & Delivery,AECOM Ltd,137279,"3,857.64"
"Department for Business, Energy and Industrial Strategy",The Coal Authority,01/07/2022,CY - Minewater Scheme - Additions,ENV - Projects & Delivery,AECOM Ltd,137279,330.00
"Department for Business, Energy and Industrial Strategy",The Coal Authority,09/06/2022,CY - Minewater Scheme - Additions,ENV - Projects & Delivery,AECOM Ltd,137280,"4,301.28"
"Department for Business, Energy and Industrial Strategy",The Coal Authority,09/06/2022,CY - Minewater Scheme - Additions,ENV - Projects & Delivery,AECOM Ltd,137280,"2,675.46"
"Department for Business, Energy and Industrial Strategy",The Coal Authority,09/06/2022,CY - Minewater Scheme - Additions,ENV - Projects & Delivery,AECOM Ltd,137280,165.00
"Department for Business, Energy and Industrial Strategy",The Coal Authority,09/06/2022,CY - Minewater Scheme - Additions,ENV - Projects & Delivery,AECOM Ltd,137280,225.44
"Department for Business, Energy and Industrial Strategy",The Coal Authority,09/06/2022,CY - Minewater Scheme - Additions,ENV - Projects & Delivery,AECOM Ltd,137280,93.28
"Department for Business, Energy and Industrial Strategy",The Coal Authority,09/06/2022,CY - Minewater Scheme - Additions,ENV - Projects & Delivery,AECOM Ltd,137280,0.01
"Department for Business, Energy and Industrial Strategy",The Coal Authority,16/09/2022,CY - Minewater Scheme - Additions,ENV - Projects & Delivery,Kier Integrated Services Limited,137287,"20,880.10"
"Department for Business, Energy and Industrial Strategy",The Coal Authority,16/09/2022,CY - Minewater Scheme - Additions,ENV - Projects & Delivery,Kier Integrated Services Limited,137287,"2,993.30"
"Department for Business, Energy and Industrial Strategy",The Coal Authority,16/09/2022,CY - Minewater Scheme - Additions,ENV - Projects & Delivery,Kier Integrated Services Limited,137287,"2,530.49"
"Department for Business, Energy and Industrial Strategy",The Coal Authority,13/09/2022,CY - Minewater Scheme - Additions,ENV - Projects & Delivery,AECOM Ltd,137398,"1,613.00"
"Department for Business, Energy and Industrial Strategy",The Coal Authority,13/09/2022,CY - Minewater Scheme - Additions,ENV - Projects & Delivery,AECOM Ltd,137398,"2,488.80"
"Department for Business, Energy and Industrial Strategy",The Coal Authority,13/09/2022,CY - Minewater Scheme - Additions,ENV - Projects & Delivery,AECOM Ltd,137398,315.00
"Department for Business, Energy and Industrial Strategy",The Coal Authority,13/09/2022,CY - Minewater Scheme - Additions,ENV - Projects & Delivery,AECOM Ltd,137398,205.02
"Department for Business, Energy and Industrial Strategy",The Coal Authority,13/09/2022,CY - Minewater Scheme - Additions,ENV - Projects & Delivery,AECOM Ltd,137398,"1,613.00"
"Department for Business, Energy and Industrial Strategy",The Coal Authority,01/09/2022,CY - Minewater Scheme - Additions,ENV - Projects & Delivery,J N Bentley Limited,137621,"11,042.99"
"Department for Business, Energy and Industrial Strategy",The Coal Authority,01/09/2022,CY - Minewater Scheme - Additions,ENV - Projects & Delivery,J N Bentley Limited,137621,145.14
"Department for Business, Energy and Industrial Strategy",The Coal Authority,01/09/2022,CY - Minewater Scheme - Additions,ENV - Projects & Delivery,J N Bentley Limited,137621,"54,266.17"
"Department for Business, Energy and Industrial Strategy",The Coal Authority,01/09/2022,CY - Minewater Scheme - Additions,ENV - Projects & Delivery,J N Bentley Limited,137621,"11,985.50"
"Department for Business, Energy and Industrial Strategy",The Coal Authority,01/09/2022,CY - Minewater Scheme - Additions,ENV - Projects & Delivery,J N Bentley Limited,137621,"4,690.35"
"Department for Business, Energy and Industrial Strategy",The Coal Authority,01/09/2022,CY - Minewater Scheme - Additions,ENV - Projects & Delivery,J N Bentley Limited,137621,"4,694.02"
"Department for Business, Energy and Industrial Strategy",The Coal Authority,01/09/2022,CY - Minewater Scheme - Additions,ENV - Projects & Delivery,J N Bentley Limited,137621,"1,182.65"
"Department for Business, Energy and Industrial Strategy",The Coal Authority,01/09/2022,CY - Minewater Scheme - Additions,ENV - Projects & Delivery,J N Bentley Limited,137621,"3,263.14"
"Department for Business, Energy and Industrial Strategy",The Coal Authority,01/09/2022,CY - Minewater Scheme - Additions,ENV - Projects & Delivery,J N Bentley Limited,137621,"14,339.70"
"Department for Business, Energy and Industrial Strategy",The Coal Authority,01/09/2022,CY - Minewater Scheme - Additions,ENV - Projects & Delivery,J N Bentley Limited,137621,"11,771.73"
"Department for Business, Energy and Industrial Strategy",The Coal Authority,27/09/2022,CY - Minewater Scheme - Additions,ENV - Projects & Delivery,AECOM Ltd,137631,294.00
"Department for Business, Energy and Industrial Strategy",The Coal Authority,27/09/2022,CY - Minewater Scheme - Additions,ENV - Projects & Delivery,AECOM Ltd,137631,"1,156.87"
"Department for Business, Energy and Industrial Strategy",The Coal Authority,28/09/2022,CY - Minewater Scheme - Additions,ENV - Projects & Delivery,Turner and Townsend Project Management Ltd.,137729,256.24
"Department for Business, Energy and Industrial Strategy",The Coal Authority,28/09/2022,CY - Minewater Scheme - Additions,ENV - Projects & Delivery,Turner and Townsend Project Management Ltd.,137729,"1,665.09"
"Department for Business, Energy and Industrial Strategy",The Coal Authority,28/09/2022,CY - Minewater Scheme - Additions,ENV - Projects & Delivery,Turner and Townsend Project Management Ltd.,137729,0.01
"Department for Business, Energy and Industrial Strategy",The Coal Authority,12/09/2022,CY - Minewater Scheme - Additions,ENV - Projects & Delivery,George Leslie Limited,137771,"15,523.52"
"Department for Business, Energy and Industrial Strategy",The Coal Authority,12/09/2022,CY - Minewater Scheme - Additions,ENV - Projects & Delivery,George Leslie Limited,137771,"36,503.55"
"Department for Business, Energy and Industrial Strategy",The Coal Authority,28/09/2022,CY - Minewater Scheme - Additions,ENV - Projects & Delivery,George Leslie Limited,137772,"3,982.86"
"Department for Business, Energy and Industrial Strategy",The Coal Authority,24/08/2022,CY - Non-coal Minewater - Additions,DEFRA LEP Funding,Turner and Townsend Project Management Ltd.,135857,"5,387.70"
"Department for Business, Energy and Industrial Strategy",The Coal Authority,30/08/2022,CY - Non-coal Minewater - Additions,NRW Metal Mine Programme,Hydro-Logic Services Int Limited,135858,825.78
"Department for Business, Energy and Industrial Strategy",The Coal Authority,30/08/2022,CY - Non-coal Minewater - Additions,DEFRA LEP Funding,Aecom Infrastructure & Env,136010,"6,684.79"
"Department for Business, Energy and Industrial Strategy",The Coal Authority,30/08/2022,CY - Non-coal Minewater - Additions,DEFRA LEP Funding,Aecom Infrastructure & Env,136010,143.36
"Department for Business, Energy and Industrial Strategy",The Coal Authority,30/08/2022,CY - Non-coal Minewater - Additions,DEFRA LEP Funding,Aecom Infrastructure & Env,136010,"5,371.30"
"Department for Business, Energy and Industrial Strategy",The Coal Authority,31/08/2022,CY - Non-coal Minewater - Additions,DEFRA LEP Funding,Tyne Rivers Trust,136021,"20,000.00"
"Department for Business, Energy and Industrial Strategy",The Coal Authority,31/08/2022,CY - Non-coal Minewater - Additions,DEFRA LEP Funding,Tyne Rivers Trust,136025,"2,861.60"
"Department for Business, Energy and Industrial Strategy",The Coal Authority,06/09/2022,CY - Non-coal Minewater - Additions,DEFRA Metal Mine Programme,John F Hunt Regeneration Ltd,136047,"8,848.83"
"Department for Business, Energy and Industrial Strategy",The Coal Authority,01/09/2022,CY - Non-coal Minewater - Additions,DEFRA LEP Funding,H T Media Ltd,136530,"3,028.60"
"Department for Business, Energy and Industrial Strategy",The Coal Authority,25/05/2022,CY - Non-coal Minewater - Additions,DEFRA Metal Mine Programme,Hydro-Logic Services Int Limited,136536,"2,658.00"
"Department for Business, Energy and Industrial Strategy",The Coal Authority,07/06/2022,CY - Non-coal Minewater - Additions,DEFRA LEP Funding,I & H Brown Limited,136586,"124,106.43"
"Department for Business, Energy and Industrial Strategy",The Coal Authority,07/06/2022,CY - Non-coal Minewater - Additions,DEFRA LEP Funding,I & H Brown Limited,136586,"58,306.09"
"Department for Business, Energy and Industrial Strategy",The Coal Authority,05/07/2022,CY - Non-coal Minewater - Additions,DEFRA LEP Funding,I & H Brown Limited,136598,"262,061.40"
"Department for Business, Energy and Industrial Strategy",The Coal Authority,13/09/2022,CY - Non-coal Minewater - Additions,DEFRA LEP Funding,Aecom Infrastructure & Env,136599,"6,716.86"
"Department for Business, Energy and Industrial Strategy",The Coal Authority,05/08/2022,CY - Non-coal Minewater - Additions,DEFRA LEP Funding,I & H Brown Limited,136600,"429,810.44"
"Department for Business, Energy and Industrial Strategy",The Coal Authority,13/09/2022,CY - Non-coal Minewater - Additions,DEFRA LEP Funding,Aecom Infrastructure & Env,136767,977.20
"Department for Business, Energy and Industrial Strategy",The Coal Authority,13/09/2022,CY - Non-coal Minewater - Additions,DEFRA LEP Funding,Aecom Infrastructure & Env,136767,"4,232.66"
"Department for Business, Energy and Industrial Strategy",The Coal Authority,13/09/2022,CY - Non-coal Minewater - Additions,DEFRA LEP Funding,Aecom Infrastructure & Env,136767,328.14
"Department for Business, Energy and Industrial Strategy",The Coal Authority,13/09/2022,CY - Non-coal Minewater - Additions,DEFRA LEP Funding,Aecom Infrastructure & Env,136767,"1,906.96"
"Department for Business, Energy and Industrial Strategy",The Coal Authority,13/09/2022,CY - Non-coal Minewater - Additions,DEFRA LEP Funding,Aecom Infrastructure & Env,136767,"2,867.58"
"Department for Business, Energy and Industrial Strategy",The Coal Authority,13/09/2022,CY - Non-coal Minewater - Additions,DEFRA LEP Funding,Aecom Infrastructure & Env,136767,"1,176.68"
"Department for Business, Energy and Industrial Strategy",The Coal Authority,13/09/2022,CY - Non-coal Minewater - Additions,DEFRA LEP Funding,Aecom Infrastructure & Env,136767,"3,886.21"
"Department for Business, Energy and Industrial Strategy",The Coal Authority,13/09/2022,CY - Non-coal Minewater - Additions,DEFRA LEP Funding,Aecom Infrastructure & Env,136767,"3,658.93"
"Department for Business, Energy and Industrial Strategy",The Coal Authority,13/09/2022,CY - Non-coal Minewater - Additions,DEFRA LEP Funding,Aecom Infrastructure & Env,136767,"2,448.65"
"Department for Business, Energy and Industrial Strategy",The Coal Authority,13/09/2022,CY - Non-coal Minewater - Additions,DEFRA LEP Funding,Aecom Infrastructure & Env,136767,835.42
"Department for Business, Energy and Industrial Strategy",The Coal Authority,13/09/2022,CY - Non-coal Minewater - Additions,DEFRA LEP Funding,Aecom Infrastructure & Env,136767,"2,708.33"
"Department for Business, Energy and Industrial Strategy",The Coal Authority,13/09/2022,CY - Non-coal Minewater - Additions,DEFRA LEP Funding,Aecom Infrastructure & Env,136767,950.00
"Department for Business, Energy and Industrial Strategy",The Coal Authority,13/09/2022,CY - Non-coal Minewater - Additions,DEFRA LEP Funding,Aecom Infrastructure & Env,136767,791.25
"Department for Business, Energy and Industrial Strategy",The Coal Authority,01/09/2022,CY - Non-coal Minewater - Additions,DEFRA Metal Mine Programme,Galliford Try Construction Limited,136825,"238,236.17"
"Department for Business, Energy and Industrial Strategy",The Coal Authority,01/09/2022,CY - Non-coal Minewater - Additions,DEFRA Metal Mine Programme,Galliford Try Construction Limited,136825,"16,643.47"
"Department for Business, Energy and Industrial Strategy",The Coal Authority,30/08/2022,CY - Non-coal Minewater - Additions,DEFRA LEP Funding,I & H Brown Limited,136872,"380,089.07"
"Department for Business, Energy and Industrial Strategy",The Coal Authority,09/08/2022,CY - Non-coal Minewater - Additions,DEFRA Metal Mine Programme,Galliford Try Construction Limited,136890,"3,849.01"
"Department for Business, Energy and Industrial Strategy",The Coal Authority,15/09/2022,CY - Non-coal Minewater - Additions,DEFRA LEP Funding,H & H Land And Property Ltd,136918,567.42
"Department for Business, Energy and Industrial Strategy",The Coal Authority,31/08/2022,CY - Non-coal Minewater - Additions,DEFRA LEP Funding,Enviro Centre,137112,"1,777.50"
"Department for Business, Energy and Industrial Strategy",The Coal Authority,14/09/2022,CY - Non-coal Minewater - Additions,DEFRA Metal Mine Programme,Severn Trent Serv Ops Uk Ltd,137138,724.84
"Department for Business, Energy and Industrial Strategy",The Coal Authority,23/09/2022,CY - Non-coal Minewater - Additions,DEFRA LEP Funding,J N Bentley Limited,137574,"33,073.26"
"Department for Business, Energy and Industrial Strategy",The Coal Authority,25/08/2022,CY - Software Licences - Additions,ENV - Mine Water Operations,Schneider Electric Systems UK Ltd,136114,679.80
"Department for Business, Energy and Industrial Strategy",The Coal Authority,25/07/2022,CY - Subsidence Pumping - Additions,ENV - Projects & Delivery,ECS Engineering Services,135986,"21,500.00"
"Department for Business, Energy and Industrial Strategy",The Coal Authority,25/07/2022,CY - Subsidence Pumping - Additions,ENV - Projects & Delivery,ECS Engineering Services,135986,"3,564.80"
"Department for Business, Energy and Industrial Strategy",The Coal Authority,25/07/2022,CY - Subsidence Pumping - Additions,ENV - Projects & Delivery,ECS Engineering Services,135986,"23,426.00"
"Department for Business, Energy and Industrial Strategy",The Coal Authority,25/07/2022,CY - Subsidence Pumping - Additions,ENV - Projects & Delivery,ECS Engineering Services,135986,"4,000.00"
"Department for Business, Energy and Industrial Strategy",The Coal Authority,25/07/2022,CY - Subsidence Pumping - Additions,ENV - Projects & Delivery,ECS Engineering Services,135986,953.22
"Department for Business, Energy and Industrial Strategy",The Coal Authority,25/07/2022,CY - Subsidence Pumping - Additions,ENV - Projects & Delivery,ECS Engineering Services,135986,"1,765.79"
"Department for Business, Energy and Industrial Strategy",The Coal Authority,30/08/2022,CY - Subsidence Pumping - Additions,ENV - Projects & Delivery,AECOM Ltd,136295,"1,478.57"
"Department for Business, Energy and Industrial Strategy",The Coal Authority,14/09/2022,CY - Subsidence Pumping - Additions,ENV - Projects & Delivery,Severn Trent Serv Ops Uk Ltd,137147,"3,440.70"
"Department for Business, Energy and Industrial Strategy",The Coal Authority,28/09/2022,CY - Subsidence Pumping - Additions,ENV - Projects & Delivery,ECS Engineering Services,137769,"4,000.00"
"Department for Business, Energy and Industrial Strategy",The Coal Authority,28/09/2022,CY - Subsidence Pumping - Additions,ENV - Projects & Delivery,ECS Engineering Services,137769,"1,373.20"
"Department for Business, Energy and Industrial Strategy",The Coal Authority,30/08/2022,Disaster Recovery & BCP,Incident & Emergency Response,Government Procurement Card,137737,100.00
"Department for Business, Energy and Industrial Strategy",The Coal Authority,01/09/2022,eCommerce Commission Charges,DEV - Permissions,Worldpay Limited,136272,10.70
"Department for Business, Energy and Industrial Strategy",The Coal Authority,01/09/2022,eCommerce Commission Charges,Customer Services & Strategy,Worldpay Limited,136399,340.06
"Department for Business, Energy and Industrial Strategy",The Coal Authority,31/07/2022,eCommerce Commission Charges,DEV - Permissions,Worldpay,136992,891.85
"Department for Business, Energy and Industrial Strategy",The Coal Authority,31/07/2022,eCommerce Commission Charges,DEV - Permissions,Worldpay,136992,25.00
"Department for Business, Energy and Industrial Strategy",The Coal Authority,31/07/2022,eCommerce Commission Charges,DEV - Planning & Local Authority Liaison,Worldpay,136992,54.14
"Department for Business, Energy and Industrial Strategy",The Coal Authority,31/07/2022,eCommerce Commission Charges,Mining Reports,Worldpay,136992,"1,290.82"
"Department for Business, Energy and Industrial Strategy",The Coal Authority,31/07/2022,eCommerce Commission Charges,Records Management,Worldpay,136992,15.00
"Department for Business, Energy and Industrial Strategy",The Coal Authority,31/08/2022,eCommerce Commission Charges,DEV - Permissions,Worldpay,137699,774.60
"Department for Business, Energy and Industrial Strategy",The Coal Authority,31/08/2022,eCommerce Commission Charges,DEV - Permissions,Worldpay,137699,25.00
"Department for Business, Energy and Industrial Strategy",The Coal Authority,31/08/2022,eCommerce Commission Charges,DEV - Property Management,Worldpay,137699,6.48
"Department for Business, Energy and Industrial Strategy",The Coal Authority,31/08/2022,eCommerce Commission Charges,DIG - Data Licensing,Worldpay,137699,10.99
"Department for Business, Energy and Industrial Strategy",The Coal Authority,31/08/2022,eCommerce Commission Charges,Mining Reports,Worldpay,137699,"1,296.13"
"Department for Business, Energy and Industrial Strategy",The Coal Authority,31/08/2022,eCommerce Commission Charges,Records Management,Worldpay,137699,15.00
"Department for Business, Energy and Industrial Strategy",The Coal Authority,19/08/2022,Electricity Usage,Facilities,IMServ Europe Limited,135893,189.00
"Department for Business, Energy and Industrial Strategy",The Coal Authority,05/09/2022,Electricity Usage,Facilities,Edf Energy,136378,"3,853.59"
"Department for Business, Energy and Industrial Strategy",The Coal Authority,05/09/2022,Electricity Usage,Facilities,Edf Energy,136378,"14,558.34"
"Department for Business, Energy and Industrial Strategy",The Coal Authority,22/08/2022,Electricity Usage,Facilities,IMServ Europe Limited,137517,67.08
"Department for Business, Energy and Industrial Strategy",The Coal Authority,11/09/2022,External Agency / Introduction Fees,People & Organisational Development,Macildowie Associates,137034,757.28
"Department for Business, Energy and Industrial Strategy",The Coal Authority,04/09/2022,External Agency / Introduction Fees,People & Organisational Development,Macildowie Associates,137059,614.60
"Department for Business, Energy and Industrial Strategy",The Coal Authority,04/09/2022,External Agency / Introduction Fees,People & Organisational Development,Macildowie Associates,137060,404.60
"Department for Business, Energy and Industrial Strategy",The Coal Authority,18/09/2022,External Agency / Introduction Fees,People & Organisational Development,Macildowie Associates,137734,790.20
"Department for Business, Energy and Industrial Strategy",The Coal Authority,16/06/2022,Fares - Public Transport,By-Products - Ochre,Government Procurement Card,137445,21.80
"Department for Business, Energy and Industrial Strategy",The Coal Authority,16/06/2022,Fares - Public Transport,By-Products - Ochre,Government Procurement Card,137445,20.70
"Department for Business, Energy and Industrial Strategy",The Coal Authority,03/08/2022,Fares - Public Transport,PS&S - General Claims,Government Procurement Card,137737,5.70
"Department for Business, Energy and Industrial Strategy",The Coal Authority,31/08/2022,Fares - Rail,Finance,Corporate Travel Management North,136846,"1,140.20"
"Department for Business, Energy and Industrial Strategy",The Coal Authority,15/06/2022,Fares - Rail,By-Products - Ochre,Government Procurement Card,137445,48.39
"Department for Business, Energy and Industrial Strategy",The Coal Authority,16/08/2022,Fuel (Vehicle),Tip Management Services,Staff Expenses Control,135750,74.73
"Department for Business, Energy and Industrial Strategy",The Coal Authority,17/08/2022,Fuel (Vehicle),Heat & By-Product Innovation,Staff Expenses Control,135750,65.37
"Department for Business, Energy and Industrial Strategy",The Coal Authority,19/08/2022,Fuel (Vehicle),NRW Metal Mine Programme,Staff Expenses Control,135750,45.67
"Department for Business, Energy and Industrial Strategy",The Coal Authority,01/09/2022,Fuel (Vehicle),ENV - Mine Water Operations,Staff Expenses Control,135750,52.97
"Department for Business, Energy and Industrial Strategy",The Coal Authority,07/09/2022,Fuel (Vehicle),PS&S - General Claims,Allstar Business Solutions Ltd,136245,11.40
"Department for Business, Energy and Industrial Strategy",The Coal Authority,07/09/2022,Fuel (Vehicle),PS&S - General Claims,Allstar Business Solutions Ltd,136245,41.68
"Department for Business, Energy and Industrial Strategy",The Coal Authority,07/09/2022,Fuel (Vehicle),PS&S - General Claims,Allstar Business Solutions Ltd,136245,85.62
"Department for Business, Energy and Industrial Strategy",The Coal Authority,07/09/2022,Fuel (Vehicle),PS&S - General Claims,Allstar Business Solutions Ltd,136245,63.49
"Department for Business, Energy and Industrial Strategy",The Coal Authority,07/09/2022,Fuel (Vehicle),Tips Response,Allstar Business Solutions Ltd,136245,75.67
"Department for Business, Energy and Industrial Strategy",The Coal Authority,07/09/2022,Fuel (Vehicle),Tips Response,Allstar Business Solutions Ltd,136245,52.93
"Department for Business, Energy and Industrial Strategy",The Coal Authority,24/08/2022,Fuel (Vehicle),PS&S - General Claims,Allstar Business Solutions Ltd,136246,65.05
"Department for Business, Energy and Industrial Strategy",The Coal Authority,24/08/2022,Fuel (Vehicle),PS&S - General Claims,Allstar Business Solutions Ltd,136246,74.56
"Department for Business, Energy and Industrial Strategy",The Coal Authority,24/08/2022,Fuel (Vehicle),PS&S - General Claims,Allstar Business Solutions Ltd,136246,51.78
"Department for Business, Energy and Industrial Strategy",The Coal Authority,24/08/2022,Fuel (Vehicle),PS&S - General Claims,Allstar Business Solutions Ltd,136246,9.50
"Department for Business, Energy and Industrial Strategy",The Coal Authority,24/08/2022,Fuel (Vehicle),Tips Response,Allstar Business Solutions Ltd,136246,66.59
"Department for Business, Energy and Industrial Strategy",The Coal Authority,31/08/2022,Fuel (Vehicle),PS&S - General Claims,Allstar Business Solutions Ltd,136247,42.50
"Department for Business, Energy and Industrial Strategy",The Coal Authority,31/08/2022,Fuel (Vehicle),PS&S - General Claims,Allstar Business Solutions Ltd,136247,26.19
"Department for Business, Energy and Industrial Strategy",The Coal Authority,31/08/2022,Fuel (Vehicle),PS&S - General Claims,Allstar Business Solutions Ltd,136247,46.23
"Department for Business, Energy and Industrial Strategy",The Coal Authority,31/08/2022,Fuel (Vehicle),PS&S - General Claims,Allstar Business Solutions Ltd,136247,61.08
"Department for Business, Energy and Industrial Strategy",The Coal Authority,31/08/2022,Fuel (Vehicle),PS&S - General Claims,Allstar Business Solutions Ltd,136247,50.60
"Department for Business, Energy and Industrial Strategy",The Coal Authority,31/08/2022,Fuel (Vehicle),PS&S - General Claims,Allstar Business Solutions Ltd,136247,70.93
"Department for Business, Energy and Industrial Strategy",The Coal Authority,31/08/2022,Fuel (Vehicle),PS&S - General Claims,Allstar Business Solutions Ltd,136247,91.24
"Department for Business, Energy and Industrial Strategy",The Coal Authority,31/08/2022,Fuel (Vehicle),PS&S - General Claims,Allstar Business Solutions Ltd,136247,36.30
"Department for Business, Energy and Industrial Strategy",The Coal Authority,31/08/2022,Fuel (Vehicle),PS&S - General Claims,Allstar Business Solutions Ltd,136247,11.40
"Department for Business, Energy and Industrial Strategy",The Coal Authority,07/09/2022,Fuel (Vehicle),Tips Response,Staff Expenses Control,136363,78.69
"Department for Business, Energy and Industrial Strategy",The Coal Authority,09/09/2022,Fuel (Vehicle),PS&S - Industry Claims,Staff Expenses Control,136363,25.00
"Department for Business, Energy and Industrial Strategy",The Coal Authority,24/08/2022,Fuel (Vehicle),ENV - Projects & Delivery,Allstar Business Solutions Ltd,136516,40.61
"Department for Business, Energy and Industrial Strategy",The Coal Authority,31/08/2022,Fuel (Vehicle),ENV - Projects & Delivery,Allstar Business Solutions Ltd,136517,47.82
"Department for Business, Energy and Industrial Strategy",The Coal Authority,07/09/2022,Fuel (Vehicle),Facilities,Allstar Business Solutions Ltd,136566,41.92
"Department for Business, Energy and Industrial Strategy",The Coal Authority,07/09/2022,Fuel (Vehicle),Facilities,Allstar Business Solutions Ltd,136566,26.67
"Department for Business, Energy and Industrial Strategy",The Coal Authority,07/09/2022,Fuel (Vehicle),Facilities,Allstar Business Solutions Ltd,136566,21.68
"Department for Business, Energy and Industrial Strategy",The Coal Authority,07/09/2022,Fuel (Vehicle),Facilities,Allstar Business Solutions Ltd,136566,1.90
"Department for Business, Energy and Industrial Strategy",The Coal Authority,24/08/2022,Fuel (Vehicle),Facilities,Allstar Business Solutions Ltd,136567,103.41
"Department for Business, Energy and Industrial Strategy",The Coal Authority,24/08/2022,Fuel (Vehicle),Facilities,Allstar Business Solutions Ltd,136567,78.68
"Department for Business, Energy and Industrial Strategy",The Coal Authority,24/08/2022,Fuel (Vehicle),Facilities,Allstar Business Solutions Ltd,136567,53.34
"Department for Business, Energy and Industrial Strategy",The Coal Authority,24/08/2022,Fuel (Vehicle),Facilities,Allstar Business Solutions Ltd,136567,107.66
"Department for Business, Energy and Industrial Strategy",The Coal Authority,24/08/2022,Fuel (Vehicle),Facilities,Allstar Business Solutions Ltd,136567,33.06
"Department for Business, Energy and Industrial Strategy",The Coal Authority,24/08/2022,Fuel (Vehicle),Facilities,Allstar Business Solutions Ltd,136567,59.05
"Department for Business, Energy and Industrial Strategy",The Coal Authority,24/08/2022,Fuel (Vehicle),Facilities,Allstar Business Solutions Ltd,136567,9.50
"Department for Business, Energy and Industrial Strategy",The Coal Authority,31/08/2022,Fuel (Vehicle),Facilities,Allstar Business Solutions Ltd,136568,59.17
"Department for Business, Energy and Industrial Strategy",The Coal Authority,31/08/2022,Fuel (Vehicle),Facilities,Allstar Business Solutions Ltd,136568,68.92
"Department for Business, Energy and Industrial Strategy",The Coal Authority,31/08/2022,Fuel (Vehicle),Facilities,Allstar Business Solutions Ltd,136568,52.41
"Department for Business, Energy and Industrial Strategy",The Coal Authority,31/08/2022,Fuel (Vehicle),Facilities,Allstar Business Solutions Ltd,136568,75.29
"Department for Business, Energy and Industrial Strategy",The Coal Authority,31/08/2022,Fuel (Vehicle),Facilities,Allstar Business Solutions Ltd,136568,91.01
"Department for Business, Energy and Industrial Strategy",The Coal Authority,31/08/2022,Fuel (Vehicle),Facilities,Allstar Business Solutions Ltd,136568,100.00
"Department for Business, Energy and Industrial Strategy",The Coal Authority,31/08/2022,Fuel (Vehicle),Facilities,Allstar Business Solutions Ltd,136568,100.00
"Department for Business, Energy and Industrial Strategy",The Coal Authority,31/08/2022,Fuel (Vehicle),Facilities,Allstar Business Solutions Ltd,136568,5.70
"Department for Business, Energy and Industrial Strategy",The Coal Authority,21/09/2022,Fuel (Vehicle),Facilities,Allstar Business Solutions Ltd,137214,7.60
"Department for Business, Energy and Industrial Strategy",The Coal Authority,21/09/2022,Fuel (Vehicle),Facilities,Allstar Business Solutions Ltd,137214,47.33
"Department for Business, Energy and Industrial Strategy",The Coal Authority,21/09/2022,Fuel (Vehicle),Facilities,Allstar Business Solutions Ltd,137214,81.37
"Department for Business, Energy and Industrial Strategy",The Coal Authority,21/09/2022,Fuel (Vehicle),Facilities,Allstar Business Solutions Ltd,137214,55.83
"Department for Business, Energy and Industrial Strategy",The Coal Authority,21/09/2022,Fuel (Vehicle),Facilities,Allstar Business Solutions Ltd,137214,33.34
"Department for Business, Energy and Industrial Strategy",The Coal Authority,21/09/2022,Fuel (Vehicle),Facilities,Allstar Business Solutions Ltd,137214,111.56
"Department for Business, Energy and Industrial Strategy",The Coal Authority,21/09/2022,Fuel (Vehicle),Facilities,Allstar Business Solutions Ltd,137214,41.64
"Department for Business, Energy and Industrial Strategy",The Coal Authority,14/09/2022,Fuel (Vehicle),Facilities,Allstar Business Solutions Ltd,137215,55.09
"Department for Business, Energy and Industrial Strategy",The Coal Authority,14/09/2022,Fuel (Vehicle),Facilities,Allstar Business Solutions Ltd,137215,47.94
"Department for Business, Energy and Industrial Strategy",The Coal Authority,14/09/2022,Fuel (Vehicle),Facilities,Allstar Business Solutions Ltd,137215,59.19
"Department for Business, Energy and Industrial Strategy",The Coal Authority,14/09/2022,Fuel (Vehicle),Facilities,Allstar Business Solutions Ltd,137215,97.91
"Department for Business, Energy and Industrial Strategy",The Coal Authority,14/09/2022,Fuel (Vehicle),Facilities,Allstar Business Solutions Ltd,137215,100.55
"Department for Business, Energy and Industrial Strategy",The Coal Authority,14/09/2022,Fuel (Vehicle),Facilities,Allstar Business Solutions Ltd,137215,74.32
"Department for Business, Energy and Industrial Strategy",The Coal Authority,14/09/2022,Fuel (Vehicle),Facilities,Allstar Business Solutions Ltd,137215,79.18
"Department for Business, Energy and Industrial Strategy",The Coal Authority,14/09/2022,Fuel (Vehicle),Facilities,Allstar Business Solutions Ltd,137215,9.50
"Department for Business, Energy and Industrial Strategy",The Coal Authority,14/09/2022,Fuel (Vehicle),ENV - Projects & Delivery,Allstar Business Solutions Ltd,137243,48.94
"Department for Business, Energy and Industrial Strategy",The Coal Authority,21/09/2022,Fuel (Vehicle),ENV - Projects & Delivery,Allstar Business Solutions Ltd,137244,52.37
"Department for Business, Energy and Industrial Strategy",The Coal Authority,21/09/2022,Fuel (Vehicle),ENV - Projects & Delivery,Allstar Business Solutions Ltd,137244,43.90
"Department for Business, Energy and Industrial Strategy",The Coal Authority,21/09/2022,Fuel (Vehicle),PS&S - General Claims,Allstar Business Solutions Ltd,137253,33.45
"Department for Business, Energy and Industrial Strategy",The Coal Authority,21/09/2022,Fuel (Vehicle),PS&S - General Claims,Allstar Business Solutions Ltd,137253,50.03
"Department for Business, Energy and Industrial Strategy",The Coal Authority,21/09/2022,Fuel (Vehicle),PS&S - General Claims,Allstar Business Solutions Ltd,137253,60.08
"Department for Business, Energy and Industrial Strategy",The Coal Authority,21/09/2022,Fuel (Vehicle),PS&S - General Claims,Allstar Business Solutions Ltd,137253,7.60
"Department for Business, Energy and Industrial Strategy",The Coal Authority,21/09/2022,Fuel (Vehicle),Tips Response,Allstar Business Solutions Ltd,137253,65.62
"Department for Business, Energy and Industrial Strategy",The Coal Authority,14/09/2022,Fuel (Vehicle),PS&S - General Claims,Allstar Business Solutions Ltd,137254,50.00
"Department for Business, Energy and Industrial Strategy",The Coal Authority,14/09/2022,Fuel (Vehicle),PS&S - General Claims,Allstar Business Solutions Ltd,137254,45.63
"Department for Business, Energy and Industrial Strategy",The Coal Authority,14/09/2022,Fuel (Vehicle),PS&S - General Claims,Allstar Business Solutions Ltd,137254,120.90
"Department for Business, Energy and Industrial Strategy",The Coal Authority,14/09/2022,Fuel (Vehicle),PS&S - General Claims,Allstar Business Solutions Ltd,137254,47.22
"Department for Business, Energy and Industrial Strategy",The Coal Authority,14/09/2022,Fuel (Vehicle),PS&S - General Claims,Allstar Business Solutions Ltd,137254,72.37
"Department for Business, Energy and Industrial Strategy",The Coal Authority,14/09/2022,Fuel (Vehicle),PS&S - General Claims,Allstar Business Solutions Ltd,137254,90.86
"Department for Business, Energy and Industrial Strategy",The Coal Authority,14/09/2022,Fuel (Vehicle),PS&S - General Claims,Allstar Business Solutions Ltd,137254,53.55
"Department for Business, Energy and Industrial Strategy",The Coal Authority,14/09/2022,Fuel (Vehicle),PS&S - General Claims,Allstar Business Solutions Ltd,137254,51.26
"Department for Business, Energy and Industrial Strategy",The Coal Authority,14/09/2022,Fuel (Vehicle),PS&S - General Claims,Allstar Business Solutions Ltd,137254,13.30
"Department for Business, Energy and Industrial Strategy",The Coal Authority,14/09/2022,Fuel (Vehicle),Tips Response,Allstar Business Solutions Ltd,137254,45.13
"Department for Business, Energy and Industrial Strategy",The Coal Authority,14/09/2022,Fuel (Vehicle),DEFRA Metal Mine Programme,Staff Expenses Control,137264,65.90
"Department for Business, Energy and Industrial Strategy",The Coal Authority,04/07/2022,Fuel (Vehicle),ENV - Mine Water Operations,Government Procurement Card,137736,62.51
"Department for Business, Energy and Industrial Strategy",The Coal Authority,07/07/2022,Fuel (Vehicle),ENV - Projects & Delivery,Government Procurement Card,137736,91.21
"Department for Business, Energy and Industrial Strategy",The Coal Authority,08/07/2022,Fuel (Vehicle),ENV - Mine Water Operations,Government Procurement Card,137736,62.52
"Department for Business, Energy and Industrial Strategy",The Coal Authority,12/07/2022,Fuel (Vehicle),ENV - Mine Water Operations,Government Procurement Card,137736,72.91
"Department for Business, Energy and Industrial Strategy",The Coal Authority,19/07/2022,Fuel (Vehicle),ENV - Mine Water Operations,Government Procurement Card,137736,49.89
"Department for Business, Energy and Industrial Strategy",The Coal Authority,20/07/2022,Fuel (Vehicle),ENV - Projects & Delivery,Government Procurement Card,137736,63.33
"Department for Business, Energy and Industrial Strategy",The Coal Authority,26/07/2022,Fuel (Vehicle),ENV - Projects & Delivery,Government Procurement Card,137736,66.99
"Department for Business, Energy and Industrial Strategy",The Coal Authority,28/07/2022,Fuel (Vehicle),ENV - Mine Water Operations,Government Procurement Card,137736,27.07
"Department for Business, Energy and Industrial Strategy",The Coal Authority,28/07/2022,Fuel (Vehicle),ENV - Mine Water Operations,Government Procurement Card,137736,68.02
"Department for Business, Energy and Industrial Strategy",The Coal Authority,29/07/2022,Fuel (Vehicle),ENV - Mine Water Operations,Government Procurement Card,137736,33.34
"Department for Business, Energy and Industrial Strategy",The Coal Authority,31/07/2022,Fuel (Vehicle),ENV - Projects & Delivery,Government Procurement Card,137736,74.49
"Department for Business, Energy and Industrial Strategy",The Coal Authority,02/08/2022,Fuel (Vehicle),ENV - Mine Water Operations,Government Procurement Card,137736,37.50
"Department for Business, Energy and Industrial Strategy",The Coal Authority,04/08/2022,Fuel (Vehicle),ENV - Mine Water Operations,Government Procurement Card,137737,76.43
"Department for Business, Energy and Industrial Strategy",The Coal Authority,04/08/2022,Fuel (Vehicle),ENV - Projects & Delivery,Government Procurement Card,137737,40.00
"Department for Business, Energy and Industrial Strategy",The Coal Authority,09/08/2022,Fuel (Vehicle),DEFRA Metal Mine Programme,Government Procurement Card,137737,68.04
"Department for Business, Energy and Industrial Strategy",The Coal Authority,10/08/2022,Fuel (Vehicle),ENV - Mine Water Operations,Government Procurement Card,137737,27.32
"Department for Business, Energy and Industrial Strategy",The Coal Authority,11/08/2022,Fuel (Vehicle),DEFRA Metal Mine Programme,Government Procurement Card,137737,64.27
"Department for Business, Energy and Industrial Strategy",The Coal Authority,11/08/2022,Fuel (Vehicle),PS&S - Industry Claims,Government Procurement Card,137737,51.07
"Department for Business, Energy and Industrial Strategy",The Coal Authority,13/08/2022,Fuel (Vehicle),Other Customers,Government Procurement Card,137737,41.69
"Department for Business, Energy and Industrial Strategy",The Coal Authority,16/08/2022,Fuel (Vehicle),ENV - Projects & Delivery,Government Procurement Card,137737,21.11
"Department for Business, Energy and Industrial Strategy",The Coal Authority,17/08/2022,Fuel (Vehicle),DEV - Planning & Local Authority Liaison,Government Procurement Card,137737,44.24
"Department for Business, Energy and Industrial Strategy",The Coal Authority,17/08/2022,Fuel (Vehicle),ENV - Mine Water Operations,Government Procurement Card,137737,73.08
"Department for Business, Energy and Industrial Strategy",The Coal Authority,17/08/2022,Fuel (Vehicle),Other Customers,Government Procurement Card,137737,57.95
"Department for Business, Energy and Industrial Strategy",The Coal Authority,19/08/2022,Fuel (Vehicle),DEV - Property Management,Government Procurement Card,137737,41.44
"Department for Business, Energy and Industrial Strategy",The Coal Authority,19/08/2022,Fuel (Vehicle),DEV - Property Management,Government Procurement Card,137737,72.24
"Department for Business, Energy and Industrial Strategy",The Coal Authority,19/08/2022,Fuel (Vehicle),ENV - Mine Water Operations,Government Procurement Card,137737,73.88
"Department for Business, Energy and Industrial Strategy",The Coal Authority,19/08/2022,Fuel (Vehicle),ENV - Projects & Delivery,Government Procurement Card,137737,66.40
"Department for Business, Energy and Industrial Strategy",The Coal Authority,22/08/2022,Fuel (Vehicle),Other Customers,Government Procurement Card,137737,59.64
"Department for Business, Energy and Industrial Strategy",The Coal Authority,23/08/2022,Fuel (Vehicle),PS&S - General Claims,Government Procurement Card,137737,65.40
"Department for Business, Energy and Industrial Strategy",The Coal Authority,23/08/2022,Fuel (Vehicle),PS&S - General Claims,Government Procurement Card,137737,46.03
"Department for Business, Energy and Industrial Strategy",The Coal Authority,24/08/2022,Fuel (Vehicle),Other Customers,Government Procurement Card,137737,33.48
"Department for Business, Energy and Industrial Strategy",The Coal Authority,24/08/2022,Fuel (Vehicle),PS&S - General Claims,Government Procurement Card,137737,38.69
"Department for Business, Energy and Industrial Strategy",The Coal Authority,25/08/2022,Fuel (Vehicle),PS&S - General Claims,Government Procurement Card,137737,50.32
"Department for Business, Energy and Industrial Strategy",The Coal Authority,26/08/2022,Fuel (Vehicle),ENV - Mine Water Operations,Government Procurement Card,137737,43.86
"Department for Business, Energy and Industrial Strategy",The Coal Authority,26/08/2022,Fuel (Vehicle),ENV - Mine Water Operations,Government Procurement Card,137737,20.45
"Department for Business, Energy and Industrial Strategy",The Coal Authority,26/08/2022,Fuel (Vehicle),Other Customers,Government Procurement Card,137737,56.09
"Department for Business, Energy and Industrial Strategy",The Coal Authority,27/08/2022,Fuel (Vehicle),ENV - Projects & Delivery,Government Procurement Card,137737,66.02
"Department for Business, Energy and Industrial Strategy",The Coal Authority,28/09/2022,Fuel (Vehicle),PS&S - General Claims,Allstar Business Solutions Ltd,137753,26.68
"Department for Business, Energy and Industrial Strategy",The Coal Authority,28/09/2022,Fuel (Vehicle),PS&S - General Claims,Allstar Business Solutions Ltd,137753,74.50
"Department for Business, Energy and Industrial Strategy",The Coal Authority,28/09/2022,Fuel (Vehicle),PS&S - General Claims,Allstar Business Solutions Ltd,137753,63.28
"Department for Business, Energy and Industrial Strategy",The Coal Authority,28/09/2022,Fuel (Vehicle),PS&S - General Claims,Allstar Business Solutions Ltd,137753,45.93
"Department for Business, Energy and Industrial Strategy",The Coal Authority,28/09/2022,Fuel (Vehicle),PS&S - General Claims,Allstar Business Solutions Ltd,137753,64.78
"Department for Business, Energy and Industrial Strategy",The Coal Authority,28/09/2022,Fuel (Vehicle),PS&S - General Claims,Allstar Business Solutions Ltd,137753,89.73
"Department for Business, Energy and Industrial Strategy",The Coal Authority,28/09/2022,Fuel (Vehicle),PS&S - General Claims,Allstar Business Solutions Ltd,137753,25.00
"Department for Business, Energy and Industrial Strategy",The Coal Authority,28/09/2022,Fuel (Vehicle),PS&S - General Claims,Allstar Business Solutions Ltd,137753,9.50
"Department for Business, Energy and Industrial Strategy",The Coal Authority,23/07/2022,Hardware Equipment & Support,DIG - Service & Assurance,Government Procurement Card,137736,-49.99
"Department for Business, Energy and Industrial Strategy",The Coal Authority,25/07/2022,Hardware Equipment & Support,PS&S - Management,Government Procurement Card,137736,616.66
"Department for Business, Energy and Industrial Strategy",The Coal Authority,28/07/2022,Hardware Equipment & Support,PS&S - Industry Claims,Government Procurement Card,137736,124.55
"Department for Business, Energy and Industrial Strategy",The Coal Authority,31/08/2022,Hotel & Accommodation,Finance,Corporate Travel Management North,136846,"6,208.95"
"Department for Business, Energy and Industrial Strategy",The Coal Authority,31/08/2022,Hotel & Accommodation,Finance,Corporate Travel Management North,136846,39.75
"Department for Business, Energy and Industrial Strategy",The Coal Authority,18/06/2022,Hotel & Accommodation,By-Products - Ochre,Government Procurement Card,137445,74.00
"Department for Business, Energy and Industrial Strategy",The Coal Authority,17/08/2022,Hotel & Accommodation,ENV - Mine Water Operations,Government Procurement Card,137737,111.67
"Department for Business, Energy and Industrial Strategy",The Coal Authority,17/08/2022,Hotel & Accommodation,Executive,Government Procurement Card,137737,120.83
"Department for Business, Energy and Industrial Strategy",The Coal Authority,18/08/2022,Hotel & Accommodation,PS&S - Management,Government Procurement Card,137737,30.00
"Department for Business, Energy and Industrial Strategy",The Coal Authority,19/08/2022,Hotel & Accommodation,PS&S - Industry Claims,Government Procurement Card,137737,-100.00
"Department for Business, Energy and Industrial Strategy",The Coal Authority,24/08/2022,Hotel & Accommodation,DEFRA Metal Mine Programme,Government Procurement Card,137737,74.57
"Department for Business, Energy and Industrial Strategy",The Coal Authority,08/09/2022,Incidentals,Innovation By-Product & Services Delivery,Staff Expenses Control,136363,3.80
"Department for Business, Energy and Industrial Strategy",The Coal Authority,01/09/2022,Incidentals,Mining Reports,Security Plus Limited,136717,14.70
"Department for Business, Energy and Industrial Strategy",The Coal Authority,19/08/2022,Incidentals,Innovation By-Product & Services Delivery,Staff Expenses Control,136935,4.80
"Department for Business, Energy and Industrial Strategy",The Coal Authority,14/09/2022,Incidentals,Innovation By-Product & Services Delivery,Staff Expenses Control,137264,3.80
"Department for Business, Energy and Industrial Strategy",The Coal Authority,20/09/2022,Incidentals,ENV - Projects & Delivery,Staff Expenses Control,137264,8.00
"Department for Business, Energy and Industrial Strategy",The Coal Authority,20/09/2022,Incidentals,ENV - Projects & Delivery,Staff Expenses Control,137264,6.67
"Department for Business, Energy and Industrial Strategy",The Coal Authority,07/07/2022,Incidentals,Incident & Emergency Response,Government Procurement Card,137736,4.96
"Department for Business, Energy and Industrial Strategy",The Coal Authority,11/07/2022,Incidentals,PS&S - General Claims,Government Procurement Card,137736,2.92
"Department for Business, Energy and Industrial Strategy",The Coal Authority,14/07/2022,Incidentals,NRW Metal Mine Programme,Government Procurement Card,137736,4.25
"Department for Business, Energy and Industrial Strategy",The Coal Authority,14/07/2022,Incidentals,NRW Metal Mine Programme,Government Procurement Card,137736,6.91
"Department for Business, Energy and Industrial Strategy",The Coal Authority,27/07/2022,Incidentals,ENV - Mine Water Operations,Government Procurement Card,137736,29.10
"Department for Business, Energy and Industrial Strategy",The Coal Authority,03/08/2022,Incidentals,Incident & Emergency Response,Government Procurement Card,137737,1.90
"Department for Business, Energy and Industrial Strategy",The Coal Authority,04/08/2022,Incidentals,DEFRA LEP Funding,Government Procurement Card,137737,5.92
"Department for Business, Energy and Industrial Strategy",The Coal Authority,04/08/2022,Incidentals,NRW Metal Mine Programme,Government Procurement Card,137737,4.25
"Department for Business, Energy and Industrial Strategy",The Coal Authority,09/08/2022,Incidentals,Tip Management Services,Government Procurement Card,137737,4.10
"Department for Business, Energy and Industrial Strategy",The Coal Authority,10/08/2022,Incidentals,Customer Services & Strategy,Government Procurement Card,137737,100.00
"Department for Business, Energy and Industrial Strategy",The Coal Authority,15/08/2022,Incidentals,PS&S - General Claims,Government Procurement Card,137737,4.17
"Department for Business, Energy and Industrial Strategy",The Coal Authority,17/08/2022,Incidentals,ENV - Mine Water Operations,Government Procurement Card,137737,5.83
"Department for Business, Energy and Industrial Strategy",The Coal Authority,17/08/2022,Incidentals,NRW Metal Mine Programme,Government Procurement Card,137737,4.25
"Department for Business, Energy and Industrial Strategy",The Coal Authority,17/08/2022,Incidentals,NRW Metal Mine Programme,Government Procurement Card,137737,5.92
"Department for Business, Energy and Industrial Strategy",The Coal Authority,19/08/2022,Incidentals,ENV - Mine Water Operations,Government Procurement Card,137737,2.92
"Department for Business, Energy and Industrial Strategy",The Coal Authority,22/08/2022,Incidentals,PS&S - General Claims,Government Procurement Card,137737,4.17
"Department for Business, Energy and Industrial Strategy",The Coal Authority,25/08/2022,Incidentals,Innovation By-Product & Services Delivery,Government Procurement Card,137737,4.17
"Department for Business, Energy and Industrial Strategy",The Coal Authority,25/08/2022,Incidentals,PS&S - Industry Claims,Government Procurement Card,137737,1.50
"Department for Business, Energy and Industrial Strategy",The Coal Authority,26/08/2022,Incidentals,By-Products - Ochre,Government Procurement Card,137737,3.80
"Department for Business, Energy and Industrial Strategy",The Coal Authority,31/08/2022,Incidentals,ENV - Projects & Delivery,Government Procurement Card,137737,1.90
"Department for Business, Energy and Industrial Strategy",The Coal Authority,01/09/2022,Incidentals,ENV - Projects & Delivery,Government Procurement Card,137737,5.00
"Department for Business, Energy and Industrial Strategy",The Coal Authority,15/09/2022,Innovation Costs,Innovation By-Product & Services Delivery,Orsis (UK) Ltd,137099,22.80
"Department for Business, Energy and Industrial Strategy",The Coal Authority,14/09/2022,Innovation Costs,Heat & By-Product Innovation,Severn Trent Serv Ops Uk Ltd,137147,"2,075.20"
"Department for Business, Energy and Industrial Strategy",The Coal Authority,14/09/2022,Innovation Costs,Heat & By-Product Innovation,Severn Trent Serv Ops Uk Ltd,137147,"2,935.08"
"Department for Business, Energy and Industrial Strategy",The Coal Authority,14/09/2022,Innovation Costs,Innovation By-Product & Services Delivery,Severn Trent Serv Ops Uk Ltd,137147,109.11
"Department for Business, Energy and Industrial Strategy",The Coal Authority,14/09/2022,Innovation Costs,Innovation By-Product & Services Delivery,Severn Trent Serv Ops Uk Ltd,137147,"39,657.03"
"Department for Business, Energy and Industrial Strategy",The Coal Authority,14/09/2022,Innovation Costs,Innovation By-Product & Services Delivery,Severn Trent Serv Ops Uk Ltd,137147,"9,255.29"
"Department for Business, Energy and Industrial Strategy",The Coal Authority,22/08/2022,Innovation Costs,By-Products - Energy,IMServ Europe Limited,137517,67.08
"Department for Business, Energy and Industrial Strategy",The Coal Authority,22/08/2022,Innovation Costs,By-Products - Energy,IMServ Europe Limited,137517,67.08
"Department for Business, Energy and Industrial Strategy",The Coal Authority,22/08/2022,Innovation Costs,By-Products - Energy,IMServ Europe Limited,137517,67.08
"Department for Business, Energy and Industrial Strategy",The Coal Authority,22/08/2022,Innovation Costs,By-Products - Energy,IMServ Europe Limited,137517,67.08
"Department for Business, Energy and Industrial Strategy",The Coal Authority,22/08/2022,Innovation Costs,By-Products - Energy,IMServ Europe Limited,137517,67.08
"Department for Business, Energy and Industrial Strategy",The Coal Authority,22/08/2022,Innovation Costs,By-Products - Energy,IMServ Europe Limited,137517,67.08
"Department for Business, Energy and Industrial Strategy",The Coal Authority,03/08/2022,Insurance Premiums,Facilities,Arthur J. Gallagher Insurance Brokers Limited,136228,"1,078.03"
"Department for Business, Energy and Industrial Strategy",The Coal Authority,18/01/2022,Internet Service Provider & Comms,DIG - Service & Assurance,The Digital Accessibility Centre Limited,137098,870.00
"Department for Business, Energy and Industrial Strategy",The Coal Authority,01/07/2022,Internet Service Provider & Comms,PS&S - General Claims,Government Procurement Card,137736,13.06
"Department for Business, Energy and Industrial Strategy",The Coal Authority,18/07/2022,Internet Service Provider & Comms,DIG - Technical Delivery,Government Procurement Card,137736,274.60
"Department for Business, Energy and Industrial Strategy",The Coal Authority,01/08/2022,Internet Service Provider & Comms,PS&S - General Claims,Government Procurement Card,137736,14.17
"Department for Business, Energy and Industrial Strategy",The Coal Authority,01/09/2022,Internet Service Provider & Comms,PS&S - Management,Government Procurement Card,137737,14.73
"Department for Business, Energy and Industrial Strategy",The Coal Authority,22/08/2022,Legal - General,PS&S - General Claims,Toomey Legal Limited Client Deposit Manager Accoun,135882,"61,500.00"
"Department for Business, Energy and Industrial Strategy",The Coal Authority,30/08/2022,Legal - General,Legal & Governance,Walker Morris,136009,83.40
"Department for Business, Energy and Industrial Strategy",The Coal Authority,30/08/2022,Legal - General,Legal & Governance,Dla Piper Uk Llp,136016,"1,292.50"
"Department for Business, Energy and Industrial Strategy",The Coal Authority,17/08/2022,Legal - General,Legal & Governance,Dentons UK and Middle East LLP,136062,20.00
"Department for Business, Energy and Industrial Strategy",The Coal Authority,17/08/2022,Legal - General,Legal & Governance,Dentons UK and Middle East LLP,136062,"1,000.00"
"Department for Business, Energy and Industrial Strategy",The Coal Authority,23/08/2022,Legal - General,Legal & Governance,Anderson Strathern,136063,182.00
"Department for Business, Energy and Industrial Strategy",The Coal Authority,23/08/2022,Legal - General,Legal & Governance,Anderson Strathern,136064,26.00
"Department for Business, Energy and Industrial Strategy",The Coal Authority,23/08/2022,Legal - General,Legal & Governance,Anderson Strathern,136065,26.00
"Department for Business, Energy and Industrial Strategy",The Coal Authority,23/08/2022,Legal - General,Legal & Governance,Anderson Strathern,136070,65.00
"Department for Business, Energy and Industrial Strategy",The Coal Authority,14/01/2022,Legal - General,PS&S - General Claims,Dawsons,136113,600.00
"Department for Business, Energy and Industrial Strategy",The Coal Authority,19/08/2022,Legal - General,Legal & Governance,Browne Jacobson Llp Client Account,136259,"3,458.43"
"Department for Business, Energy and Industrial Strategy",The Coal Authority,19/08/2022,Legal - General,Legal & Governance,Browne Jacobson Llp Client Account,136259,"2,600.00"
"Department for Business, Energy and Industrial Strategy",The Coal Authority,19/08/2022,Legal - General,Legal & Governance,Browne Jacobson Llp Client Account,136259,913.67
"Department for Business, Energy and Industrial Strategy",The Coal Authority,26/08/2022,Legal - General,Legal & Governance,Browne Jacobson Llp Client Account,136260,"3,783.50"
"Department for Business, Energy and Industrial Strategy",The Coal Authority,26/08/2022,Legal - General,Legal & Governance,Browne Jacobson Llp Client Account,136260,784.50
"Department for Business, Energy and Industrial Strategy",The Coal Authority,04/08/2022,Legal - General,Legal & Governance,Browne Jacobson Llp Client Account,136261,"1,555.20"
"Department for Business, Energy and Industrial Strategy",The Coal Authority,24/08/2022,Legal - General,Legal & Governance,Browne Jacobson Llp Client Account,136262,"1,959.30"
"Department for Business, Energy and Industrial Strategy",The Coal Authority,26/08/2022,Legal - General,DEFRA Metal Mine Programme,Browne Jacobson Llp Client Account,136439,"3,042.93"
"Department for Business, Energy and Industrial Strategy",The Coal Authority,26/08/2022,Legal - General,DEFRA Metal Mine Programme,Browne Jacobson Llp Client Account,136441,422.00
"Department for Business, Energy and Industrial Strategy",The Coal Authority,14/09/2022,Legal - General,Legal & Governance,Dla Piper Uk Llp,137108,550.00
"Department for Business, Energy and Industrial Strategy",The Coal Authority,14/09/2022,Legal - General,Legal & Governance,Dla Piper Uk Llp,137108,75.00
"Department for Business, Energy and Industrial Strategy",The Coal Authority,14/09/2022,Legal - General,Legal & Governance,Dla Piper Uk Llp,137108,144.00
"Department for Business, Energy and Industrial Strategy",The Coal Authority,14/09/2022,Legal - General,Legal & Governance,Dla Piper Uk Llp,137108,127.50
"Department for Business, Energy and Industrial Strategy",The Coal Authority,13/09/2022,Legal - General,Legal & Governance,Dla Piper Uk Llp,137121,3.98
"Department for Business, Energy and Industrial Strategy",The Coal Authority,13/09/2022,Legal - General,Legal & Governance,Dla Piper Uk Llp,137121,501.56
"Department for Business, Energy and Industrial Strategy",The Coal Authority,13/09/2022,Legal - General,Legal & Governance,Dla Piper Uk Llp,137121,53.00
"Department for Business, Energy and Industrial Strategy",The Coal Authority,13/09/2022,Legal - General,Legal & Governance,Dla Piper Uk Llp,137121,269.57
"Department for Business, Energy and Industrial Strategy",The Coal Authority,13/09/2022,Legal - General,Legal & Governance,Dla Piper Uk Llp,137121,"1,249.50"
"Department for Business, Energy and Industrial Strategy",The Coal Authority,13/09/2022,Legal - General,Legal & Governance,Dla Piper Uk Llp,137121,"3,234.83"
"Department for Business, Energy and Industrial Strategy",The Coal Authority,30/08/2022,Legal - General,Legal & Governance,Dla Piper Uk Llp,137312,"1,040.96"
"Department for Business, Energy and Industrial Strategy",The Coal Authority,30/08/2022,Legal - General,Legal & Governance,Dla Piper Uk Llp,137312,"6,328.67"
"Department for Business, Energy and Industrial Strategy",The Coal Authority,30/08/2022,Legal - General,Legal & Governance,Dla Piper Uk Llp,137312,"11,259.00"
"Department for Business, Energy and Industrial Strategy",The Coal Authority,30/08/2022,Legal - General,Legal & Governance,Dla Piper Uk Llp,137312,318.00
"Department for Business, Energy and Industrial Strategy",The Coal Authority,30/08/2022,Legal - General,Legal & Governance,Dla Piper Uk Llp,137312,205.17
"Department for Business, Energy and Industrial Strategy",The Coal Authority,30/08/2022,Legal - General,Legal & Governance,Dla Piper Uk Llp,137312,109.32
"Department for Business, Energy and Industrial Strategy",The Coal Authority,27/09/2022,Legal - General,Legal & Governance,Companies House,137452,23.00
"Department for Business, Energy and Industrial Strategy",The Coal Authority,26/09/2022,Legal - General,Legal & Governance,Anderson Strathern,137563,156.00
"Department for Business, Energy and Industrial Strategy",The Coal Authority,26/09/2022,Legal - General,Legal & Governance,Anderson Strathern,137577,71.00
"Department for Business, Energy and Industrial Strategy",The Coal Authority,05/08/2022,Legal - Property Title Search,Legal & Governance,Land Registry,135873,92.00
"Department for Business, Energy and Industrial Strategy",The Coal Authority,05/08/2022,Legal - Property Title Search,Legal & Governance,Mda Searchflow Ltd,135874,42.30
"Department for Business, Energy and Industrial Strategy",The Coal Authority,12/08/2022,Legal - Property Title Search,Legal & Governance,Land Registry,135883,12.00
"Department for Business, Energy and Industrial Strategy",The Coal Authority,02/09/2022,Legal - Property Title Search,Legal & Governance,Land Registry,136206,15.00
"Department for Business, Energy and Industrial Strategy",The Coal Authority,09/09/2022,Legal - Property Title Search,Legal & Governance,Land Registry,137026,33.00
"Department for Business, Energy and Industrial Strategy",The Coal Authority,26/08/2022,Legal - Property Title Search,Legal & Governance,Land Registry,137027,20.00
"Department for Business, Energy and Industrial Strategy",The Coal Authority,23/09/2022,Legal - Property Title Search,Legal & Governance,Land Registry,137715,36.00
"Department for Business, Energy and Industrial Strategy",The Coal Authority,16/09/2022,Legal - Property Title Search,Legal & Governance,Land Registry,137716,21.00
"Department for Business, Energy and Industrial Strategy",The Coal Authority,23/07/2022,Membership Subscriptions,DIG - Service & Assurance,Government Procurement Card,137736,600.00
"Department for Business, Energy and Industrial Strategy",The Coal Authority,08/06/2022,Mileage Payments,PS&S - Industry Claims,Staff Expenses Control,135750,59.40
"Department for Business, Energy and Industrial Strategy",The Coal Authority,10/06/2022,Mileage Payments,PS&S - Industry Claims,Staff Expenses Control,135750,27.00
"Department for Business, Energy and Industrial Strategy",The Coal Authority,15/06/2022,Mileage Payments,PS&S - Industry Claims,Staff Expenses Control,135750,18.90
"Department for Business, Energy and Industrial Strategy",The Coal Authority,17/06/2022,Mileage Payments,PS&S - Industry Claims,Staff Expenses Control,135750,12.99
"Department for Business, Energy and Industrial Strategy",The Coal Authority,17/06/2022,Mileage Payments,PS&S - Industry Claims,Staff Expenses Control,135750,1.56
"Department for Business, Energy and Industrial Strategy",The Coal Authority,17/06/2022,Mileage Payments,PS&S - Industry Claims,Staff Expenses Control,135750,12.24
"Department for Business, Energy and Industrial Strategy",The Coal Authority,21/06/2022,Mileage Payments,PS&S - Industry Claims,Staff Expenses Control,135750,13.00
"Department for Business, Energy and Industrial Strategy",The Coal Authority,21/06/2022,Mileage Payments,PS&S - Industry Claims,Staff Expenses Control,135750,6.08
"Department for Business, Energy and Industrial Strategy",The Coal Authority,21/06/2022,Mileage Payments,PS&S - Industry Claims,Staff Expenses Control,135750,9.55
"Department for Business, Energy and Industrial Strategy",The Coal Authority,23/06/2022,Mileage Payments,PS&S - Industry Claims,Staff Expenses Control,135750,27.00
"Department for Business, Energy and Industrial Strategy",The Coal Authority,24/06/2022,Mileage Payments,PS&S - Industry Claims,Staff Expenses Control,135750,27.00
"Department for Business, Energy and Industrial Strategy",The Coal Authority,27/06/2022,Mileage Payments,PS&S - Industry Claims,Staff Expenses Control,135750,35.10
"Department for Business, Energy and Industrial Strategy",The Coal Authority,28/06/2022,Mileage Payments,PS&S - Industry Claims,Staff Expenses Control,135750,19.21
"Department for Business, Energy and Industrial Strategy",The Coal Authority,28/06/2022,Mileage Payments,PS&S - Industry Claims,Staff Expenses Control,135750,25.22
"Department for Business, Energy and Industrial Strategy",The Coal Authority,28/06/2022,Mileage Payments,PS&S - Industry Claims,Staff Expenses Control,135750,18.09
"Department for Business, Energy and Industrial Strategy",The Coal Authority,29/06/2022,Mileage Payments,PS&S - Industry Claims,Staff Expenses Control,135750,15.22
"Department for Business, Energy and Industrial Strategy",The Coal Authority,30/06/2022,Mileage Payments,PS&S - Industry Claims,Staff Expenses Control,135750,15.42
"Department for Business, Energy and Industrial Strategy",The Coal Authority,04/07/2022,Mileage Payments,PS&S - Industry Claims,Staff Expenses Control,135750,27.90
"Department for Business, Energy and Industrial Strategy",The Coal Authority,05/07/2022,Mileage Payments,PS&S - Industry Claims,Staff Expenses Control,135750,27.90
"Department for Business, Energy and Industrial Strategy",The Coal Authority,06/07/2022,Mileage Payments,PS&S - Industry Claims,Staff Expenses Control,135750,21.60
"Department for Business, Energy and Industrial Strategy",The Coal Authority,08/07/2022,Mileage Payments,PS&S - Industry Claims,Staff Expenses Control,135750,18.90
"Department for Business, Energy and Industrial Strategy",The Coal Authority,18/07/2022,Mileage Payments,PS&S - Industry Claims,Staff Expenses Control,135750,38.70
"Department for Business, Energy and Industrial Strategy",The Coal Authority,20/07/2022,Mileage Payments,PS&S - Industry Claims,Staff Expenses Control,135750,27.00
"Department for Business, Energy and Industrial Strategy",The Coal Authority,22/07/2022,Mileage Payments,PS&S - Industry Claims,Staff Expenses Control,135750,7.57
"Department for Business, Energy and Industrial Strategy",The Coal Authority,22/07/2022,Mileage Payments,PS&S - Industry Claims,Staff Expenses Control,135750,16.84
"Department for Business, Energy and Industrial Strategy",The Coal Authority,22/07/2022,Mileage Payments,PS&S - Industry Claims,Staff Expenses Control,135750,13.62
"Department for Business, Energy and Industrial Strategy",The Coal Authority,25/07/2022,Mileage Payments,PS&S - Industry Claims,Staff Expenses Control,135750,38.70
"Department for Business, Energy and Industrial Strategy",The Coal Authority,27/07/2022,Mileage Payments,PS&S - Industry Claims,Staff Expenses Control,135750,19.38
"Department for Business, Energy and Industrial Strategy",The Coal Authority,27/07/2022,Mileage Payments,PS&S - Industry Claims,Staff Expenses Control,135750,5.88
"Department for Business, Energy and Industrial Strategy",The Coal Authority,27/07/2022,Mileage Payments,PS&S - Industry Claims,Staff Expenses Control,135750,19.29
"Department for Business, Energy and Industrial Strategy",The Coal Authority,28/07/2022,Mileage Payments,PS&S - Industry Claims,Staff Expenses Control,135750,2.06
"Department for Business, Energy and Industrial Strategy",The Coal Authority,28/07/2022,Mileage Payments,PS&S - Industry Claims,Staff Expenses Control,135750,2.08
"Department for Business, Energy and Industrial Strategy",The Coal Authority,28/07/2022,Mileage Payments,PS&S - Industry Claims,Staff Expenses Control,135750,38.70
"Department for Business, Energy and Industrial Strategy",The Coal Authority,01/08/2022,Mileage Payments,PS&S - Industry Claims,Staff Expenses Control,135750,19.21
"Department for Business, Energy and Industrial Strategy",The Coal Authority,01/08/2022,Mileage Payments,PS&S - Industry Claims,Staff Expenses Control,135750,30.05
"Department for Business, Energy and Industrial Strategy",The Coal Authority,01/08/2022,Mileage Payments,PS&S - Industry Claims,Staff Expenses Control,135750,13.42
"Department for Business, Energy and Industrial Strategy",The Coal Authority,02/08/2022,Mileage Payments,PS&S - Industry Claims,Staff Expenses Control,135750,2.55
"Department for Business, Energy and Industrial Strategy",The Coal Authority,02/08/2022,Mileage Payments,PS&S - Industry Claims,Staff Expenses Control,135750,11.36
"Department for Business, Energy and Industrial Strategy",The Coal Authority,02/08/2022,Mileage Payments,PS&S - Industry Claims,Staff Expenses Control,135750,18.62
"Department for Business, Energy and Industrial Strategy",The Coal Authority,02/08/2022,Mileage Payments,PS&S - Industry Claims,Staff Expenses Control,135750,13.03
"Department for Business, Energy and Industrial Strategy",The Coal Authority,03/08/2022,Mileage Payments,PS&S - Industry Claims,Staff Expenses Control,135750,38.70
"Department for Business, Energy and Industrial Strategy",The Coal Authority,05/08/2022,Mileage Payments,ENV - Technical,Staff Expenses Control,135750,19.06
"Department for Business, Energy and Industrial Strategy",The Coal Authority,05/08/2022,Mileage Payments,ENV - Technical,Staff Expenses Control,135750,22.50
"Department for Business, Energy and Industrial Strategy",The Coal Authority,05/08/2022,Mileage Payments,PS&S - Industry Claims,Staff Expenses Control,135750,38.70
"Department for Business, Energy and Industrial Strategy",The Coal Authority,10/08/2022,Mileage Payments,PS&S - Industry Claims,Staff Expenses Control,135750,9.48
"Department for Business, Energy and Industrial Strategy",The Coal Authority,10/08/2022,Mileage Payments,PS&S - Industry Claims,Staff Expenses Control,135750,19.29
"Department for Business, Energy and Industrial Strategy",The Coal Authority,10/08/2022,Mileage Payments,PS&S - Industry Claims,Staff Expenses Control,135750,13.14
"Department for Business, Energy and Industrial Strategy",The Coal Authority,18/08/2022,Mileage Payments,PS&S - Industry Claims,Staff Expenses Control,135750,7.35
"Department for Business, Energy and Industrial Strategy",The Coal Authority,18/08/2022,Mileage Payments,PS&S - Industry Claims,Staff Expenses Control,135750,6.65
"Department for Business, Energy and Industrial Strategy",The Coal Authority,22/08/2022,Mileage Payments,PS&S - Industry Claims,Staff Expenses Control,135750,7.35
"Department for Business, Energy and Industrial Strategy",The Coal Authority,22/08/2022,Mileage Payments,PS&S - Industry Claims,Staff Expenses Control,135750,6.64
"Department for Business, Energy and Industrial Strategy",The Coal Authority,22/08/2022,Mileage Payments,PS&S - Industry Claims,Staff Expenses Control,135750,26.10
"Department for Business, Energy and Industrial Strategy",The Coal Authority,23/08/2022,Mileage Payments,PS&S - Industry Claims,Staff Expenses Control,135750,38.70
"Department for Business, Energy and Industrial Strategy",The Coal Authority,24/08/2022,Mileage Payments,PS&S - Industry Claims,Staff Expenses Control,135750,19.80
"Department for Business, Energy and Industrial Strategy",The Coal Authority,25/08/2022,Mileage Payments,PS&S - Industry Claims,Staff Expenses Control,135750,1.30
"Department for Business, Energy and Industrial Strategy",The Coal Authority,25/08/2022,Mileage Payments,PS&S - Industry Claims,Staff Expenses Control,135750,31.50
"Department for Business, Energy and Industrial Strategy",The Coal Authority,25/08/2022,Mileage Payments,PS&S - Industry Claims,Staff Expenses Control,135750,33.69
"Department for Business, Energy and Industrial Strategy",The Coal Authority,26/08/2022,Mileage Payments,PS&S - Industry Claims,Staff Expenses Control,135750,7.36
"Department for Business, Energy and Industrial Strategy",The Coal Authority,26/08/2022,Mileage Payments,PS&S - Industry Claims,Staff Expenses Control,135750,6.64
"Department for Business, Energy and Industrial Strategy",The Coal Authority,31/08/2022,Mileage Payments,PS&S - Industry Claims,Staff Expenses Control,135750,7.36
"Department for Business, Energy and Industrial Strategy",The Coal Authority,31/08/2022,Mileage Payments,PS&S - Industry Claims,Staff Expenses Control,135750,6.64
"Department for Business, Energy and Industrial Strategy",The Coal Authority,31/08/2022,Mileage Payments,PS&S - Industry Claims,Staff Expenses Control,135750,30.29
"Department for Business, Energy and Industrial Strategy",The Coal Authority,31/08/2022,Mileage Payments,PS&S - Industry Claims,Staff Expenses Control,135750,19.29
"Department for Business, Energy and Industrial Strategy",The Coal Authority,31/08/2022,Mileage Payments,PS&S - Industry Claims,Staff Expenses Control,135750,13.24
"Department for Business, Energy and Industrial Strategy",The Coal Authority,01/09/2022,Mileage Payments,ENV - Projects & Delivery,Staff Expenses Control,135750,13.20
"Department for Business, Energy and Industrial Strategy",The Coal Authority,30/08/2022,Mileage Payments,PS&S - Industry Claims,Staff Expenses Control,136363,20.70
"Department for Business, Energy and Industrial Strategy",The Coal Authority,30/08/2022,Mileage Payments,PS&S - Industry Claims,Staff Expenses Control,136363,4.95
"Department for Business, Energy and Industrial Strategy",The Coal Authority,31/08/2022,Mileage Payments,PS&S - Industry Claims,Staff Expenses Control,136363,5.41
"Department for Business, Energy and Industrial Strategy",The Coal Authority,31/08/2022,Mileage Payments,PS&S - Industry Claims,Staff Expenses Control,136363,2.51
"Department for Business, Energy and Industrial Strategy",The Coal Authority,31/08/2022,Mileage Payments,PS&S - Industry Claims,Staff Expenses Control,136363,4.86
"Department for Business, Energy and Industrial Strategy",The Coal Authority,31/08/2022,Mileage Payments,PS&S - Industry Claims,Staff Expenses Control,136363,37.22
"Department for Business, Energy and Industrial Strategy",The Coal Authority,31/08/2022,Mileage Payments,PS&S - Industry Claims,Staff Expenses Control,136363,1.51
"Department for Business, Energy and Industrial Strategy",The Coal Authority,06/09/2022,Mileage Payments,ENV - Technical,Staff Expenses Control,136363,4.87
"Department for Business, Energy and Industrial Strategy",The Coal Authority,06/09/2022,Mileage Payments,ENV - Technical,Staff Expenses Control,136363,9.57
"Department for Business, Energy and Industrial Strategy",The Coal Authority,06/09/2022,Mileage Payments,ENV - Technical,Staff Expenses Control,136363,12.77
"Department for Business, Energy and Industrial Strategy",The Coal Authority,06/09/2022,Mileage Payments,Innovation By-Product & Services Delivery,Staff Expenses Control,136363,7.63
"Department for Business, Energy and Industrial Strategy",The Coal Authority,06/09/2022,Mileage Payments,Innovation By-Product & Services Delivery,Staff Expenses Control,136363,25.38
"Department for Business, Energy and Industrial Strategy",The Coal Authority,06/09/2022,Mileage Payments,Innovation By-Product & Services Delivery,Staff Expenses Control,136363,41.48
"Department for Business, Energy and Industrial Strategy",The Coal Authority,08/09/2022,Mileage Payments,Innovation By-Product & Services Delivery,Staff Expenses Control,136363,0.12
"Department for Business, Energy and Industrial Strategy",The Coal Authority,08/09/2022,Mileage Payments,Innovation By-Product & Services Delivery,Staff Expenses Control,136363,4.23
"Department for Business, Energy and Industrial Strategy",The Coal Authority,08/09/2022,Mileage Payments,Innovation By-Product & Services Delivery,Staff Expenses Control,136363,81.50
"Department for Business, Energy and Industrial Strategy",The Coal Authority,08/09/2022,Mileage Payments,Innovation By-Product & Services Delivery,Staff Expenses Control,136363,66.50
"Department for Business, Energy and Industrial Strategy",The Coal Authority,08/09/2022,Mileage Payments,Innovation By-Product & Services Delivery,Staff Expenses Control,136363,17.32
"Department for Business, Energy and Industrial Strategy",The Coal Authority,08/09/2022,Mileage Payments,Innovation By-Product & Services Delivery,Staff Expenses Control,136363,0.13
"Department for Business, Energy and Industrial Strategy",The Coal Authority,21/06/2022,Mileage Payments,By-Products - Ochre,Staff Expenses Control,136935,3.24
"Department for Business, Energy and Industrial Strategy",The Coal Authority,21/06/2022,Mileage Payments,By-Products - Ochre,Staff Expenses Control,136935,3.25
"Department for Business, Energy and Industrial Strategy",The Coal Authority,21/06/2022,Mileage Payments,By-Products - Ochre,Staff Expenses Control,136935,43.83
"Department for Business, Energy and Industrial Strategy",The Coal Authority,22/06/2022,Mileage Payments,By-Products - Ochre,Staff Expenses Control,136935,2.28
"Department for Business, Energy and Industrial Strategy",The Coal Authority,22/06/2022,Mileage Payments,By-Products - Ochre,Staff Expenses Control,136935,42.89
"Department for Business, Energy and Industrial Strategy",The Coal Authority,12/07/2022,Mileage Payments,Innovation By-Product & Services Delivery,Staff Expenses Control,136935,17.48
"Department for Business, Energy and Industrial Strategy",The Coal Authority,12/07/2022,Mileage Payments,Innovation By-Product & Services Delivery,Staff Expenses Control,136935,17.51
"Department for Business, Energy and Industrial Strategy",The Coal Authority,01/08/2022,Mileage Payments,PS&S - Industry Claims,Staff Expenses Control,136935,22.95
"Department for Business, Energy and Industrial Strategy",The Coal Authority,01/08/2022,Mileage Payments,PS&S - Industry Claims,Staff Expenses Control,136935,25.76
"Department for Business, Energy and Industrial Strategy",The Coal Authority,03/08/2022,Mileage Payments,PS&S - Industry Claims,Staff Expenses Control,136935,2.70
"Department for Business, Energy and Industrial Strategy",The Coal Authority,03/08/2022,Mileage Payments,PS&S - Industry Claims,Staff Expenses Control,136935,2.25
"Department for Business, Energy and Industrial Strategy",The Coal Authority,17/08/2022,Mileage Payments,PS&S - Industry Claims,Staff Expenses Control,136935,14.40
"Department for Business, Energy and Industrial Strategy",The Coal Authority,08/09/2022,Mileage Payments,Innovation By-Product & Services Delivery,Staff Expenses Control,136935,22.05
"Department for Business, Energy and Industrial Strategy",The Coal Authority,08/09/2022,Mileage Payments,Innovation By-Product & Services Delivery,Staff Expenses Control,136935,22.05
"Department for Business, Energy and Industrial Strategy",The Coal Authority,11/08/2022,Mileage Payments,Community Response,Staff Expenses Control,137264,28.80
"Department for Business, Energy and Industrial Strategy",The Coal Authority,24/08/2022,Mileage Payments,Engineering,Staff Expenses Control,137264,9.43
"Department for Business, Energy and Industrial Strategy",The Coal Authority,24/08/2022,Mileage Payments,Engineering,Staff Expenses Control,137264,7.15
"Department for Business, Energy and Industrial Strategy",The Coal Authority,14/09/2022,Mileage Payments,Heat & By-Product Innovation,Staff Expenses Control,137264,3.86
"Department for Business, Energy and Industrial Strategy",The Coal Authority,14/09/2022,Mileage Payments,Innovation By-Product & Services Delivery,Staff Expenses Control,137264,75.78
"Department for Business, Energy and Industrial Strategy",The Coal Authority,14/09/2022,Mileage Payments,Innovation By-Product & Services Delivery,Staff Expenses Control,137264,73.53
"Department for Business, Energy and Industrial Strategy",The Coal Authority,16/09/2022,Mileage Payments,DEFRA Metal Mine Programme,Staff Expenses Control,137264,29.70
"Department for Business, Energy and Industrial Strategy",The Coal Authority,16/09/2022,Mileage Payments,PS&S - General Claims,Staff Expenses Control,137264,34.56
"Department for Business, Energy and Industrial Strategy",The Coal Authority,22/09/2022,Mileage Payments,DEFRA Metal Mine Programme,Staff Expenses Control,137264,29.70
"Department for Business, Energy and Industrial Strategy",The Coal Authority,24/08/2022,Mine Entry Inspection - Contractor Costs,PS&S - General Claims,Socotec,135884,"5,933.20"
"Department for Business, Energy and Industrial Strategy",The Coal Authority,31/07/2022,Mine Entry Inspection - Contractor Costs,PS&S - General Claims,Interlocks Surveys,136388,"7,992.00"
"Department for Business, Energy and Industrial Strategy",The Coal Authority,26/09/2022,Mine Entry Inspection - Contractor Costs,PS&S - General Claims,Socotec,137402,"6,050.22"
"Department for Business, Energy and Industrial Strategy",The Coal Authority,06/09/2022,Minewater Chemicals - Operational Sites,DEFRA Metal Mine Programme,John F Hunt Regeneration Ltd,136047,"23,908.66"
"Department for Business, Energy and Industrial Strategy",The Coal Authority,14/09/2022,Minewater Chemicals - Operational Sites,ENV - Mine Water Operations,Severn Trent Serv Ops Uk Ltd,137147,"10,460.59"
"Department for Business, Energy and Industrial Strategy",The Coal Authority,14/09/2022,Minewater Consultancy - Operational Sites,ENV - Mine Water Operations,Severn Trent Serv Ops Uk Ltd,137147,"2,641.55"
"Department for Business, Energy and Industrial Strategy",The Coal Authority,14/09/2022,Minewater Consultancy - Operational Sites,ENV - Mine Water Operations,Severn Trent Serv Ops Uk Ltd,137147,"8,003.62"
"Department for Business, Energy and Industrial Strategy",The Coal Authority,23/08/2022,Minewater Contractor Add. Task Order - Ops Site,DEFRA Metal Mine Programme,Golder Associates (Uk) Ltd,135837,"1,625.00"
"Department for Business, Energy and Industrial Strategy",The Coal Authority,06/09/2022,Minewater Contractor Add. Task Order - Ops Site,DEFRA Metal Mine Programme,John F Hunt Regeneration Ltd,136047,488.32
"Department for Business, Energy and Industrial Strategy",The Coal Authority,14/09/2022,Minewater Contractor Add. Task Order - Ops Site,DEFRA Metal Mine Programme,Golder Associates (Uk) Ltd,136723,"-1,625.00"
"Department for Business, Energy and Industrial Strategy",The Coal Authority,23/08/2022,Minewater Contractor Add. Task Order - Ops Site,DEFRA Metal Mine Programme,Golder Associates (Uk) Ltd,136724,"1,625.00"
"Department for Business, Energy and Industrial Strategy",The Coal Authority,14/09/2022,Minewater Contractor Add. Task Order - Ops Site,ENV - Mine Water Operations,Severn Trent Serv Ops Uk Ltd,137147,"2,705.87"
"Department for Business, Energy and Industrial Strategy",The Coal Authority,14/09/2022,Minewater Contractor Add. Task Order - Ops Site,ENV - Mine Water Operations,Severn Trent Serv Ops Uk Ltd,137147,"18,096.91"
"Department for Business, Energy and Industrial Strategy",The Coal Authority,14/09/2022,Minewater Contractor Add. Task Order - Ops Site,ENV - Mine Water Operations,Severn Trent Serv Ops Uk Ltd,137147,803.95
"Department for Business, Energy and Industrial Strategy",The Coal Authority,20/07/2022,Minewater Contractor Maint. Visits - Ops Site,ENV - Mine Water Operations,National Coal Mining Museum,135904,"2,384.00"
"Department for Business, Energy and Industrial Strategy",The Coal Authority,20/07/2022,Minewater Contractor Maint. Visits - Ops Site,ENV - Mine Water Operations,National Coal Mining Museum,135908,"2,174.37"
"Department for Business, Energy and Industrial Strategy",The Coal Authority,20/07/2022,Minewater Contractor Maint. Visits - Ops Site,ENV - Mine Water Operations,National Coal Mining Museum,135914,563.50
"Department for Business, Energy and Industrial Strategy",The Coal Authority,20/07/2022,Minewater Contractor Maint. Visits - Ops Site,ENV - Mine Water Operations,National Coal Mining Museum,135915,"6,766.43"
"Department for Business, Energy and Industrial Strategy",The Coal Authority,06/09/2022,Minewater Contractor Maint. Visits - Ops Site,DEFRA Metal Mine Programme,John F Hunt Regeneration Ltd,136047,"14,571.56"
"Department for Business, Energy and Industrial Strategy",The Coal Authority,14/09/2022,Minewater Contractor Maint. Visits - Ops Site,ENV - Mine Water Operations,Severn Trent Serv Ops Uk Ltd,137137,"371,650.38"
"Department for Business, Energy and Industrial Strategy",The Coal Authority,14/09/2022,Minewater Contractor Maint. Visits - Ops Site,ENV - Mine Water Operations,Severn Trent Serv Ops Uk Ltd,137139,"7,407.19"
"Department for Business, Energy and Industrial Strategy",The Coal Authority,14/09/2022,Minewater Contractor Maint. Visits - Ops Site,ENV - Mine Water Operations,Severn Trent Serv Ops Uk Ltd,137147,"1,012.54"
"Department for Business, Energy and Industrial Strategy",The Coal Authority,14/09/2022,Minewater Contractor Maint. Visits - Ops Site,ENV - Mine Water Operations,Severn Trent Serv Ops Uk Ltd,137147,0.01
"Department for Business, Energy and Industrial Strategy",The Coal Authority,14/09/2022,Minewater Contractor Maint. Visits - Ops Site,ENV - Mine Water Operations,Severn Trent Serv Ops Uk Ltd,137147,"11,877.30"
"Department for Business, Energy and Industrial Strategy",The Coal Authority,14/09/2022,Minewater Contractor Maint. Visits - Ops Site,ENV - Mine Water Operations,Severn Trent Serv Ops Uk Ltd,137147,"1,305.04"
"Department for Business, Energy and Industrial Strategy",The Coal Authority,14/09/2022,Minewater Contractor Maint. Visits - Ops Site,ENV - Mine Water Operations,Severn Trent Serv Ops Uk Ltd,137147,96.92
"Department for Business, Energy and Industrial Strategy",The Coal Authority,16/09/2022,Minewater Contractor Maint. Visits - Ops Site,ENV - Mine Water Operations,National Coal Mining Museum,137373,"6,321.43"
"Department for Business, Energy and Industrial Strategy",The Coal Authority,16/09/2022,Minewater Contractor Maint. Visits - Ops Site,ENV - Mine Water Operations,National Coal Mining Museum,137374,"2,384.00"
"Department for Business, Energy and Industrial Strategy",The Coal Authority,16/09/2022,Minewater Discharge Consents,ENV - Mine Water Operations,National Coal Mining Museum,137375,"1,686.00"
"Department for Business, Energy and Industrial Strategy",The Coal Authority,06/07/2022,Minewater Feasibility / Scoping,ENV - Projects & Delivery,Cornerstone  Projects Ltd,135885,"2,090.99"
"Department for Business, Energy and Industrial Strategy",The Coal Authority,31/08/2022,Minewater Feasibility / Scoping,NRW Metal Mine Programme,Strata Geotechnics (part of Van Elle Limited),136122,"1,866.50"
"Department for Business, Energy and Industrial Strategy",The Coal Authority,21/09/2022,Minewater Feasibility / Scoping,DEFRA Metal Mine Programme,Jeremy Benn Associates Ltd,137576,750.00
"Department for Business, Energy and Industrial Strategy",The Coal Authority,27/09/2022,Minewater Feasibility / Scoping,NRW Metal Mine Programme,Hydro-Logic Services Int Limited,137764,101.00
"Department for Business, Energy and Industrial Strategy",The Coal Authority,27/09/2022,Minewater Feasibility / Scoping,NRW Metal Mine Programme,Hydro-Logic Services Int Limited,137764,"1,347.00"
"Department for Business, Energy and Industrial Strategy",The Coal Authority,08/08/2022,Minewater Land Agents (Acquisitions),PS&S - Industry Claims,Government Procurement Card,137737,90.00
"Department for Business, Energy and Industrial Strategy",The Coal Authority,14/09/2022,Minewater Liability & Monitoring Sites - Ad-hoc,ENV - Mine Water Operations,Severn Trent Serv Ops Uk Ltd,137147,"2,143.10"
"Department for Business, Energy and Industrial Strategy",The Coal Authority,08/09/2022,Minewater Liability & Monitoring Sites - Maint.,ENV - Technical,Detectronic Limited,136882,900.00
"Department for Business, Energy and Industrial Strategy",The Coal Authority,15/03/2022,Minewater Liability & Monitoring Sites - Maint.,ENV - Technical,Detectronic Limited,137006,900.00
"Department for Business, Energy and Industrial Strategy",The Coal Authority,14/09/2022,Minewater Liability & Monitoring Sites - Maint.,ENV - Mine Water Operations,Severn Trent Serv Ops Uk Ltd,137147,98.61
"Department for Business, Energy and Industrial Strategy",The Coal Authority,06/09/2022,Minewater Management Fees,DEFRA Metal Mine Programme,John F Hunt Regeneration Ltd,136047,"41,399.26"
"Department for Business, Energy and Industrial Strategy",The Coal Authority,14/09/2022,Minewater Management Fees,ENV - Mine Water Operations,Severn Trent Serv Ops Uk Ltd,137147,13.26
"Department for Business, Energy and Industrial Strategy",The Coal Authority,11/05/2022,Minewater Monitoring & Flow Measurement,DEFRA Metal Mine Programme,Detectronic Limited,136529,500.00
"Department for Business, Energy and Industrial Strategy",The Coal Authority,30/08/2022,Minewater Monitoring & Flow Measurement,NRW Metal Mine Programme,Socotec,136642,506.76
"Department for Business, Energy and Industrial Strategy",The Coal Authority,30/08/2022,Minewater Monitoring & Flow Measurement,ENV - Projects & Delivery,Socotec,136802,219.52
"Department for Business, Energy and Industrial Strategy",The Coal Authority,21/07/2022,Minewater Monitoring & Flow Measurement,DEFRA Metal Mine Programme,Hydro-Logic Services Int Limited,136883,274.00
"Department for Business, Energy and Industrial Strategy",The Coal Authority,21/07/2022,Minewater Monitoring & Flow Measurement,DEFRA Metal Mine Programme,Hydro-Logic Services Int Limited,136884,274.00
"Department for Business, Energy and Industrial Strategy",The Coal Authority,30/08/2022,Minewater Monitoring & Flow Measurement,ENV - Technical,Socotec,137025,67.20
"Department for Business, Energy and Industrial Strategy",The Coal Authority,30/08/2022,Minewater Monitoring & Flow Measurement,ENV - Technical,Socotec,137025,845.64
"Department for Business, Energy and Industrial Strategy",The Coal Authority,31/08/2022,Minewater Monitoring & Flow Measurement,Heat & By-Product Innovation,Swale Technologies Ltd,137076,"8,690.67"
"Department for Business, Energy and Industrial Strategy",The Coal Authority,31/08/2022,Minewater Monitoring & Flow Measurement,Heat & By-Product Innovation,Swale Technologies Ltd,137076,338.16
"Department for Business, Energy and Industrial Strategy",The Coal Authority,31/08/2022,Minewater Monitoring & Flow Measurement,Heat & By-Product Innovation,Swale Technologies Ltd,137076,30.00
"Department for Business, Energy and Industrial Strategy",The Coal Authority,28/04/2022,Minewater Monitoring & Flow Measurement,ENV - Technical,Socotec,137218,494.40
"Department for Business, Energy and Industrial Strategy",The Coal Authority,30/06/2022,Minewater Monitoring & Flow Measurement,ENV - Technical,Socotec,137219,389.34
"Department for Business, Energy and Industrial Strategy",The Coal Authority,12/05/2022,Minewater Monitoring & Flow Measurement,DEFRA Metal Mine Programme,Socotec,137271,920.00
"Department for Business, Energy and Industrial Strategy",The Coal Authority,10/06/2022,Minewater Monitoring & Flow Measurement,DEFRA Metal Mine Programme,Socotec,137273,723.00
"Department for Business, Energy and Industrial Strategy",The Coal Authority,01/02/2022,Minewater Monitoring & Flow Measurement,DEFRA Metal Mine Programme,Detectronic Limited,137278,500.00
"Department for Business, Energy and Industrial Strategy",The Coal Authority,23/09/2022,Minewater Monitoring & Flow Measurement,DEFRA LEP Funding,Hydro-Logic Services Int Limited,137575,"6,557.00"
"Department for Business, Energy and Industrial Strategy",The Coal Authority,23/09/2022,Minewater Monitoring & Flow Measurement,DEFRA LEP Funding,Hydro-Logic Services Int Limited,137575,270.75
"Department for Business, Energy and Industrial Strategy",The Coal Authority,20/09/2022,Minewater Monitoring & Flow Measurement,DEFRA Metal Mine Programme,Socotec,137700,342.14
"Department for Business, Energy and Industrial Strategy",The Coal Authority,29/09/2022,Minewater Monitoring & Flow Measurement,NRW Metal Mine Programme,Socotec,137778,"1,784.79"
"Department for Business, Energy and Industrial Strategy",The Coal Authority,29/09/2022,Minewater Monitoring & Flow Measurement,NRW Metal Mine Programme,Socotec,137779,223.38
"Department for Business, Energy and Industrial Strategy",The Coal Authority,29/09/2022,Minewater Monitoring & Flow Measurement,NRW Metal Mine Programme,Socotec,137779,30.00
"Department for Business, Energy and Industrial Strategy",The Coal Authority,19/08/2022,Minewater Power Costs,ENV - Mine Water Operations,IMServ Europe Limited,135892,185.00
"Department for Business, Energy and Industrial Strategy",The Coal Authority,19/08/2022,Minewater Power Costs,ENV - Mine Water Operations,IMServ Europe Limited,135892,111.00
"Department for Business, Energy and Industrial Strategy",The Coal Authority,19/08/2022,Minewater Power Costs,DEFRA Metal Mine Programme,IMServ Europe Limited,135893,189.00
"Department for Business, Energy and Industrial Strategy",The Coal Authority,19/08/2022,Minewater Power Costs,DEFRA Metal Mine Programme,IMServ Europe Limited,135893,189.00
"Department for Business, Energy and Industrial Strategy",The Coal Authority,19/08/2022,Minewater Power Costs,DEFRA Metal Mine Programme,IMServ Europe Limited,135893,189.00
"Department for Business, Energy and Industrial Strategy",The Coal Authority,19/08/2022,Minewater Power Costs,ENV - Mine Water Operations,IMServ Europe Limited,135893,189.00
"Department for Business, Energy and Industrial Strategy",The Coal Authority,19/08/2022,Minewater Power Costs,ENV - Mine Water Operations,IMServ Europe Limited,135893,189.00
"Department for Business, Energy and Industrial Strategy",The Coal Authority,19/08/2022,Minewater Power Costs,ENV - Mine Water Operations,IMServ Europe Limited,135893,189.00
"Department for Business, Energy and Industrial Strategy",The Coal Authority,19/08/2022,Minewater Power Costs,ENV - Mine Water Operations,IMServ Europe Limited,135893,189.00
"Department for Business, Energy and Industrial Strategy",The Coal Authority,19/08/2022,Minewater Power Costs,ENV - Mine Water Operations,IMServ Europe Limited,135893,189.00
"Department for Business, Energy and Industrial Strategy",The Coal Authority,19/08/2022,Minewater Power Costs,ENV - Mine Water Operations,IMServ Europe Limited,135893,189.00
"Department for Business, Energy and Industrial Strategy",The Coal Authority,19/08/2022,Minewater Power Costs,ENV - Mine Water Operations,IMServ Europe Limited,135893,189.00
"Department for Business, Energy and Industrial Strategy",The Coal Authority,19/08/2022,Minewater Power Costs,ENV - Mine Water Operations,IMServ Europe Limited,135893,189.00
"Department for Business, Energy and Industrial Strategy",The Coal Authority,19/08/2022,Minewater Power Costs,ENV - Mine Water Operations,IMServ Europe Limited,135893,189.00
"Department for Business, Energy and Industrial Strategy",The Coal Authority,19/08/2022,Minewater Power Costs,ENV - Mine Water Operations,IMServ Europe Limited,135893,189.00
"Department for Business, Energy and Industrial Strategy",The Coal Authority,19/08/2022,Minewater Power Costs,ENV - Mine Water Operations,IMServ Europe Limited,135893,189.00
"Department for Business, Energy and Industrial Strategy",The Coal Authority,19/08/2022,Minewater Power Costs,ENV - Mine Water Operations,IMServ Europe Limited,135893,189.00
"Department for Business, Energy and Industrial Strategy",The Coal Authority,19/08/2022,Minewater Power Costs,ENV - Mine Water Operations,IMServ Europe Limited,135893,189.00
"Department for Business, Energy and Industrial Strategy",The Coal Authority,19/08/2022,Minewater Power Costs,ENV - Mine Water Operations,IMServ Europe Limited,135893,189.00
"Department for Business, Energy and Industrial Strategy",The Coal Authority,19/08/2022,Minewater Power Costs,ENV - Mine Water Operations,IMServ Europe Limited,135893,189.00
"Department for Business, Energy and Industrial Strategy",The Coal Authority,19/08/2022,Minewater Power Costs,ENV - Mine Water Operations,IMServ Europe Limited,135893,189.00
"Department for Business, Energy and Industrial Strategy",The Coal Authority,19/08/2022,Minewater Power Costs,ENV - Mine Water Operations,IMServ Europe Limited,135893,254.00
"Department for Business, Energy and Industrial Strategy",The Coal Authority,19/08/2022,Minewater Power Costs,ENV - Mine Water Operations,IMServ Europe Limited,135893,189.00
"Department for Business, Energy and Industrial Strategy",The Coal Authority,19/08/2022,Minewater Power Costs,ENV - Mine Water Operations,IMServ Europe Limited,135893,189.00
"Department for Business, Energy and Industrial Strategy",The Coal Authority,19/08/2022,Minewater Power Costs,ENV - Mine Water Operations,IMServ Europe Limited,135893,189.00
"Department for Business, Energy and Industrial Strategy",The Coal Authority,19/08/2022,Minewater Power Costs,ENV - Mine Water Operations,IMServ Europe Limited,135893,189.00
"Department for Business, Energy and Industrial Strategy",The Coal Authority,19/08/2022,Minewater Power Costs,ENV - Mine Water Operations,IMServ Europe Limited,135893,189.00
"Department for Business, Energy and Industrial Strategy",The Coal Authority,19/08/2022,Minewater Power Costs,ENV - Mine Water Operations,IMServ Europe Limited,135893,189.00
"Department for Business, Energy and Industrial Strategy",The Coal Authority,19/08/2022,Minewater Power Costs,ENV - Mine Water Operations,IMServ Europe Limited,135893,189.00
"Department for Business, Energy and Industrial Strategy",The Coal Authority,19/08/2022,Minewater Power Costs,ENV - Mine Water Operations,IMServ Europe Limited,135893,189.00
"Department for Business, Energy and Industrial Strategy",The Coal Authority,19/08/2022,Minewater Power Costs,ENV - Projects & Delivery,IMServ Europe Limited,135893,189.00
"Department for Business, Energy and Industrial Strategy",The Coal Authority,18/08/2022,Minewater Power Costs,ENV - Mine Water Operations,IMServ Europe Limited,135894,120.84
"Department for Business, Energy and Industrial Strategy",The Coal Authority,18/08/2022,Minewater Power Costs,ENV - Mine Water Operations,IMServ Europe Limited,135894,120.84
"Department for Business, Energy and Industrial Strategy",The Coal Authority,18/08/2022,Minewater Power Costs,ENV - Mine Water Operations,IMServ Europe Limited,135894,120.84
"Department for Business, Energy and Industrial Strategy",The Coal Authority,18/08/2022,Minewater Power Costs,ENV - Mine Water Operations,IMServ Europe Limited,135894,120.84
"Department for Business, Energy and Industrial Strategy",The Coal Authority,18/08/2022,Minewater Power Costs,ENV - Mine Water Operations,IMServ Europe Limited,135894,120.84
"Department for Business, Energy and Industrial Strategy",The Coal Authority,18/08/2022,Minewater Power Costs,ENV - Mine Water Operations,IMServ Europe Limited,135894,120.84
"Department for Business, Energy and Industrial Strategy",The Coal Authority,18/08/2022,Minewater Power Costs,ENV - Mine Water Operations,IMServ Europe Limited,135894,120.84
"Department for Business, Energy and Industrial Strategy",The Coal Authority,18/08/2022,Minewater Power Costs,ENV - Mine Water Operations,IMServ Europe Limited,135894,120.84
"Department for Business, Energy and Industrial Strategy",The Coal Authority,18/08/2022,Minewater Power Costs,ENV - Mine Water Operations,IMServ Europe Limited,135894,120.84
"Department for Business, Energy and Industrial Strategy",The Coal Authority,18/08/2022,Minewater Power Costs,ENV - Mine Water Operations,IMServ Europe Limited,135894,120.84
"Department for Business, Energy and Industrial Strategy",The Coal Authority,18/08/2022,Minewater Power Costs,ENV - Mine Water Operations,IMServ Europe Limited,135894,120.84
"Department for Business, Energy and Industrial Strategy",The Coal Authority,18/08/2022,Minewater Power Costs,ENV - Mine Water Operations,IMServ Europe Limited,135894,120.84
"Department for Business, Energy and Industrial Strategy",The Coal Authority,18/08/2022,Minewater Power Costs,ENV - Mine Water Operations,IMServ Europe Limited,135894,120.84
"Department for Business, Energy and Industrial Strategy",The Coal Authority,18/08/2022,Minewater Power Costs,ENV - Mine Water Operations,IMServ Europe Limited,135894,120.84
"Department for Business, Energy and Industrial Strategy",The Coal Authority,22/08/2022,Minewater Power Costs,ENV - Mine Water Operations,IMServ Europe Limited,135895,30.21
"Department for Business, Energy and Industrial Strategy",The Coal Authority,22/08/2022,Minewater Power Costs,ENV - Mine Water Operations,IMServ Europe Limited,135895,30.21
"Department for Business, Energy and Industrial Strategy",The Coal Authority,22/08/2022,Minewater Power Costs,ENV - Mine Water Operations,IMServ Europe Limited,135895,30.21
"Department for Business, Energy and Industrial Strategy",The Coal Authority,22/08/2022,Minewater Power Costs,ENV - Mine Water Operations,IMServ Europe Limited,135895,30.21
"Department for Business, Energy and Industrial Strategy",The Coal Authority,22/08/2022,Minewater Power Costs,ENV - Mine Water Operations,IMServ Europe Limited,135895,30.21
"Department for Business, Energy and Industrial Strategy",The Coal Authority,22/08/2022,Minewater Power Costs,ENV - Mine Water Operations,IMServ Europe Limited,135895,30.21
"Department for Business, Energy and Industrial Strategy",The Coal Authority,22/08/2022,Minewater Power Costs,ENV - Mine Water Operations,IMServ Europe Limited,135895,30.21
"Department for Business, Energy and Industrial Strategy",The Coal Authority,22/08/2022,Minewater Power Costs,ENV - Mine Water Operations,IMServ Europe Limited,135895,30.21
"Department for Business, Energy and Industrial Strategy",The Coal Authority,22/08/2022,Minewater Power Costs,ENV - Mine Water Operations,IMServ Europe Limited,135895,30.21
"Department for Business, Energy and Industrial Strategy",The Coal Authority,22/08/2022,Minewater Power Costs,ENV - Mine Water Operations,IMServ Europe Limited,135895,30.21
"Department for Business, Energy and Industrial Strategy",The Coal Authority,22/08/2022,Minewater Power Costs,ENV - Mine Water Operations,IMServ Europe Limited,135895,30.21
"Department for Business, Energy and Industrial Strategy",The Coal Authority,22/08/2022,Minewater Power Costs,ENV - Mine Water Operations,IMServ Europe Limited,135895,30.21
"Department for Business, Energy and Industrial Strategy",The Coal Authority,22/08/2022,Minewater Power Costs,ENV - Mine Water Operations,IMServ Europe Limited,135895,30.21
"Department for Business, Energy and Industrial Strategy",The Coal Authority,22/08/2022,Minewater Power Costs,ENV - Mine Water Operations,IMServ Europe Limited,135905,33.24
"Department for Business, Energy and Industrial Strategy",The Coal Authority,22/08/2022,Minewater Power Costs,ENV - Mine Water Operations,IMServ Europe Limited,135905,33.24
"Department for Business, Energy and Industrial Strategy",The Coal Authority,22/08/2022,Minewater Power Costs,ENV - Mine Water Operations,IMServ Europe Limited,135905,33.24
"Department for Business, Energy and Industrial Strategy",The Coal Authority,22/08/2022,Minewater Power Costs,ENV - Mine Water Operations,IMServ Europe Limited,135905,33.24
"Department for Business, Energy and Industrial Strategy",The Coal Authority,22/08/2022,Minewater Power Costs,ENV - Mine Water Operations,IMServ Europe Limited,135905,33.24
"Department for Business, Energy and Industrial Strategy",The Coal Authority,22/08/2022,Minewater Power Costs,ENV - Mine Water Operations,IMServ Europe Limited,135905,33.24
"Department for Business, Energy and Industrial Strategy",The Coal Authority,22/08/2022,Minewater Power Costs,ENV - Mine Water Operations,IMServ Europe Limited,135905,33.24
"Department for Business, Energy and Industrial Strategy",The Coal Authority,22/08/2022,Minewater Power Costs,ENV - Mine Water Operations,IMServ Europe Limited,135905,33.24
"Department for Business, Energy and Industrial Strategy",The Coal Authority,22/08/2022,Minewater Power Costs,ENV - Mine Water Operations,IMServ Europe Limited,135905,33.24
"Department for Business, Energy and Industrial Strategy",The Coal Authority,22/08/2022,Minewater Power Costs,ENV - Mine Water Operations,IMServ Europe Limited,135905,33.24
"Department for Business, Energy and Industrial Strategy",The Coal Authority,22/08/2022,Minewater Power Costs,ENV - Mine Water Operations,IMServ Europe Limited,135905,33.24
"Department for Business, Energy and Industrial Strategy",The Coal Authority,22/08/2022,Minewater Power Costs,ENV - Projects & Delivery,IMServ Europe Limited,135905,33.24
"Department for Business, Energy and Industrial Strategy",The Coal Authority,20/07/2022,Minewater Power Costs,ENV - Mine Water Operations,National Coal Mining Museum,135906,"12,175.37"
"Department for Business, Energy and Industrial Strategy",The Coal Authority,05/09/2022,Minewater Power Costs,DEFRA Metal Mine Programme,Edf Energy,136378,"33,765.70"
"Department for Business, Energy and Industrial Strategy",The Coal Authority,05/09/2022,Minewater Power Costs,DEFRA Metal Mine Programme,Edf Energy,136378,"2,529.23"
"Department for Business, Energy and Industrial Strategy",The Coal Authority,05/09/2022,Minewater Power Costs,ENV - Mine Water Operations,Edf Energy,136378,"10,490.91"
"Department for Business, Energy and Industrial Strategy",The Coal Authority,05/09/2022,Minewater Power Costs,ENV - Mine Water Operations,Edf Energy,136378,679.11
"Department for Business, Energy and Industrial Strategy",The Coal Authority,05/09/2022,Minewater Power Costs,ENV - Mine Water Operations,Edf Energy,136378,11.33
"Department for Business, Energy and Industrial Strategy",The Coal Authority,05/09/2022,Minewater Power Costs,ENV - Mine Water Operations,Edf Energy,136378,"2,117.49"
"Department for Business, Energy and Industrial Strategy",The Coal Authority,05/09/2022,Minewater Power Costs,ENV - Mine Water Operations,Edf Energy,136378,"1,850.28"
"Department for Business, Energy and Industrial Strategy",The Coal Authority,05/09/2022,Minewater Power Costs,ENV - Mine Water Operations,Edf Energy,136378,"15,700.66"
"Department for Business, Energy and Industrial Strategy",The Coal Authority,05/09/2022,Minewater Power Costs,ENV - Mine Water Operations,Edf Energy,136378,261.48
"Department for Business, Energy and Industrial Strategy",The Coal Authority,05/09/2022,Minewater Power Costs,ENV - Mine Water Operations,Edf Energy,136378,"2,686.70"
"Department for Business, Energy and Industrial Strategy",The Coal Authority,05/09/2022,Minewater Power Costs,ENV - Mine Water Operations,Edf Energy,136378,"17,786.30"
"Department for Business, Energy and Industrial Strategy",The Coal Authority,05/09/2022,Minewater Power Costs,ENV - Mine Water Operations,Edf Energy,136378,"14,724.72"
"Department for Business, Energy and Industrial Strategy",The Coal Authority,05/09/2022,Minewater Power Costs,ENV - Mine Water Operations,Edf Energy,136378,"2,430.57"
"Department for Business, Energy and Industrial Strategy",The Coal Authority,05/09/2022,Minewater Power Costs,ENV - Mine Water Operations,Edf Energy,136378,"19,562.48"
"Department for Business, Energy and Industrial Strategy",The Coal Authority,05/09/2022,Minewater Power Costs,ENV - Mine Water Operations,Edf Energy,136378,"24,368.79"
"Department for Business, Energy and Industrial Strategy",The Coal Authority,05/09/2022,Minewater Power Costs,ENV - Mine Water Operations,Edf Energy,136378,895.25
"Department for Business, Energy and Industrial Strategy",The Coal Authority,05/09/2022,Minewater Power Costs,ENV - Mine Water Operations,Edf Energy,136378,"1,987.74"
"Department for Business, Energy and Industrial Strategy",The Coal Authority,05/09/2022,Minewater Power Costs,ENV - Mine Water Operations,Edf Energy,136378,"6,380.70"
"Department for Business, Energy and Industrial Strategy",The Coal Authority,05/09/2022,Minewater Power Costs,ENV - Mine Water Operations,Edf Energy,136378,"13,762.07"
"Department for Business, Energy and Industrial Strategy",The Coal Authority,05/09/2022,Minewater Power Costs,ENV - Mine Water Operations,Edf Energy,136378,"1,201.20"
"Department for Business, Energy and Industrial Strategy",The Coal Authority,05/09/2022,Minewater Power Costs,ENV - Mine Water Operations,Edf Energy,136378,"8,368.28"
"Department for Business, Energy and Industrial Strategy",The Coal Authority,05/09/2022,Minewater Power Costs,ENV - Mine Water Operations,Edf Energy,136378,"2,100.38"
"Department for Business, Energy and Industrial Strategy",The Coal Authority,05/09/2022,Minewater Power Costs,ENV - Mine Water Operations,Edf Energy,136378,32.13
"Department for Business, Energy and Industrial Strategy",The Coal Authority,05/09/2022,Minewater Power Costs,ENV - Mine Water Operations,Edf Energy,136378,"1,209.18"
"Department for Business, Energy and Industrial Strategy",The Coal Authority,05/09/2022,Minewater Power Costs,ENV - Mine Water Operations,Edf Energy,136378,"11,672.67"
"Department for Business, Energy and Industrial Strategy",The Coal Authority,05/09/2022,Minewater Power Costs,ENV - Mine Water Operations,Edf Energy,136378,410.90
"Department for Business, Energy and Industrial Strategy",The Coal Authority,05/09/2022,Minewater Power Costs,ENV - Mine Water Operations,Edf Energy,136378,"1,129.47"
"Department for Business, Energy and Industrial Strategy",The Coal Authority,05/09/2022,Minewater Power Costs,ENV - Mine Water Operations,Edf Energy,136378,"4,071.03"
"Department for Business, Energy and Industrial Strategy",The Coal Authority,05/09/2022,Minewater Power Costs,ENV - Mine Water Operations,Edf Energy,136378,"9,259.01"
"Department for Business, Energy and Industrial Strategy",The Coal Authority,05/09/2022,Minewater Power Costs,ENV - Mine Water Operations,Edf Energy,136378,"2,081.37"
"Department for Business, Energy and Industrial Strategy",The Coal Authority,05/09/2022,Minewater Power Costs,ENV - Mine Water Operations,Edf Energy,136378,"52,396.72"
"Department for Business, Energy and Industrial Strategy",The Coal Authority,05/09/2022,Minewater Power Costs,ENV - Mine Water Operations,Edf Energy,136378,"6,766.21"
"Department for Business, Energy and Industrial Strategy",The Coal Authority,05/09/2022,Minewater Power Costs,ENV - Mine Water Operations,Edf Energy,136378,"7,139.19"
"Department for Business, Energy and Industrial Strategy",The Coal Authority,05/09/2022,Minewater Power Costs,ENV - Mine Water Operations,Edf Energy,136378,687.57
"Department for Business, Energy and Industrial Strategy",The Coal Authority,05/09/2022,Minewater Power Costs,ENV - Mine Water Operations,Edf Energy,136378,"11,597.25"
"Department for Business, Energy and Industrial Strategy",The Coal Authority,05/09/2022,Minewater Power Costs,ENV - Mine Water Operations,Edf Energy,136378,"20,823.37"
"Department for Business, Energy and Industrial Strategy",The Coal Authority,05/09/2022,Minewater Power Costs,ENV - Mine Water Operations,Edf Energy,136378,"1,527.84"
"Department for Business, Energy and Industrial Strategy",The Coal Authority,05/09/2022,Minewater Power Costs,ENV - Mine Water Operations,Edf Energy,136378,"4,101.59"
"Department for Business, Energy and Industrial Strategy",The Coal Authority,05/09/2022,Minewater Power Costs,ENV - Mine Water Operations,Edf Energy,136378,"1,487.88"
"Department for Business, Energy and Industrial Strategy",The Coal Authority,05/09/2022,Minewater Power Costs,ENV - Mine Water Operations,Edf Energy,136378,"3,836.75"
"Department for Business, Energy and Industrial Strategy",The Coal Authority,05/09/2022,Minewater Power Costs,ENV - Mine Water Operations,Edf Energy,136378,"3,654.07"
"Department for Business, Energy and Industrial Strategy",The Coal Authority,05/09/2022,Minewater Power Costs,ENV - Mine Water Operations,Edf Energy,136378,"1,031.20"
"Department for Business, Energy and Industrial Strategy",The Coal Authority,05/09/2022,Minewater Power Costs,ENV - Mine Water Operations,Edf Energy,136378,"2,631.10"
"Department for Business, Energy and Industrial Strategy",The Coal Authority,05/09/2022,Minewater Power Costs,ENV - Mine Water Operations,Edf Energy,136378,312.81
"Department for Business, Energy and Industrial Strategy",The Coal Authority,05/09/2022,Minewater Power Costs,ENV - Mine Water Operations,Edf Energy,136378,"27,724.30"
"Department for Business, Energy and Industrial Strategy",The Coal Authority,05/09/2022,Minewater Power Costs,ENV - Mine Water Operations,Edf Energy,136378,"2,134.54"
"Department for Business, Energy and Industrial Strategy",The Coal Authority,05/09/2022,Minewater Power Costs,ENV - Projects & Delivery,Edf Energy,136378,194.38
"Department for Business, Energy and Industrial Strategy",The Coal Authority,12/09/2022,Minewater Power Costs,ENV - Mine Water Operations,Edf Energy,136387,-906.00
"Department for Business, Energy and Industrial Strategy",The Coal Authority,12/09/2022,Minewater Power Costs,ENV - Mine Water Operations,Edf Energy,136387,"-1,854.03"
"Department for Business, Energy and Industrial Strategy",The Coal Authority,12/09/2022,Minewater Power Costs,ENV - Mine Water Operations,Edf Energy,136387,"-1,886.34"
"Department for Business, Energy and Industrial Strategy",The Coal Authority,12/09/2022,Minewater Power Costs,ENV - Mine Water Operations,Edf Energy,136387,-846.58
"Department for Business, Energy and Industrial Strategy",The Coal Authority,06/09/2022,Minewater Power Costs,DEFRA Metal Mine Programme,Wheal Jane Ltd,137028,564.01
"Department for Business, Energy and Industrial Strategy",The Coal Authority,22/08/2022,Minewater Power Costs,DEFRA Metal Mine Programme,IMServ Europe Limited,137517,67.08
"Department for Business, Energy and Industrial Strategy",The Coal Authority,22/08/2022,Minewater Power Costs,DEFRA Metal Mine Programme,IMServ Europe Limited,137517,67.08
"Department for Business, Energy and Industrial Strategy",The Coal Authority,22/08/2022,Minewater Power Costs,ENV - Mine Water Operations,IMServ Europe Limited,137517,67.08
"Department for Business, Energy and Industrial Strategy",The Coal Authority,22/08/2022,Minewater Power Costs,ENV - Mine Water Operations,IMServ Europe Limited,137517,67.08
"Department for Business, Energy and Industrial Strategy",The Coal Authority,22/08/2022,Minewater Power Costs,ENV - Mine Water Operations,IMServ Europe Limited,137517,67.08
"Department for Business, Energy and Industrial Strategy",The Coal Authority,22/08/2022,Minewater Power Costs,ENV - Mine Water Operations,IMServ Europe Limited,137517,67.08
"Department for Business, Energy and Industrial Strategy",The Coal Authority,22/08/2022,Minewater Power Costs,ENV - Mine Water Operations,IMServ Europe Limited,137517,67.08
"Department for Business, Energy and Industrial Strategy",The Coal Authority,22/08/2022,Minewater Power Costs,ENV - Mine Water Operations,IMServ Europe Limited,137517,67.08
"Department for Business, Energy and Industrial Strategy",The Coal Authority,22/08/2022,Minewater Power Costs,ENV - Mine Water Operations,IMServ Europe Limited,137517,67.08
"Department for Business, Energy and Industrial Strategy",The Coal Authority,22/08/2022,Minewater Power Costs,ENV - Mine Water Operations,IMServ Europe Limited,137517,121.45
"Department for Business, Energy and Industrial Strategy",The Coal Authority,22/08/2022,Minewater Power Costs,ENV - Mine Water Operations,IMServ Europe Limited,137517,67.08
"Department for Business, Energy and Industrial Strategy",The Coal Authority,22/08/2022,Minewater Power Costs,ENV - Mine Water Operations,IMServ Europe Limited,137517,67.08
"Department for Business, Energy and Industrial Strategy",The Coal Authority,22/08/2022,Minewater Power Costs,ENV - Mine Water Operations,IMServ Europe Limited,137517,67.08
"Department for Business, Energy and Industrial Strategy",The Coal Authority,22/08/2022,Minewater Power Costs,ENV - Mine Water Operations,IMServ Europe Limited,137517,67.08
"Department for Business, Energy and Industrial Strategy",The Coal Authority,22/08/2022,Minewater Power Costs,ENV - Mine Water Operations,IMServ Europe Limited,137517,67.08
"Department for Business, Energy and Industrial Strategy",The Coal Authority,22/08/2022,Minewater Power Costs,ENV - Mine Water Operations,IMServ Europe Limited,137517,67.08
"Department for Business, Energy and Industrial Strategy",The Coal Authority,22/08/2022,Minewater Power Costs,ENV - Mine Water Operations,IMServ Europe Limited,137517,67.08
"Department for Business, Energy and Industrial Strategy",The Coal Authority,22/08/2022,Minewater Power Costs,ENV - Mine Water Operations,IMServ Europe Limited,137517,67.08
"Department for Business, Energy and Industrial Strategy",The Coal Authority,22/08/2022,Minewater Power Costs,ENV - Mine Water Operations,IMServ Europe Limited,137517,67.08
"Department for Business, Energy and Industrial Strategy",The Coal Authority,22/08/2022,Minewater Power Costs,ENV - Mine Water Operations,IMServ Europe Limited,137517,67.08
"Department for Business, Energy and Industrial Strategy",The Coal Authority,22/08/2022,Minewater Power Costs,ENV - Mine Water Operations,IMServ Europe Limited,137517,67.08
"Department for Business, Energy and Industrial Strategy",The Coal Authority,22/08/2022,Minewater Power Costs,ENV - Mine Water Operations,IMServ Europe Limited,137517,67.08
"Department for Business, Energy and Industrial Strategy",The Coal Authority,22/08/2022,Minewater Power Costs,ENV - Mine Water Operations,IMServ Europe Limited,137517,67.08
"Department for Business, Energy and Industrial Strategy",The Coal Authority,22/08/2022,Minewater Power Costs,ENV - Projects & Delivery,IMServ Europe Limited,137517,67.08
"Department for Business, Energy and Industrial Strategy",The Coal Authority,22/08/2022,Minewater Power Costs,ENV - Projects & Delivery,IMServ Europe Limited,137517,67.08
"Department for Business, Energy and Industrial Strategy",The Coal Authority,14/09/2022,Minewater Pump Overhauls,ENV - Mine Water Operations,Severn Trent Serv Ops Uk Ltd,137147,"3,752.90"
"Department for Business, Energy and Industrial Strategy",The Coal Authority,14/09/2022,Minewater Pump Overhauls,ENV - Mine Water Operations,Severn Trent Serv Ops Uk Ltd,137147,"4,527.96"
"Department for Business, Energy and Industrial Strategy",The Coal Authority,14/09/2022,Minewater Pump Overhauls,ENV - Mine Water Operations,Severn Trent Serv Ops Uk Ltd,137147,"3,751.98"
"Department for Business, Energy and Industrial Strategy",The Coal Authority,14/09/2022,Minewater Pump Overhauls,ENV - Mine Water Operations,Severn Trent Serv Ops Uk Ltd,137147,"6,184.04"
"Department for Business, Energy and Industrial Strategy",The Coal Authority,14/09/2022,Minewater Pump Overhauls,ENV - Mine Water Operations,Severn Trent Serv Ops Uk Ltd,137147,"16,988.94"
"Department for Business, Energy and Industrial Strategy",The Coal Authority,05/09/2022,Minewater Pumping Tests,ENV - Projects & Delivery,Edf Energy,136378,"2,463.44"
"Department for Business, Energy and Industrial Strategy",The Coal Authority,14/09/2022,Minewater Pumping Tests,ENV - Projects & Delivery,Severn Trent Serv Ops Uk Ltd,137147,"2,383.39"
"Department for Business, Energy and Industrial Strategy",The Coal Authority,14/09/2022,Minewater Pumping Tests,ENV - Projects & Delivery,Severn Trent Serv Ops Uk Ltd,137147,"1,117.08"
"Department for Business, Energy and Industrial Strategy",The Coal Authority,14/09/2022,Minewater Pumping Tests,ENV - Projects & Delivery,Severn Trent Serv Ops Uk Ltd,137147,"12,208.90"
"Department for Business, Energy and Industrial Strategy",The Coal Authority,22/09/2022,Minewater Pumping Tests,ENV - Projects & Delivery,Severn Trent Serv Ops Uk Ltd,137148,"-12,208.90"
"Department for Business, Energy and Industrial Strategy",The Coal Authority,14/09/2022,Minewater Pumping Tests,ENV - Projects & Delivery,Severn Trent Serv Ops Uk Ltd,137152,"12,208.89"
"Department for Business, Energy and Industrial Strategy",The Coal Authority,14/09/2022,Minewater Pumping Tests,ENV - Projects & Delivery,Severn Trent Serv Ops Uk Ltd,137152,0.01
"Department for Business, Energy and Industrial Strategy",The Coal Authority,02/09/2022,Minewater Rent,DEFRA Metal Mine Programme,The National Trust,135733,10.00
"Department for Business, Energy and Industrial Strategy",The Coal Authority,12/04/2022,Minewater Rent,ENV - Mine Water Operations,Forest Enterprise Scotland,135886,"3,101.20"
"Department for Business, Energy and Industrial Strategy",The Coal Authority,01/06/2022,Minewater Rent,ENV - Mine Water Operations,Savills Uk Ltd Client Recpt A/c,136049,428.73
"Department for Business, Energy and Industrial Strategy",The Coal Authority,12/09/2022,Minewater Rent,ENV - Mine Water Operations,Rental Payment,136479,"1,057.56"
"Department for Business, Energy and Industrial Strategy",The Coal Authority,12/09/2022,Minewater Rent,ENV - Mine Water Operations,Rental Payment,136480,"3,000.00"
"Department for Business, Energy and Industrial Strategy",The Coal Authority,12/09/2022,Minewater Rent,ENV - Projects & Delivery,Rental Payment,136481,"1,000.00"
"Department for Business, Energy and Industrial Strategy",The Coal Authority,12/09/2022,Minewater Rent,ENV - Projects & Delivery,P M Quigley & Sons,136482,"2,750.00"
"Department for Business, Energy and Industrial Strategy",The Coal Authority,13/09/2022,Minewater Rent,ENV - Mine Water Operations,Crown Estate Re Bidwells,136824,"1,500.00"
"Department for Business, Energy and Industrial Strategy",The Coal Authority,12/09/2022,Minewater Rent,ENV - Mine Water Operations,Caroline Large Property,137052,654.15
"Department for Business, Energy and Industrial Strategy",The Coal Authority,07/02/2022,Minewater Rent,ENV - Mine Water Operations,The Trustees Of Dunfermline Golf Club,137053,500.00
"Department for Business, Energy and Industrial Strategy",The Coal Authority,20/05/2022,Minewater Rent,DEFRA Metal Mine Programme,Brownfield Investments Ltd,137085,"22,269.25"
"Department for Business, Energy and Industrial Strategy",The Coal Authority,20/08/2022,Minewater Rent,DEFRA Metal Mine Programme,Brownfield Investments Ltd,137087,"22,269.25"
"Department for Business, Energy and Industrial Strategy",The Coal Authority,27/09/2022,Minewater Rent,ENV - Mine Water Operations,Rental Payment,137607,"4,900.00"
"Department for Business, Energy and Industrial Strategy",The Coal Authority,27/09/2022,Minewater Rent,ENV - Mine Water Operations,Rental Payment,137608,"4,900.00"
"Department for Business, Energy and Industrial Strategy",The Coal Authority,30/09/2022,Minewater Rent,DEFRA Metal Mine Programme,Wharton Estates,137609,989.66
"Department for Business, Energy and Industrial Strategy",The Coal Authority,30/09/2022,Minewater Rent,DEFRA Metal Mine Programme,Wharton Estates,137610,"8,541.68"
"Department for Business, Energy and Industrial Strategy",The Coal Authority,30/08/2022,Minewater Sampling - 'Non-operational' Sites,DEFRA Metal Mine Programme,Socotec,136531,69.44
"Department for Business, Energy and Industrial Strategy",The Coal Authority,30/08/2022,Minewater Sampling - 'Non-operational' Sites,DEFRA Metal Mine Programme,Socotec,136531,69.44
"Department for Business, Energy and Industrial Strategy",The Coal Authority,30/08/2022,Minewater Sampling - 'Non-operational' Sites,DEFRA Metal Mine Programme,Socotec,136531,15.00
"Department for Business, Energy and Industrial Strategy",The Coal Authority,30/08/2022,Minewater Sampling - 'Non-operational' Sites,DEFRA Metal Mine Programme,Socotec,136531,15.00
"Department for Business, Energy and Industrial Strategy",The Coal Authority,28/02/2022,Minewater Sampling - 'Non-operational' Sites,DEFRA Metal Mine Programme,Enitial Limited,136537,"1,300.00"
"Department for Business, Energy and Industrial Strategy",The Coal Authority,25/08/2022,Minewater Sampling - 'Non-operational' Sites,DEFRA Metal Mine Programme,Socotec,136725,177.86
"Department for Business, Energy and Industrial Strategy",The Coal Authority,25/08/2022,Minewater Sampling - 'Non-operational' Sites,DEFRA Metal Mine Programme,Socotec,136726,157.86
"Department for Business, Energy and Industrial Strategy",The Coal Authority,25/08/2022,Minewater Sampling - 'Non-operational' Sites,DEFRA Metal Mine Programme,Socotec,136727,651.44
"Department for Business, Energy and Industrial Strategy",The Coal Authority,25/08/2022,Minewater Sampling - 'Non-operational' Sites,DEFRA Metal Mine Programme,Socotec,136734,262.04
"Department for Business, Energy and Industrial Strategy",The Coal Authority,25/08/2022,Minewater Sampling - 'Non-operational' Sites,DEFRA Metal Mine Programme,Socotec,136735,262.04
"Department for Business, Energy and Industrial Strategy",The Coal Authority,25/08/2022,Minewater Sampling - 'Non-operational' Sites,DEFRA Metal Mine Programme,Socotec,136736,262.04
"Department for Business, Energy and Industrial Strategy",The Coal Authority,30/08/2022,Minewater Sampling - 'Non-operational' Sites,DEFRA Metal Mine Programme,Socotec,136737,409.60
"Department for Business, Energy and Industrial Strategy",The Coal Authority,30/08/2022,Minewater Sampling - 'Non-operational' Sites,DEFRA Metal Mine Programme,Socotec,136738,177.86
"Department for Business, Energy and Industrial Strategy",The Coal Authority,30/08/2022,Minewater Sampling - 'Non-operational' Sites,DEFRA Metal Mine Programme,Socotec,136739,651.44
"Department for Business, Energy and Industrial Strategy",The Coal Authority,14/09/2022,Minewater Sampling - 'Non-operational' Sites,ENV - Projects & Delivery,Severn Trent Serv Ops Uk Ltd,137147,232.42
"Department for Business, Energy and Industrial Strategy",The Coal Authority,06/09/2022,Minewater Sampling - Operational Sites,DEFRA Metal Mine Programme,John F Hunt Regeneration Ltd,136047,"1,059.87"
"Department for Business, Energy and Industrial Strategy",The Coal Authority,06/09/2022,Minewater Sampling - Operational Sites,DEFRA Metal Mine Programme,John F Hunt Regeneration Ltd,136047,0.01
"Department for Business, Energy and Industrial Strategy",The Coal Authority,25/08/2022,Minewater Sampling - Operational Sites,ENV - Mine Water Operations,Socotec,136390,482.02
"Department for Business, Energy and Industrial Strategy",The Coal Authority,14/09/2022,Minewater Sampling - Operational Sites,ENV - Mine Water Operations,Severn Trent Serv Ops Uk Ltd,137147,"6,551.11"
"Department for Business, Energy and Industrial Strategy",The Coal Authority,20/09/2022,Minewater Sampling - Operational Sites,ENV - Mine Water Operations,Socotec,137587,502.02
"Department for Business, Energy and Industrial Strategy",The Coal Authority,30/08/2022,Minewater Site Surveys,NRW Metal Mine Programme,Hydro-Logic Services Int Limited,135858,"1,247.22"
"Department for Business, Energy and Industrial Strategy",The Coal Authority,14/09/2022,Minewater Site Surveys,ENV - Mine Water Operations,Severn Trent Serv Ops Uk Ltd,137147,64.65
"Department for Business, Energy and Industrial Strategy",The Coal Authority,31/08/2022,Minewater Site Surveys,ENV - Projects & Delivery,Cornerstone  Projects Ltd,137165,269.20
"Department for Business, Energy and Industrial Strategy",The Coal Authority,26/09/2022,Minewater Site Surveys,NRW Metal Mine Programme,Cornerstone  Projects Ltd,137334,286.13
"Department for Business, Energy and Industrial Strategy",The Coal Authority,26/07/2022,Minewater Site Surveys,NRW Metal Mine Programme,Hydro-Logic Services Int Limited,137630,"25,442.00"
"Department for Business, Energy and Industrial Strategy",The Coal Authority,31/08/2022,Minewater Sludge Disposal,DEFRA LEP Funding,Rivers Catchment Serv Ltd,136026,"13,284.10"
"Department for Business, Energy and Industrial Strategy",The Coal Authority,31/08/2022,Minewater Sludge Disposal,DEFRA LEP Funding,Rivers Catchment Serv Ltd,136028,"13,437.75"
"Department for Business, Energy and Industrial Strategy",The Coal Authority,31/08/2022,Minewater Sludge Disposal,DEFRA LEP Funding,Rivers Catchment Serv Ltd,136028,"1,970.00"
"Department for Business, Energy and Industrial Strategy",The Coal Authority,31/08/2022,Minewater Sludge Disposal,DEFRA LEP Funding,Rivers Catchment Serv Ltd,136028,"1,191.60"
"Department for Business, Energy and Industrial Strategy",The Coal Authority,31/08/2022,Minewater Sludge Disposal,DEFRA LEP Funding,Rivers Catchment Serv Ltd,136028,"3,965.00"
"Department for Business, Energy and Industrial Strategy",The Coal Authority,01/09/2022,Minewater Sludge Disposal,DEFRA Metal Mine Programme,Wheal Jane Ltd,136527,"37,333.33"
"Department for Business, Energy and Industrial Strategy",The Coal Authority,02/05/2022,Minewater Sludge Disposal,DEFRA Metal Mine Programme,Wheal Jane Ltd,136528,"37,333.33"
"Department for Business, Energy and Industrial Strategy",The Coal Authority,14/09/2022,Minewater Sludge Disposal,DEFRA Metal Mine Programme,Severn Trent Serv Ops Uk Ltd,137138,"3,732.63"
"Department for Business, Energy and Industrial Strategy",The Coal Authority,14/09/2022,Minewater Sludge Disposal,ENV - Mine Water Operations,Severn Trent Serv Ops Uk Ltd,137147,116.60
"Department for Business, Energy and Industrial Strategy",The Coal Authority,14/09/2022,Minewater Sludge Disposal,ENV - Mine Water Operations,Severn Trent Serv Ops Uk Ltd,137147,359.56
"Department for Business, Energy and Industrial Strategy",The Coal Authority,14/09/2022,Minewater Sludge Disposal,ENV - Mine Water Operations,Severn Trent Serv Ops Uk Ltd,137147,209.85
"Department for Business, Energy and Industrial Strategy",The Coal Authority,14/09/2022,Minewater Sludge Disposal,ENV - Mine Water Operations,Severn Trent Serv Ops Uk Ltd,137147,449.45
"Department for Business, Energy and Industrial Strategy",The Coal Authority,14/09/2022,Minewater Sludge Disposal,ENV - Mine Water Operations,Severn Trent Serv Ops Uk Ltd,137147,299.63
"Department for Business, Energy and Industrial Strategy",The Coal Authority,29/08/2022,Minewater Telecoms & Telemetry,ENV - Mine Water Operations,KORE Wireless UK PLC,136184,35.00
"Department for Business, Energy and Industrial Strategy",The Coal Authority,20/07/2022,Minewater Water Charges,ENV - Mine Water Operations,National Coal Mining Museum,135907,"3,502.76"
"Department for Business, Energy and Industrial Strategy",The Coal Authority,09/08/2022,Networking / Cabling,DIG - Technical Delivery,Government Procurement Card,137737,190.00
"Department for Business, Energy and Industrial Strategy",The Coal Authority,24/08/2022,Office Telephony - Line Rent,DIG - Service & Assurance,Government Procurement Card,137737,31.50
"Department for Business, Energy and Industrial Strategy",The Coal Authority,31/08/2022,Ordance Survey Map Charges,Mining Reports,Ordnance Survey,135749,"4,561.68"
"Department for Business, Energy and Industrial Strategy",The Coal Authority,19/08/2022,Ordance Survey Map Charges,Mining Reports,Ordnance Survey,136061,"4,899.97"
"Department for Business, Energy and Industrial Strategy",The Coal Authority,19/08/2022,Ordance Survey Map Charges,Mining Reports,Ordnance Survey,136061,0.01
"Department for Business, Energy and Industrial Strategy",The Coal Authority,13/09/2022,Other Hosting / IaaS,Mining Reports,Bytemark,136487,-0.25
"Department for Business, Energy and Industrial Strategy",The Coal Authority,26/09/2022,Other Hosting / IaaS,Mining Reports,Bytemark,137412,-2.34
"Department for Business, Energy and Industrial Strategy",The Coal Authority,26/09/2022,Other Hosting / IaaS,Mining Reports,Bytemark,137413,-0.35
"Department for Business, Energy and Industrial Strategy",The Coal Authority,01/08/2022,Outsourced Cleaning Staff,Facilities,Regent Office Care Ltd T/A Regent Samsic,135846,"6,656.51"
"Department for Business, Energy and Industrial Strategy",The Coal Authority,31/08/2022,Outsourced Security Staff,Facilities,Regent Office Care Ltd T/A Regent Samsic,136782,"7,980.01"
"Department for Business, Energy and Industrial Strategy",The Coal Authority,25/08/2022,Payroll Processing Fees,Finance,Cgi It Uk Ltd,135847,924.27
"Department for Business, Energy and Industrial Strategy",The Coal Authority,25/08/2022,Payroll Processing Fees,Finance,Cgi It Uk Ltd,135848,64.81
"Department for Business, Energy and Industrial Strategy",The Coal Authority,26/09/2022,Payroll Processing Fees,Finance,Cgi It Uk Ltd,137489,860.90
"Department for Business, Energy and Industrial Strategy",The Coal Authority,27/09/2022,Payroll Processing Fees,Finance,Cgi It Uk Ltd,137675,55.67
"Department for Business, Energy and Industrial Strategy",The Coal Authority,30/08/2022,Peripherals / Consumables (MEP),Engineering,Staff Expenses Control,135750,30.82
"Department for Business, Energy and Industrial Strategy",The Coal Authority,09/09/2022,Peripherals / Consumables (MEP),Finance,Staff Expenses Control,136935,19.27
"Department for Business, Energy and Industrial Strategy",The Coal Authority,06/07/2022,Peripherals / Consumables (MEP),DIG - Service & Assurance,Government Procurement Card,137736,149.88
"Department for Business, Energy and Industrial Strategy",The Coal Authority,06/07/2022,Peripherals / Consumables (MEP),DIG - Service & Assurance,Government Procurement Card,137736,179.10
"Department for Business, Energy and Industrial Strategy",The Coal Authority,15/07/2022,Peripherals / Consumables (MEP),Mining Information,Government Procurement Card,137736,22.49
"Department for Business, Energy and Industrial Strategy",The Coal Authority,26/07/2022,Peripherals / Consumables (MEP),Finance,Government Procurement Card,137736,59.11
"Department for Business, Energy and Industrial Strategy",The Coal Authority,03/08/2022,Peripherals / Consumables (MEP),DIG - Service & Assurance,Government Procurement Card,137737,20.99
"Department for Business, Energy and Industrial Strategy",The Coal Authority,11/08/2022,Peripherals / Consumables (MEP),ENV - Technical,Government Procurement Card,137737,9.16
"Department for Business, Energy and Industrial Strategy",The Coal Authority,12/08/2022,Peripherals / Consumables (MEP),DIG - Service & Assurance,Government Procurement Card,137737,75.25
"Department for Business, Energy and Industrial Strategy",The Coal Authority,13/08/2022,Peripherals / Consumables (MEP),Finance,Government Procurement Card,137737,41.24
"Department for Business, Energy and Industrial Strategy",The Coal Authority,14/08/2022,Peripherals / Consumables (MEP),DIG - Service & Assurance,Government Procurement Card,137737,110.60
"Department for Business, Energy and Industrial Strategy",The Coal Authority,15/08/2022,Peripherals / Consumables (MEP),DIG - Service & Assurance,Government Procurement Card,137737,99.06
"Department for Business, Energy and Industrial Strategy",The Coal Authority,15/08/2022,Peripherals / Consumables (MEP),PS&S - General Claims,Government Procurement Card,137737,39.99
"Department for Business, Energy and Industrial Strategy",The Coal Authority,17/08/2022,Peripherals / Consumables (MEP),DIG - Service & Assurance,Government Procurement Card,137737,162.74
"Department for Business, Energy and Industrial Strategy",The Coal Authority,18/08/2022,Peripherals / Consumables (MEP),DIG - Service & Assurance,Government Procurement Card,137737,"1,250.79"
"Department for Business, Energy and Industrial Strategy",The Coal Authority,24/08/2022,Peripherals / Consumables (MEP),Executive,Government Procurement Card,137737,16.00
"Department for Business, Energy and Industrial Strategy",The Coal Authority,31/08/2022,Peripherals / Consumables (MEP),ENV - Mine Water Operations,Government Procurement Card,137737,9.98
"Department for Business, Energy and Industrial Strategy",The Coal Authority,30/08/2022,Plant Maintenance,Facilities,Briggs & Forrester Building Services Maintenance L,135754,386.44
"Department for Business, Energy and Industrial Strategy",The Coal Authority,23/08/2022,Plant Maintenance,Facilities,Dakro Environmental Ltd,135838,455.00
"Department for Business, Energy and Industrial Strategy",The Coal Authority,23/08/2022,Plant Maintenance,Facilities,Hatherley Commercial Services Limited,136101,"1,323.46"
"Department for Business, Energy and Industrial Strategy",The Coal Authority,23/08/2022,Plant Maintenance,Facilities,Hatherley Commercial Services Limited,136102,425.94
"Department for Business, Energy and Industrial Strategy",The Coal Authority,01/09/2022,Plant Maintenance,Facilities,Stannah Lift Services Limited,136176,192.95
"Department for Business, Energy and Industrial Strategy",The Coal Authority,13/09/2022,Plant Maintenance,Facilities,Briggs & Forrester Building Services Maintenance L,136549,153.50
"Department for Business, Energy and Industrial Strategy",The Coal Authority,09/09/2022,Plant Maintenance,Facilities,Briggs & Forrester Building Services Maintenance L,136781,282.50
"Department for Business, Energy and Industrial Strategy",The Coal Authority,27/09/2022,Plant Maintenance,Facilities,EMSc UK LTD,137590,550.00
"Department for Business, Energy and Industrial Strategy",The Coal Authority,27/09/2022,Plant Maintenance,Facilities,EMSc UK LTD,137590,550.00
"Department for Business, Energy and Industrial Strategy",The Coal Authority,19/08/2022,Postage & Couriers,Customer Services & Strategy,FedEx Express UK Transportaion Limited,135924,40.69
"Department for Business, Energy and Industrial Strategy",The Coal Authority,10/08/2022,Postage & Couriers,Customer Services & Strategy,Royal Mail Group Plc,135925,87.50
"Department for Business, Energy and Industrial Strategy",The Coal Authority,02/06/2022,Postage & Couriers,Customer Services & Strategy,Postage By Phone -Pitney Bowes,136118,500.00
"Department for Business, Energy and Industrial Strategy",The Coal Authority,02/06/2022,Postage & Couriers,Customer Services & Strategy,Postage By Phone -Pitney Bowes,136118,2.58
"Department for Business, Energy and Industrial Strategy",The Coal Authority,26/08/2022,Postage & Couriers,Customer Services & Strategy,FedEx Express UK Transportaion Limited,136400,32.67
"Department for Business, Energy and Industrial Strategy",The Coal Authority,09/09/2022,Postage & Couriers,Customer Services & Strategy,FedEx Express UK Transportaion Limited,136848,101.70
"Department for Business, Energy and Industrial Strategy",The Coal Authority,02/09/2022,Postage & Couriers,Customer Services & Strategy,Postage By Phone -Pitney Bowes,137598,505.10
"Department for Business, Energy and Industrial Strategy",The Coal Authority,02/08/2022,Postage & Couriers,Customer Services & Strategy,Postage By Phone -Pitney Bowes,137599,250.57
"Department for Business, Energy and Industrial Strategy",The Coal Authority,16/08/2022,Postage & Couriers,DIG - Service & Assurance,Government Procurement Card,137737,40.00
"Department for Business, Energy and Industrial Strategy",The Coal Authority,15/09/2022,Postage & Couriers,Customer Services & Strategy,Royal Mail Group Plc,137770,87.50
"Department for Business, Energy and Industrial Strategy",The Coal Authority,10/06/2022,Professional Subscriptions,"Health, Safety & Wellbeing",Government Procurement Card,137445,177.00
"Department for Business, Energy and Industrial Strategy",The Coal Authority,05/07/2022,Professional Subscriptions,DIG - Architecture,Government Procurement Card,137736,714.00
"Department for Business, Energy and Industrial Strategy",The Coal Authority,04/08/2022,Professional Subscriptions,Heat & By-Product Innovation,Government Procurement Card,137737,178.00
"Department for Business, Energy and Industrial Strategy",The Coal Authority,15/08/2022,Professional Subscriptions,"Health, Safety & Wellbeing",Government Procurement Card,137737,155.00
"Department for Business, Energy and Industrial Strategy",The Coal Authority,18/08/2022,Professional Subscriptions,Incident & Emergency Response,Government Procurement Card,137737,89.00
"Department for Business, Energy and Industrial Strategy",The Coal Authority,22/08/2022,Professional Subscriptions,"Health, Safety & Wellbeing",Government Procurement Card,137737,155.00
"Department for Business, Energy and Industrial Strategy",The Coal Authority,12/09/2022,Property Rents Payable,DEV - Historic Property Liabilities,Trustees Of The Plumtree Child Trust,136476,"59,494.65"
"Department for Business, Energy and Industrial Strategy",The Coal Authority,05/09/2022,Property Site Maintenance,PS&S - General Claims,Alliance Contracting Solutions Ltd,135785,"6,733.36"
"Department for Business, Energy and Industrial Strategy",The Coal Authority,26/08/2022,Property Site Maintenance,PS&S - General Claims,Nal Plant Limited,135797,271.98
"Department for Business, Energy and Industrial Strategy",The Coal Authority,31/08/2022,Property Site Maintenance,DEV - Property Management,JMC Engineering Uk Ltd,136168,261.15
"Department for Business, Energy and Industrial Strategy",The Coal Authority,31/08/2022,Property Site Maintenance,DEV - Property Management,JMC Engineering Uk Ltd,136168,35.10
"Department for Business, Energy and Industrial Strategy",The Coal Authority,31/08/2022,Property Site Maintenance,DEV - Property Management,JMC Engineering Uk Ltd,136170,6.30
"Department for Business, Energy and Industrial Strategy",The Coal Authority,31/08/2022,Property Site Maintenance,DEV - Property Management,JMC Engineering Uk Ltd,136170,887.91
"Department for Business, Energy and Industrial Strategy",The Coal Authority,13/09/2022,Property Site Maintenance,PS&S - General Claims,Llettyshenkin Cons Co Ltd,136548,"2,181.05"
"Department for Business, Energy and Industrial Strategy",The Coal Authority,01/09/2022,Property Site Maintenance,DEV - Historic Property Liabilities,Sight & Sound Security,136780,"7,985.51"
"Department for Business, Energy and Industrial Strategy",The Coal Authority,23/09/2022,Property Site Maintenance,PS&S - General Claims,Llettyshenkin Cons Co Ltd,137323,631.80
"Department for Business, Energy and Industrial Strategy",The Coal Authority,23/09/2022,Property Site Maintenance,PS&S - General Claims,Llettyshenkin Cons Co Ltd,137324,704.18
"Department for Business, Energy and Industrial Strategy",The Coal Authority,23/09/2022,Property Site Maintenance,PS&S - General Claims,Llettyshenkin Cons Co Ltd,137325,700.94
"Department for Business, Energy and Industrial Strategy",The Coal Authority,23/09/2022,Property Site Maintenance,PS&S - General Claims,Llettyshenkin Cons Co Ltd,137326,"1,442.65"
"Department for Business, Energy and Industrial Strategy",The Coal Authority,27/09/2022,Public Relations,Community Response,Imprint,137596,96.64
"Department for Business, Energy and Industrial Strategy",The Coal Authority,27/09/2022,Public Relations,Community Response,Imprint,137596,79.29
"Department for Business, Energy and Industrial Strategy",The Coal Authority,25/08/2022,Recruitment Advertising,People & Organisational Development,IET Services Ltd,135786,495.00
"Department for Business, Energy and Industrial Strategy",The Coal Authority,25/08/2022,Recruitment Advertising,People & Organisational Development,IET Services Ltd,135787,495.00
"Department for Business, Energy and Industrial Strategy",The Coal Authority,15/08/2022,Recruitment Advertising,People & Organisational Development,Syon Media Limited,135870,395.00
"Department for Business, Energy and Industrial Strategy",The Coal Authority,15/08/2022,Recruitment Advertising,People & Organisational Development,Syon Media Limited,135871,395.00
"Department for Business, Energy and Industrial Strategy",The Coal Authority,15/08/2022,Recruitment Advertising,People & Organisational Development,Syon Media Limited,135872,395.00
"Department for Business, Energy and Industrial Strategy",The Coal Authority,09/08/2022,Recruitment Advertising,People & Organisational Development,TALOS360 Limited,135940,"14,000.00"
"Department for Business, Energy and Industrial Strategy",The Coal Authority,01/08/2022,Recruitment Advertising,People & Organisational Development,JGP Resourcing Ltd,135942,600.00
"Department for Business, Energy and Industrial Strategy",The Coal Authority,22/06/2022,Recruitment Advertising,People & Organisational Development,Working Planet Limited,136037,249.00
"Department for Business, Energy and Industrial Strategy",The Coal Authority,31/08/2022,Recruitment Advertising,People & Organisational Development,Emap Publishing Ltd,136217,625.00
"Department for Business, Energy and Industrial Strategy",The Coal Authority,08/06/2022,Recruitment Advertising,People & Organisational Development,We Are Sunday Ltd,136267,689.00
"Department for Business, Energy and Industrial Strategy",The Coal Authority,13/09/2022,Recruitment Advertising,People & Organisational Development,Working Planet Limited,136803,249.00
"Department for Business, Energy and Industrial Strategy",The Coal Authority,08/09/2022,Recruitment Advertising,People & Organisational Development,We Are Sunday Ltd,136805,625.00
"Department for Business, Energy and Industrial Strategy",The Coal Authority,14/09/2022,Recruitment Advertising,People & Organisational Development,Working Planet Limited,136836,249.00
"Department for Business, Energy and Industrial Strategy",The Coal Authority,14/09/2022,Recruitment Advertising,People & Organisational Development,Working Planet Limited,136837,249.00
"Department for Business, Energy and Industrial Strategy",The Coal Authority,16/09/2022,Recruitment Advertising,People & Organisational Development,Haymarket Publishing Serv Ltd,136907,-720.00
"Department for Business, Energy and Industrial Strategy",The Coal Authority,27/07/2022,Recruitment Advertising,People & Organisational Development,Haymarket Publishing Serv Ltd,136908,720.00
"Department for Business, Energy and Industrial Strategy",The Coal Authority,31/08/2022,Recruitment Advertising,People & Organisational Development,Haymarket Publishing Serv Ltd,137372,720.00
"Department for Business, Energy and Industrial Strategy",The Coal Authority,16/09/2022,Recruitment Advertising,People & Organisational Development,Redactive Publishing Limited,137472,688.00
"Department for Business, Energy and Industrial Strategy",The Coal Authority,13/09/2022,Recruitment Advertising,People & Organisational Development,Syon Media Limited,137473,395.00
"Department for Business, Energy and Industrial Strategy",The Coal Authority,14/09/2022,Recruitment Advertising,People & Organisational Development,Syon Media Limited,137474,395.00
"Department for Business, Energy and Industrial Strategy",The Coal Authority,31/08/2022,Recruitment Advertising,People & Organisational Development,Emap Publishing Ltd,137709,625.00
"Department for Business, Energy and Industrial Strategy",The Coal Authority,31/08/2022,Recruitment Advertising,People & Organisational Development,Emap Publishing Ltd,137710,625.00
"Department for Business, Energy and Industrial Strategy",The Coal Authority,15/08/2022,Research & Development (BEIS Funded),ENV - Technical,Enitial Limited,135856,350.00
"Department for Business, Energy and Industrial Strategy",The Coal Authority,15/08/2022,Research & Development (BEIS Funded),ENV - Technical,Enitial Limited,135856,50.00
"Department for Business, Energy and Industrial Strategy",The Coal Authority,07/09/2022,Research & Development (BEIS Funded),Heat & By-Product Innovation,Cornerstone  Projects Ltd,136434,299.20
"Department for Business, Energy and Industrial Strategy",The Coal Authority,07/09/2022,Research & Development (BEIS Funded),Heat & By-Product Innovation,Cornerstone  Projects Ltd,136435,299.20
"Department for Business, Energy and Industrial Strategy",The Coal Authority,07/09/2022,Research & Development (BEIS Funded),Heat & By-Product Innovation,Cornerstone  Projects Ltd,136436,299.20
"Department for Business, Energy and Industrial Strategy",The Coal Authority,07/09/2022,Research & Development (BEIS Funded),Heat & By-Product Innovation,Cornerstone  Projects Ltd,136437,299.20
"Department for Business, Energy and Industrial Strategy",The Coal Authority,25/08/2022,Research & Development (BEIS Funded),Heat & By-Product Innovation,Socotec,136452,84.00
"Department for Business, Energy and Industrial Strategy",The Coal Authority,25/08/2022,Research & Development (BEIS Funded),Heat & By-Product Innovation,Socotec,136452,130.20
"Department for Business, Energy and Industrial Strategy",The Coal Authority,25/08/2022,Research & Development (BEIS Funded),Heat & By-Product Innovation,Socotec,136452,269.36
"Department for Business, Energy and Industrial Strategy",The Coal Authority,25/08/2022,Research & Development (BEIS Funded),Heat & By-Product Innovation,Socotec,136452,134.40
"Department for Business, Energy and Industrial Strategy",The Coal Authority,25/08/2022,Research & Development (BEIS Funded),Heat & By-Product Innovation,Socotec,136452,168.00
"Department for Business, Energy and Industrial Strategy",The Coal Authority,25/08/2022,Research & Development (BEIS Funded),Heat & By-Product Innovation,Socotec,136452,30.00
"Department for Business, Energy and Industrial Strategy",The Coal Authority,25/08/2022,Research & Development (BEIS Funded),Heat & By-Product Innovation,Socotec,136452,265.51
"Department for Business, Energy and Industrial Strategy",The Coal Authority,25/08/2022,Research & Development (BEIS Funded),Heat & By-Product Innovation,Socotec,136453,72.00
"Department for Business, Energy and Industrial Strategy",The Coal Authority,25/08/2022,Research & Development (BEIS Funded),Heat & By-Product Innovation,Socotec,136453,227.58
"Department for Business, Energy and Industrial Strategy",The Coal Authority,25/08/2022,Research & Development (BEIS Funded),Heat & By-Product Innovation,Socotec,136453,111.60
"Department for Business, Energy and Industrial Strategy",The Coal Authority,25/08/2022,Research & Development (BEIS Funded),Heat & By-Product Innovation,Socotec,136453,230.88
"Department for Business, Energy and Industrial Strategy",The Coal Authority,25/08/2022,Research & Development (BEIS Funded),Heat & By-Product Innovation,Socotec,136453,115.20
"Department for Business, Energy and Industrial Strategy",The Coal Authority,25/08/2022,Research & Development (BEIS Funded),Heat & By-Product Innovation,Socotec,136453,144.00
"Department for Business, Energy and Industrial Strategy",The Coal Authority,25/08/2022,Research & Development (BEIS Funded),Heat & By-Product Innovation,Socotec,136453,30.00
"Department for Business, Energy and Industrial Strategy",The Coal Authority,21/04/2022,Short Term Vehicle Hire,ENV - Technical,Enterprise Rent A Car,135825,187.24
"Department for Business, Energy and Industrial Strategy",The Coal Authority,05/07/2022,Short Term Vehicle Hire,Facilities,Enterprise Rent A Car,135975,56.90
"Department for Business, Energy and Industrial Strategy",The Coal Authority,06/09/2022,Short Term Vehicle Hire,PS&S - General Claims,Kinto UK Limited,136398,65.00
"Department for Business, Energy and Industrial Strategy",The Coal Authority,13/09/2022,Short Term Vehicle Hire,PS&S - General Claims,Kinto UK Limited,136486,-168.00
"Department for Business, Energy and Industrial Strategy",The Coal Authority,31/08/2022,Short Term Vehicle Hire,Facilities,Enterprise Rent A Car,136847,"5,653.14"
"Department for Business, Energy and Industrial Strategy",The Coal Authority,05/08/2022,Short Term Vehicle Hire,DEFRA LEP Funding,Government Procurement Card,137737,39.65
"Department for Business, Energy and Industrial Strategy",The Coal Authority,11/08/2022,Site Repairs & Maintenance,Facilities,M. Shooter Electrical,135839,399.00
"Department for Business, Energy and Industrial Strategy",The Coal Authority,11/08/2022,Site Repairs & Maintenance,Facilities,M. Shooter Electrical,135840,110.90
"Department for Business, Energy and Industrial Strategy",The Coal Authority,11/08/2022,Site Repairs & Maintenance,Facilities,M. Shooter Electrical,135841,152.50
"Department for Business, Energy and Industrial Strategy",The Coal Authority,10/09/2022,Site Repairs & Maintenance,Facilities,Garry Dalton Window Cleaning Service Ltd,136783,"1,100.00"
"Department for Business, Energy and Industrial Strategy",The Coal Authority,31/08/2022,Site Repairs & Maintenance,Facilities,Total Integrated Solutions,137107,262.95
"Department for Business, Energy and Industrial Strategy",The Coal Authority,31/08/2022,Site Repairs & Maintenance,Facilities,Total Integrated Solutions,137113,"4,253.85"
"Department for Business, Energy and Industrial Strategy",The Coal Authority,02/08/2022,Site Repairs & Maintenance,Facilities,Government Procurement Card,137737,40.99
"Department for Business, Energy and Industrial Strategy",The Coal Authority,04/08/2022,Site Repairs & Maintenance,Facilities,Government Procurement Card,137737,62.47
"Department for Business, Energy and Industrial Strategy",The Coal Authority,07/08/2022,Site Repairs & Maintenance,Facilities,Government Procurement Card,137737,4.98
"Department for Business, Energy and Industrial Strategy",The Coal Authority,16/08/2022,Site Repairs & Maintenance,Facilities,Government Procurement Card,137737,64.13
"Department for Business, Energy and Industrial Strategy",The Coal Authority,18/08/2022,Site Repairs & Maintenance,Facilities,Government Procurement Card,137737,9.98
"Department for Business, Energy and Industrial Strategy",The Coal Authority,30/08/2022,Site Repairs & Maintenance,Facilities,Government Procurement Card,137737,18.31
"Department for Business, Energy and Industrial Strategy",The Coal Authority,01/09/2022,Site Services,Facilities,Spacecare Ltd,136045,736.97
"Department for Business, Energy and Industrial Strategy",The Coal Authority,07/09/2022,Site Services,Facilities,Restore Datashred,136303,201.40
"Department for Business, Energy and Industrial Strategy",The Coal Authority,15/09/2022,Site Services,Facilities,Ulyett Landscapes Ltd,137003,"2,875.00"
"Department for Business, Energy and Industrial Strategy",The Coal Authority,20/09/2022,Site Services,Facilities,PTSG Access and Safety Limited,137050,778.69
"Department for Business, Energy and Industrial Strategy",The Coal Authority,18/09/2022,Site Services,Facilities,Personnel Hygiene Services Ltd,137340,40.00
"Department for Business, Energy and Industrial Strategy",The Coal Authority,18/09/2022,Site Services,Facilities,Personnel Hygiene Services Ltd,137340,29.50
"Department for Business, Energy and Industrial Strategy",The Coal Authority,26/09/2022,Site Services,Facilities,Invincible Draincare Ltd,137588,"2,392.06"
"Department for Business, Energy and Industrial Strategy",The Coal Authority,23/09/2022,Site Services,Facilities,Biffa Waste Services Ltd,137616,166.00
"Department for Business, Energy and Industrial Strategy",The Coal Authority,23/09/2022,Site Services,Facilities,Biffa Waste Services Ltd,137616,151.05
"Department for Business, Energy and Industrial Strategy",The Coal Authority,05/07/2022,Site Services,Facilities,Government Procurement Card,137736,6.23
"Department for Business, Energy and Industrial Strategy",The Coal Authority,14/07/2022,Site Services,Facilities,Government Procurement Card,137736,13.70
"Department for Business, Energy and Industrial Strategy",The Coal Authority,18/07/2022,Site Services,Facilities,Government Procurement Card,137736,141.18
"Department for Business, Energy and Industrial Strategy",The Coal Authority,17/08/2022,Site Services,Facilities,Government Procurement Card,137737,159.00
"Department for Business, Energy and Industrial Strategy",The Coal Authority,16/09/2022,Software Licenses - On Premise,DIG - Technical Delivery,UKCloud Ltd,136995,"56,688.09"
"Department for Business, Energy and Industrial Strategy",The Coal Authority,21/08/2022,Software Licenses - On Premise,Innovation By-Product & Services Delivery,Government Procurement Card,137737,126.50
"Department for Business, Energy and Industrial Strategy",The Coal Authority,26/08/2022,Software Licenses - SaaS,DIG - Service & Assurance,Slack Technologies Limited,135974,"6,032.54"
"Department for Business, Energy and Industrial Strategy",The Coal Authority,26/07/2022,Software Licenses - SaaS,ICT Development,Computacenter (Uk) Ltd,137308,"21,290.32"
"Department for Business, Energy and Industrial Strategy",The Coal Authority,17/07/2022,Software Licenses - SaaS,DIG - Service & Assurance,Government Procurement Card,137736,6.32
"Department for Business, Energy and Industrial Strategy",The Coal Authority,05/08/2022,Software Licenses - SaaS,DIG - Service & Assurance,Government Procurement Card,137737,360.00
"Department for Business, Energy and Industrial Strategy",The Coal Authority,17/08/2022,Software Licenses - SaaS,DIG - Service & Assurance,Government Procurement Card,137737,6.32
"Department for Business, Energy and Industrial Strategy",The Coal Authority,19/08/2022,Software Licenses - SaaS,DIG - Service & Assurance,Government Procurement Card,137737,"2,878.20"
"Department for Business, Energy and Industrial Strategy",The Coal Authority,01/07/2022,Software Support & Maintenance - On Premise,DEV - Historic Property Liabilities,Cgi It Uk Ltd,135916,260.83
"Department for Business, Energy and Industrial Strategy",The Coal Authority,01/07/2022,Software Support & Maintenance - On Premise,DEV - Planning & Local Authority Liaison,Cgi It Uk Ltd,135916,391.24
"Department for Business, Energy and Industrial Strategy",The Coal Authority,01/07/2022,Software Support & Maintenance - On Premise,DIG - Data Licensing,Cgi It Uk Ltd,135916,"5,477.37"
"Department for Business, Energy and Industrial Strategy",The Coal Authority,01/07/2022,Software Support & Maintenance - On Premise,Mining Reports,Cgi It Uk Ltd,135916,"3,260.34"
"Department for Business, Energy and Industrial Strategy",The Coal Authority,01/07/2022,Software Support & Maintenance - On Premise,Mining Reports,Cgi It Uk Ltd,135916,0.01
"Department for Business, Energy and Industrial Strategy",The Coal Authority,01/07/2022,Software Support & Maintenance - On Premise,PS&S - General Claims,Cgi It Uk Ltd,135916,"3,260.34"
"Department for Business, Energy and Industrial Strategy",The Coal Authority,01/07/2022,Software Support & Maintenance - On Premise,Tips Response,Cgi It Uk Ltd,135916,391.24
"Department for Business, Energy and Industrial Strategy",The Coal Authority,22/08/2022,Software Support & Maintenance - On Premise,People & Organisational Development,MHR International UK Ltd,135941,"4,297.46"
"Department for Business, Energy and Industrial Strategy",The Coal Authority,26/09/2022,Software Support & Maintenance - On Premise,Finance,Sapphire Systems Plc,137420,-750.29
"Department for Business, Energy and Industrial Strategy",The Coal Authority,20/08/2022,Software Support & Maintenance - On Premise,DIG - Technical Delivery,Government Procurement Card,137737,"1,037.39"
"Department for Business, Energy and Industrial Strategy",The Coal Authority,20/07/2022,Software Support & Maintenance - SaaS,DIG - Technical Delivery,WCL UK Ltd (trading as Everything ICT),135997,"2,799.99"
"Department for Business, Energy and Industrial Strategy",The Coal Authority,20/07/2022,Software Support & Maintenance - SaaS,DIG - Technical Delivery,WCL UK Ltd (trading as Everything ICT),135997,0.01
"Department for Business, Energy and Industrial Strategy",The Coal Authority,31/08/2022,Software Support & Maintenance - SaaS,Finance,Bottomline Technologies D/D,136182,160.65
"Department for Business, Energy and Industrial Strategy",The Coal Authority,09/08/2022,Software Support & Maintenance - SaaS,DIG - Technical Delivery,Government Procurement Card,137737,-99.19
"Department for Business, Energy and Industrial Strategy",The Coal Authority,09/08/2022,Software Support & Maintenance - SaaS,DIG - Technical Delivery,Government Procurement Card,137737,99.19
"Department for Business, Energy and Industrial Strategy",The Coal Authority,10/07/2022,Staff Events,DIG - Technical Delivery,Government Procurement Card,137736,44.00
"Department for Business, Energy and Industrial Strategy",The Coal Authority,12/07/2022,Staff Events,DIG - Architecture,Government Procurement Card,137736,15.78
"Department for Business, Energy and Industrial Strategy",The Coal Authority,12/07/2022,Staff Events,DIG - Architecture,Government Procurement Card,137736,123.70
"Department for Business, Energy and Industrial Strategy",The Coal Authority,11/08/2022,Staff Events,Executive,Government Procurement Card,137737,70.00
"Department for Business, Energy and Industrial Strategy",The Coal Authority,17/08/2022,Staff Events,Operations Programme Office,Government Procurement Card,137737,0.83
"Department for Business, Energy and Industrial Strategy",The Coal Authority,17/08/2022,Staff Events,Operations Programme Office,Government Procurement Card,137737,583.54
"Department for Business, Energy and Industrial Strategy",The Coal Authority,16/08/2022,Staff Medicals,People & Organisational Development,Bupa UK,135939,480.00
"Department for Business, Energy and Industrial Strategy",The Coal Authority,31/08/2022,Staff Medicals,People & Organisational Development,Bluecrest Health Screening,136892,"15,317.00"
"Department for Business, Energy and Industrial Strategy",The Coal Authority,31/08/2022,Stationery,Customer Services & Strategy,Imprint,135748,104.80
"Department for Business, Energy and Industrial Strategy",The Coal Authority,30/08/2022,Stationery,Customer Services & Strategy,Banner Business Solutions,136124,31.10
"Department for Business, Energy and Industrial Strategy",The Coal Authority,30/08/2022,Stationery,Customer Services & Strategy,Banner Business Solutions,136124,1.30
"Department for Business, Energy and Industrial Strategy",The Coal Authority,30/08/2022,Stationery,Customer Services & Strategy,Banner Business Solutions,136124,12.76
"Department for Business, Energy and Industrial Strategy",The Coal Authority,30/08/2022,Stationery,Customer Services & Strategy,Banner Business Solutions,136124,3.30
"Department for Business, Energy and Industrial Strategy",The Coal Authority,30/08/2022,Stationery,Customer Services & Strategy,Banner Business Solutions,136124,25.52
"Department for Business, Energy and Industrial Strategy",The Coal Authority,30/08/2022,Stationery,Customer Services & Strategy,Banner Business Solutions,136124,90.65
"Department for Business, Energy and Industrial Strategy",The Coal Authority,30/08/2022,Stationery,Customer Services & Strategy,Banner Business Solutions,136124,19.00
"Department for Business, Energy and Industrial Strategy",The Coal Authority,30/08/2022,Stationery,Customer Services & Strategy,Banner Business Solutions,136124,32.43
"Department for Business, Energy and Industrial Strategy",The Coal Authority,30/08/2022,Stationery,Customer Services & Strategy,Banner Business Solutions,136124,30.15
"Department for Business, Energy and Industrial Strategy",The Coal Authority,30/08/2022,Stationery,Customer Services & Strategy,Banner Business Solutions,136124,12.02
"Department for Business, Energy and Industrial Strategy",The Coal Authority,09/09/2022,Stationery,Finance,Staff Expenses Control,136935,7.89
"Department for Business, Energy and Industrial Strategy",The Coal Authority,06/09/2022,Stationery,Procurement,Staff Expenses Control,137264,8.11
"Department for Business, Energy and Industrial Strategy",The Coal Authority,14/09/2022,Stationery,PS&S - Industry Claims,Staff Expenses Control,137264,27.81
"Department for Business, Energy and Industrial Strategy",The Coal Authority,15/09/2022,Stationery,PS&S - Industry Claims,Staff Expenses Control,137264,8.48
"Department for Business, Energy and Industrial Strategy",The Coal Authority,27/09/2022,Stationery,Customer Services & Strategy,Imprint,137597,47.24
"Department for Business, Energy and Industrial Strategy",The Coal Authority,04/07/2022,Stationery,"Health, Safety & Wellbeing",Government Procurement Card,137736,11.66
"Department for Business, Energy and Industrial Strategy",The Coal Authority,05/08/2022,Stationery,"Health, Safety & Wellbeing",Government Procurement Card,137737,291.81
"Department for Business, Energy and Industrial Strategy",The Coal Authority,22/08/2022,Stationery,PS&S - General Claims,Government Procurement Card,137737,15.00
"Department for Business, Energy and Industrial Strategy",The Coal Authority,22/08/2022,Stationery,PS&S - General Claims,Government Procurement Card,137737,1.32
"Department for Business, Energy and Industrial Strategy",The Coal Authority,23/08/2022,Stationery,Customer Services & Strategy,Government Procurement Card,137737,1.65
"Department for Business, Energy and Industrial Strategy",The Coal Authority,23/08/2022,Stationery,PS&S - General Claims,Government Procurement Card,137737,12.00
"Department for Business, Energy and Industrial Strategy",The Coal Authority,24/08/2022,Stationery,Customer Services & Strategy,Government Procurement Card,137737,126.00
"Department for Business, Energy and Industrial Strategy",The Coal Authority,24/08/2022,Stationery,Customer Services & Strategy,Government Procurement Card,137737,41.73
"Department for Business, Energy and Industrial Strategy",The Coal Authority,24/08/2022,Stationery,ENV - Technical,Government Procurement Card,137737,-75.90
"Department for Business, Energy and Industrial Strategy",The Coal Authority,29/06/2022,Subsidence - Contractor Costs,PS&S - General Claims,Mar Scaffolding Scotland Ltd,135774,"1,233.90"
"Department for Business, Energy and Industrial Strategy",The Coal Authority,26/08/2022,Subsidence - Contractor Costs,PS&S - General Claims,Nal Plant Limited,135795,932.28
"Department for Business, Energy and Industrial Strategy",The Coal Authority,22/08/2022,Subsidence - Contractor Costs,PS&S - General Claims,British Gas Trading Ltd,135827,60.08
"Department for Business, Energy and Industrial Strategy",The Coal Authority,25/08/2022,Subsidence - Contractor Costs,PS&S - General Claims,Alliance Contracting Solutions Ltd,135834,"1,227.25"
"Department for Business, Energy and Industrial Strategy",The Coal Authority,23/08/2022,Subsidence - Contractor Costs,PS&S - General Claims,Nal Plant Limited,135943,"1,045.00"
"Department for Business, Energy and Industrial Strategy",The Coal Authority,26/08/2022,Subsidence - Contractor Costs,PS&S - General Claims,Nal Plant Limited,136008,"1,253.47"
"Department for Business, Energy and Industrial Strategy",The Coal Authority,30/11/2021,Subsidence - Contractor Costs,PS&S - General Claims,Christie Gillespie Consulting Engineers,136032,880.30
"Department for Business, Energy and Industrial Strategy",The Coal Authority,12/08/2022,Subsidence - Contractor Costs,PS&S - General Claims,Storage Giant Limited,136038,343.06
"Department for Business, Energy and Industrial Strategy",The Coal Authority,12/08/2022,Subsidence - Contractor Costs,PS&S - General Claims,Storage Giant Limited,136038,28.57
"Department for Business, Energy and Industrial Strategy",The Coal Authority,12/08/2022,Subsidence - Contractor Costs,PS&S - General Claims,Storage Giant Limited,136038,3.43
"Department for Business, Energy and Industrial Strategy",The Coal Authority,31/08/2022,Subsidence - Contractor Costs,PS&S - General Claims,Compensation Payment,136091,330.00
"Department for Business, Energy and Industrial Strategy",The Coal Authority,31/08/2022,Subsidence - Contractor Costs,PS&S - General Claims,Compensation Payment,136099,240.00
"Department for Business, Energy and Industrial Strategy",The Coal Authority,09/09/2022,Subsidence - Contractor Costs,PS&S - General Claims,Cornerstone  Projects Ltd,136195,168.69
"Department for Business, Energy and Industrial Strategy",The Coal Authority,31/08/2022,Subsidence - Contractor Costs,PS&S - Kellingley,Ray Holt Land Drainage Ltd,136214,"7,143.27"
"Department for Business, Energy and Industrial Strategy",The Coal Authority,25/08/2022,Subsidence - Contractor Costs,PS&S - Kellingley,Socotec,136250,205.60
"Department for Business, Energy and Industrial Strategy",The Coal Authority,25/08/2022,Subsidence - Contractor Costs,PS&S - Kellingley,Socotec,136250,30.00
"Department for Business, Energy and Industrial Strategy",The Coal Authority,30/08/2022,Subsidence - Contractor Costs,PS&S - General Claims,AMC Removals UK Ltd,136251,255.76
"Department for Business, Energy and Industrial Strategy",The Coal Authority,09/09/2022,Subsidence - Contractor Costs,PS&S - General Claims,Compensation Payment,136343,279.78
"Department for Business, Energy and Industrial Strategy",The Coal Authority,08/09/2022,Subsidence - Contractor Costs,PS&S - General Claims,Alliance Contracting Solutions Ltd,136446,"14,410.44"
"Department for Business, Energy and Industrial Strategy",The Coal Authority,27/08/2022,Subsidence - Contractor Costs,PS&S - General Claims,HANLON BROS REMOVALS & STORAGE,136466,251.33
"Department for Business, Energy and Industrial Strategy",The Coal Authority,27/08/2022,Subsidence - Contractor Costs,PS&S - General Claims,HANLON BROS REMOVALS & STORAGE,136466,251.33
"Department for Business, Energy and Industrial Strategy",The Coal Authority,27/08/2022,Subsidence - Contractor Costs,PS&S - General Claims,HANLON BROS REMOVALS & STORAGE,136466,251.34
"Department for Business, Energy and Industrial Strategy",The Coal Authority,09/09/2022,Subsidence - Contractor Costs,PS&S - General Claims,Compensation Payment,136467,680.00
"Department for Business, Energy and Industrial Strategy",The Coal Authority,13/09/2022,Subsidence - Contractor Costs,PS&S - General Claims,Nal Plant Limited,136558,"5,686.16"
"Department for Business, Energy and Industrial Strategy",The Coal Authority,13/09/2022,Subsidence - Contractor Costs,PS&S - General Claims,Nal Plant Limited,136572,"3,824.20"
"Department for Business, Energy and Industrial Strategy",The Coal Authority,13/09/2022,Subsidence - Contractor Costs,PS&S - General Claims,Nal Plant Limited,136580,"1,471.45"
"Department for Business, Energy and Industrial Strategy",The Coal Authority,14/09/2022,Subsidence - Contractor Costs,PS&S - General Claims,Cornerstone  Projects Ltd,136582,98.00
"Department for Business, Energy and Industrial Strategy",The Coal Authority,10/09/2022,Subsidence - Contractor Costs,PS&S - Kellingley,K W Garden Maintenance & Landscaping,136604,660.00
"Department for Business, Energy and Industrial Strategy",The Coal Authority,14/09/2022,Subsidence - Contractor Costs,PS&S - General Claims,Compensation Payment,136917,967.72
"Department for Business, Energy and Industrial Strategy",The Coal Authority,20/09/2022,Subsidence - Contractor Costs,PS&S - General Claims,Luddon Construction Limited,136983,"19,461.93"
"Department for Business, Energy and Industrial Strategy",The Coal Authority,21/09/2022,Subsidence - Contractor Costs,PS&S - General Claims,Compensation Payment,137041,194.67
"Department for Business, Energy and Industrial Strategy",The Coal Authority,16/09/2022,Subsidence - Contractor Costs,PS&S - General Claims,Patricia Doig,137051,"1,300.00"
"Department for Business, Energy and Industrial Strategy",The Coal Authority,21/09/2022,Subsidence - Contractor Costs,PS&S - General Claims,Cornerstone  Projects Ltd,137089,209.60
"Department for Business, Energy and Industrial Strategy",The Coal Authority,21/09/2022,Subsidence - Contractor Costs,PS&S - General Claims,Cornerstone  Projects Ltd,137090,266.60
"Department for Business, Energy and Industrial Strategy",The Coal Authority,13/09/2022,Subsidence - Contractor Costs,PS&S - General Claims,Edf Energy,137122,14.15
"Department for Business, Energy and Industrial Strategy",The Coal Authority,21/09/2022,Subsidence - Contractor Costs,PS&S - General Claims,PMC Surveys,137162,960.00
"Department for Business, Energy and Industrial Strategy",The Coal Authority,26/09/2022,Subsidence - Contractor Costs,PS&S - General Claims,Cornerstone  Projects Ltd,137333,58.00
"Department for Business, Energy and Industrial Strategy",The Coal Authority,21/09/2022,Subsidence - Contractor Costs,PS&S - General Claims,PMC Surveys,137335,850.00
"Department for Business, Energy and Industrial Strategy",The Coal Authority,26/09/2022,Subsidence - Contractor Costs,PS&S - Thoresby,Thoresby Farming,137355,559.98
"Department for Business, Energy and Industrial Strategy",The Coal Authority,26/09/2022,Subsidence - Contractor Costs,PS&S - Thoresby,Thoresby Farming,137356,242.82
"Department for Business, Energy and Industrial Strategy",The Coal Authority,23/09/2022,Subsidence - Contractor Costs,PS&S - General Claims,Welbeck Estates Company Ltd,137357,"1,548.01"
"Department for Business, Energy and Industrial Strategy",The Coal Authority,26/09/2022,Subsidence - Contractor Costs,PS&S - Thoresby,Thoresby Farming,137358,"2,227.50"
"Department for Business, Energy and Industrial Strategy",The Coal Authority,26/09/2022,Subsidence - Contractor Costs,PS&S - Thoresby,Thoresby Farming,137359,930.81
"Department for Business, Energy and Industrial Strategy",The Coal Authority,10/09/2022,Subsidence - Contractor Costs,PS&S - General Claims,Ayrshire Letting & Sales Ltd,137564,"1,600.00"
"Department for Business, Energy and Industrial Strategy",The Coal Authority,30/09/2022,Subsidence - Contractor Costs,PS&S - General Claims,Ayrshire Letting & Sales Ltd,137591,"2,600.00"
"Department for Business, Energy and Industrial Strategy",The Coal Authority,25/09/2022,Subsidence - Contractor Costs,PS&S - Kellingley,K W Garden Maintenance & Landscaping,137622,195.00
"Department for Business, Energy and Industrial Strategy",The Coal Authority,26/09/2022,Subsidence - Contractor Costs,PS&S - General Claims,PMC Surveys,137641,720.00
"Department for Business, Energy and Industrial Strategy",The Coal Authority,29/09/2022,Subsidence - Contractor Costs,PS&S - General Claims,Christie Gillespie Consulting Engineers,137708,"2,110.00"
"Department for Business, Energy and Industrial Strategy",The Coal Authority,11/08/2022,Subsidence - Contractor Costs,PS&S - General Claims,Government Procurement Card,137737,66.65
"Department for Business, Energy and Industrial Strategy",The Coal Authority,24/08/2022,Subsidence - Contractor Costs,PS&S - General Claims,Government Procurement Card,137737,"2,202.47"
